Workbook

Sheet 2025 LL-CALCULATOR - UNITS
F1: LARGE LAWN 2025 NOW SOLUTIONS CALCULATOR
U3: Additional Rebates & Bonus Unlocks:
E4: NAME YOUR DRAFT ORDER HERE: | T4: Spend Requirement: | U4: $5k+ | V4: $10k+ | W4: $20k+ | X4: $50k+ | Y4: $100k+ | Z4: $150k+
E5: Description: | T5: Tier Rebate: | U5: 2.0% | V5: 2.0% | W5: 3.0% | X5: 4.0% | Y5: 5.0% | Z5: 6.0%
E6: Dist/DSR: | U6: =AND($N$30>=5000,$N$30<10000) -> FALSE | V6: =AND($N$30>=10000,$N$30<20000) -> FALSE | W6: =AND($N$30>=20000,$N$30<50000) -> FALSE | X6: =AND($N$30>=50000,$N$30<100000) -> FALSE | Y6: =AND($N$30>=100000,$N$30<150000) -> FALSE | Z6: =$N$30>=150000 -> FALSE
E7: MER#: | T7: Product: | U7: Volume Buy (5 or more products)
E8: Last Updated:
E9: Created For: | U9: =IF(U11=0,"n/a",U11) -> n/a
U10: Spend < $50k = 1.0%; Spend > $50k = 2.0%
A11: ZM ADD | L11: HIDE | N11: =N30-SUM($N$21:$N$26,N29) -> $ 0.00 | O11: HIDE | P11: HIDE | Q11: HIDE | U11: =IF(AND('REBATE MATRIX (NOW)'!$P$1>=5,N30>=10000,N30<50000),0.01, IF(AND('REBATE MATRIX (NOW)'!$P$1>=5,N30>=50000),0.02,0)) -> 0
A12: SKU Code | B12: AGENCY/TT | E12: REBATE FINDER. (Minimum Program Purchase to receive rebates is $5,000) | F12: PRODUCT NAME | G12: UNIT SIZE | H12: CATEGORY | I12: TIER BONUS ELIGILE | J12: # UNITS | K12: ORIGINAL PRICE | L12: INSEASON SUBTOTAL | M12: NOW PRICE/ UNIT* | N12: INVOICE SUBTOTAL must be a minimum of $5,000 across NOW/FALL program to receive rebates | O12: REBATE TIERS AVAILABLE | P12: REBATE TIERS QUALIFIED | Q12: QUALIFIED REBATE PER UNIT | R12: VOL BUY REBATES**† | S12: ENVU EXTRAS + TIER REBATES | T12: NET PRICE/UNIT (all NOW rebates) | U12: TOTAL AFTER REBATES + EXTRAS | V12: USE RATE / 1,000 FT2 | W12: USE RATE / ACRE | X12: TOTAL ACRES TREATED | Y12: COST/ ACRE | Z12: COST/ 1,000 FT2
A15: 11008557 | B15: =INDEX(PRICING[Agency/TT],MATCH(A15,PRICING[SKU],0)) -> A | E15: $410 off 4+ | F15: Fame® SC Fungicide | G15: 64 oz | H15: Fungicide | I15: =IF(B15="a","✔","") -> ✔ | K15: =INDEX(PRICING[2025 In-Season Price],MATCH(A15,PRICING[SKU],0)) -> $ 1,549.45 | L15: =IF(J15*K15= 0,"",J15*K15) ->  | M15: =INDEX(PRICING[NOW Price],MATCH(A15,PRICING[SKU],0)) -> $ 1,471.98 | N15: =IF(J15*M15= 0,"",J15*M15) ->  | O15: =INDEX(Rebate_Lookup[Instances],MATCH(A15,Rebate_Lookup[SKU CODE],0)) -> 2 | P15: =IF(J15="","",INDEX(Rebate_Lookup[Qualified Rebate Tier],MATCH(A15,Rebate_Lookup[SKU CODE],0))) ->  | Q15: =IF(J15="","",IF(P15=1,INDEX(Rebate_Lookup[REB_MOQ_1],MATCH(A15,Rebate_Lookup[SKU CODE],0)),IF(P15=2,INDEX(Rebate_Lookup[REB_MOQ_2],MATCH(A15,Rebate_Lookup[SKU CODE],0)),IF(P15=3,INDEX(Rebate_Lookup[REB_MOQ_3],MATCH(A15,Rebate_Lookup[SKU CODE],0)),"#err")))) ->  | R15: =IF(OR(Q15=0,Q15=""),"",J15*Q15) ->  | S15: =IFERROR(SUM($H$40:$H$41)*N15,"") ->  | T15: =IFERROR((N15-SUM(R15:S15))/J15,"") ->  | U15: =IF(AND(J15<>"",J15>0), J15*T15,"") ->  | V15: =W15/43.56 -> 0.367 | W15: 16.00 | X15: =IF(AND(TRIM(W15)<>"",TRIM(J15)<>""),(J15*64)/W15,"") ->  | Y15: =IF(J15<>0,U15/X15,0) -> 0.00 | Z15: =Y15/43.56 -> 0.00
A16: 11009500 | B16: =INDEX(PRICING[Agency/TT],MATCH(A16,PRICING[SKU],0)) -> A | E16: $1450 off 2+; $1600 off 4+ | F16: Fame® SC Fungicide | G16: 2.5 gal | H16: Fungicide | I16: ✔ | K16: =INDEX(PRICING[2025 In-Season Price],MATCH(A16,PRICING[SKU],0)) -> $ 6,863.60 | M16: =INDEX(PRICING[NOW Price],MATCH(A16,PRICING[SKU],0)) -> $ 6,520.42 | O16: =INDEX(Rebate_Lookup[Instances],MATCH(A16,Rebate_Lookup[SKU CODE],0)) -> 3 | P16: =IF(J16="","",INDEX(Rebate_Lookup[Qualified Rebate Tier],MATCH(A16,Rebate_Lookup[SKU CODE],0))) ->  | Q16: =IF(J16="","",IF(P16=1,INDEX(Rebate_Lookup[REB_MOQ_1],MATCH(A16,Rebate_Lookup[SKU CODE],0)),IF(P16=2,INDEX(Rebate_Lookup[REB_MOQ_2],MATCH(A16,Rebate_Lookup[SKU CODE],0)),IF(P16=3,INDEX(Rebate_Lookup[REB_MOQ_3],MATCH(A16,Rebate_Lookup[SKU CODE],0)),"#err")))) ->  | S16: =IFERROR(SUM($H$40:$H$41)*N16,"") ->  | T16: =IFERROR((N16-SUM(R16:S16))/J16,"") ->  | U16: =IF(AND(J16<>"",J16>0), J16*T16,"") ->  | V16: 0.367 | W16: 16.00 | X16: =IF(AND(TRIM(W16)<>"",TRIM(J16)<>""),(J16*320)/W16,"") ->  | Y16: 0.00 | Z16: 0.00
A17: 79714858 | B17: =INDEX(PRICING[Agency/TT],MATCH(A17,PRICING[SKU],0)) -> A | E17: $12 off 48+; $24 off 96+ | F17: Celsius® WG | G17: 10 oz | H17: Herbicide | I17: ✔ | K17: =INDEX(PRICING[2025 In-Season Price],MATCH(A17,PRICING[SKU],0)) -> $ 131.20 | M17: =INDEX(PRICING[NOW Price],MATCH(A17,PRICING[SKU],0)) -> $ 124.64 | O17: =INDEX(Rebate_Lookup[Instances],MATCH(A17,Rebate_Lookup[SKU CODE],0)) -> 3 | P17: =IF(J17="","",INDEX(Rebate_Lookup[Qualified Rebate Tier],MATCH(A17,Rebate_Lookup[SKU CODE],0))) ->  | Q17: =IF(J17="","",IF(P17=1,INDEX(Rebate_Lookup[REB_MOQ_1],MATCH(A17,Rebate_Lookup[SKU CODE],0)),IF(P17=2,INDEX(Rebate_Lookup[REB_MOQ_2],MATCH(A17,Rebate_Lookup[SKU CODE],0)),IF(P17=3,INDEX(Rebate_Lookup[REB_MOQ_3],MATCH(A17,Rebate_Lookup[SKU CODE],0)),"#err")))) ->  | V17: 0.085 | W17: =V17*43.56 -> 3.70 | X17: =IF(AND(TRIM(W17)<>"",TRIM(J17)<>""),(J17*10)/W17,"") ->  | Y17: 0.00 | Z17: 0.00
A18: D00000911 | B18: =INDEX(PRICING[Agency/TT],MATCH(A18,PRICING[SKU],0)) -> A | E18: $12 off 16+; $24 off 32+ | F18: Celsius® XTRA | G18: 10 oz | H18: Herbicide | I18: ✔ | K18: =INDEX(PRICING[2025 In-Season Price],MATCH(A18,PRICING[SKU],0)) -> $ 166.40 | M18: =INDEX(PRICING[NOW Price],MATCH(A18,PRICING[SKU],0)) -> $ 158.08 | O18: =INDEX(Rebate_Lookup[Instances],MATCH(A18,Rebate_Lookup[SKU CODE],0)) -> 3 | P18: =IF(J18="","",INDEX(Rebate_Lookup[Qualified Rebate Tier],MATCH(A18,Rebate_Lookup[SKU CODE],0))) ->  | Q18: =IF(J18="","",IF(P18=1,INDEX(Rebate_Lookup[REB_MOQ_1],MATCH(A18,Rebate_Lookup[SKU CODE],0)),IF(P18=2,INDEX(Rebate_Lookup[REB_MOQ_2],MATCH(A18,Rebate_Lookup[SKU CODE],0)),IF(P18=3,INDEX(Rebate_Lookup[REB_MOQ_3],MATCH(A18,Rebate_Lookup[SKU CODE],0)),"#err")))) ->  | V18: =W18/43.56 -> 0.172 | W18: 7.50 | X18: =IF(AND(TRIM(W18)<>"",TRIM(J18)<>""),(J18*10)/W18,"") ->  | Y18: =IF(J18<>0,U18/X18,0) -> 0.00 | Z18: =Y18/43.56 -> 0.00
A19: 79545312 | B19: =INDEX(PRICING[Agency/TT],MATCH(A19,PRICING[SKU],0)) -> A | E19: $50 off 16+; $100 off 32+ | F19: Revolver® | G19: 87 fl oz | H19: Herbicide | I19: ✔ | K19: =INDEX(PRICING[2025 In-Season Price],MATCH(A19,PRICING[SKU],0)) -> $ 765.60 | M19: =INDEX(PRICING[NOW Price],MATCH(A19,PRICING[SKU],0)) -> $ 727.32 | O19: =INDEX(Rebate_Lookup[Instances],MATCH(A19,Rebate_Lookup[SKU CODE],0)) -> 3 | P19: =IF(J19="","",INDEX(Rebate_Lookup[Qualified Rebate Tier],MATCH(A19,Rebate_Lookup[SKU CODE],0))) ->  | Q19: =IF(J19="","",IF(P19=1,INDEX(Rebate_Lookup[REB_MOQ_1],MATCH(A19,Rebate_Lookup[SKU CODE],0)),IF(P19=2,INDEX(Rebate_Lookup[REB_MOQ_2],MATCH(A19,Rebate_Lookup[SKU CODE],0)),IF(P19=3,INDEX(Rebate_Lookup[REB_MOQ_3],MATCH(A19,Rebate_Lookup[SKU CODE],0)),"#err")))) ->  | V19: =W19/43.56 -> 0.400 | W19: 17.42 | X19: =IF(AND(TRIM(W19)<>"",TRIM(J19)<>""),(J19*87)/W19,"") ->  | Y19: 0.00 | Z19: 0.00
A20: 11013862 | B20: =INDEX(PRICING[Agency/TT],MATCH(A20,PRICING[SKU],0)) -> A | E20: $40 off 24+; $85 off 48+ | F20: Solitare® WSL Herbicide | G20: 2.5 gal | H20: Herbicide | I20: ✔ | K20: =INDEX(PRICING[2025 In-Season Price],MATCH(A20,PRICING[SKU],0)) -> $ 262.40 | M20: =INDEX(PRICING[NOW Price],MATCH(A20,PRICING[SKU],0)) -> $ 249.28 | O20: =INDEX(Rebate_Lookup[Instances],MATCH(A20,Rebate_Lookup[SKU CODE],0)) -> 3 | P20: =IF(J20="","",INDEX(Rebate_Lookup[Qualified Rebate Tier],MATCH(A20,Rebate_Lookup[SKU CODE],0))) ->  | Q20: =IF(J20="","",IF(P20=1,INDEX(Rebate_Lookup[REB_MOQ_1],MATCH(A20,Rebate_Lookup[SKU CODE],0)),IF(P20=2,INDEX(Rebate_Lookup[REB_MOQ_2],MATCH(A20,Rebate_Lookup[SKU CODE],0)),IF(P20=3,INDEX(Rebate_Lookup[REB_MOQ_3],MATCH(A20,Rebate_Lookup[SKU CODE],0)),"#err")))) ->  | V20: 3.900 | W20: =V20*43.56 -> 169.88 | X20: =IF(AND(TRIM(W20)<>"",TRIM(J20)<>""),(J20*320)/W20,"") ->  | Y20: 0.00 | Z20: 0.00
A21: D00000990 | B21: =INDEX(PRICING[Agency/TT],MATCH(A21,PRICING[SKU],0)) -> A | E21: n/a | F21: Specticle® FLO (1-6 units) | G21: 1 gal | H21: Herbicide | I21: ✔ | K21: $ 2,092.80 | M21: $ 1,946.30 | O21: =INDEX(Rebate_Lookup[Instances],MATCH(A21,Rebate_Lookup[SKU CODE],0)) -> 6 | P21: =IF(J21="","",INDEX(Rebate_Lookup[Qualified Rebate Tier],MATCH(A21,Rebate_Lookup[SKU CODE],0))) ->  | V21: =W21/43.56 -> 0.138 | W21: 6.00 | X21: =IF(AND(TRIM(W21)<>"",TRIM(J21)<>""),(J21*127.999939675621)/W21,"") ->  | Y21: 0.00 | Z21: 0.00
A22: D00000990 | B22: =INDEX(PRICING[Agency/TT],MATCH(A22,PRICING[SKU],0)) -> A | E22: $38 off 7-13 units | F22: Specticle® FLO (7-13 units) | G22: 1 gal | H22: Herbicide | I22: ✔ | K22: $ 2,092.80 | M22: $ 1,862.59 | O22: =INDEX(Rebate_Lookup[Instances],MATCH(A22,Rebate_Lookup[SKU CODE],0)) -> 6 | P22: =IF(J22="","",INDEX(Rebate_Lookup[Qualified Rebate Tier],MATCH(A22,Rebate_Lookup[SKU CODE],0))) ->  | Q22: $ 38.00 | R22: =IF(OR(Q22=0,Q22=""),"",J22*Q22) -> $0.00 | U22: =IF(AND(J22<>"",J22>0), J22*T22,"") ->  | V22: 0.138 | W22: 6.00 | X22: =IF(AND(TRIM(W22)<>"",TRIM(J22)<>""),(J22*127.999939675621)/W22,"") ->  | Y22: 0.00 | Z22: 0.00
A23: D00000990 | B23: =INDEX(PRICING[Agency/TT],MATCH(A23,PRICING[SKU],0)) -> A | E23: $32 off 7-13 units | F23: Specticle® FLO (14-25 units) | G23: 1 gal | H23: Herbicide | I23: ✔ | K23: $ 1,796.40 | M23: $ 1,625.74 | O23: =INDEX(Rebate_Lookup[Instances],MATCH(A23,Rebate_Lookup[SKU CODE],0)) -> 6 | P23: =IF(J23="","",INDEX(Rebate_Lookup[Qualified Rebate Tier],MATCH(A23,Rebate_Lookup[SKU CODE],0))) ->  | Q23: $ 32.00 | R23: $0.00 | V23: 0.138 | W23: 6.00 | X23: =IF(AND(TRIM(W23)<>"",TRIM(J23)<>""),(J23*127.999939675621)/W23,"") ->  | Y23: 0.00 | Z23: 0.00
A24: D00000990 | B24: =INDEX(PRICING[Agency/TT],MATCH(A24,PRICING[SKU],0)) -> A | E24: $131 off 26-51 units | F24: Specticle® FLO (26-51 units) | G24: 1 gal | H24: Herbicide | I24: ✔ | K24: $ 1,796.40 | M24: $ 1,455.08 | O24: =INDEX(Rebate_Lookup[Instances],MATCH(A24,Rebate_Lookup[SKU CODE],0)) -> 6 | P24: =IF(J24="","",INDEX(Rebate_Lookup[Qualified Rebate Tier],MATCH(A24,Rebate_Lookup[SKU CODE],0))) ->  | Q24: $ 131.00 | R24: $0.00 | V24: 0.138 | W24: 6.00 | X24: =IF(AND(TRIM(W24)<>"",TRIM(J24)<>""),(J24*127.999939675621)/W24,"") ->  | Y24: 0.00 | Z24: 0.00
A25: D00000990 | B25: =INDEX(PRICING[Agency/TT],MATCH(A25,PRICING[SKU],0)) -> A | E25: $218 off 52-99 units | F25: Specticle® FLO (52-99 units) | G25: 1 gal | H25: Herbicide | I25: ✔ | K25: $ 1,796.40 | M25: $ 1,455.08 | O25: =INDEX(Rebate_Lookup[Instances],MATCH(A25,Rebate_Lookup[SKU CODE],0)) -> 6 | P25: =IF(J25="","",INDEX(Rebate_Lookup[Qualified Rebate Tier],MATCH(A25,Rebate_Lookup[SKU CODE],0))) ->  | Q25: $ 218.00 | R25: $0.00 | V25: =W25/43.56 -> 0.138 | W25: 6.00 | X25: =IF(AND(TRIM(W25)<>"",TRIM(J25)<>""),(J25*127.999939675621)/W25,"") ->  | Y25: =IF(J25<>0,U25/X25,0) -> 0.00 | Z25: =Y25/43.56 -> 0.00
A26: D00000990 | B26: =INDEX(PRICING[Agency/TT],MATCH(A26,PRICING[SKU],0)) -> A | E26: $320 off 100+ units | F26: Specticle® FLO (100+ units) | G26: 1 gal | H26: Herbicide | I26: ✔ | K26: $ 1,796.40 | M26: $ 1,455.08 | O26: =INDEX(Rebate_Lookup[Instances],MATCH(A26,Rebate_Lookup[SKU CODE],0)) -> 6 | P26: =IF(J26="","",INDEX(Rebate_Lookup[Qualified Rebate Tier],MATCH(A26,Rebate_Lookup[SKU CODE],0))) ->  | Q26: $ 320.00 | R26: $0.00 | V26: 0.138 | W26: 6.00 | Y26: 0.00 | Z26: 0.00
A27: D00000992 | B27: =INDEX(PRICING[Agency/TT],MATCH(A27,PRICING[SKU],0)) -> A | E27: $8 off 20+; $18 off 200+ | F27: Specticle® G | G27: 50 lb | H27: Herbicide | I27: ✔ | K27: =INDEX(PRICING[2025 In-Season Price],MATCH(A27,PRICING[SKU],0)) -> $ 130.50 | M27: =INDEX(PRICING[NOW Price],MATCH(A27,PRICING[SKU],0)) -> $ 123.98 | O27: =INDEX(Rebate_Lookup[Instances],MATCH(A27,Rebate_Lookup[SKU CODE],0)) -> 3 | P27: =IF(J27="","",INDEX(Rebate_Lookup[Qualified Rebate Tier],MATCH(A27,Rebate_Lookup[SKU CODE],0))) ->  | Q27: =IF(J27="","",IF(P27=1,INDEX(Rebate_Lookup[REB_MOQ_1],MATCH(A27,Rebate_Lookup[SKU CODE],0)),IF(P27=2,INDEX(Rebate_Lookup[REB_MOQ_2],MATCH(A27,Rebate_Lookup[SKU CODE],0)),IF(P27=3,INDEX(Rebate_Lookup[REB_MOQ_3],MATCH(A27,Rebate_Lookup[SKU CODE],0)),"#err")))) ->  | S27: =IFERROR(SUM($H$40:$H$41)*N27,"") ->  | U27: =IF(AND(J27<>"",J27>0), J27*T27,"") ->  | V27: =W27/43.56 -> 3.444 | W27: 150.00 | X27: =IF(AND(TRIM(W27)<>"",TRIM(J27)<>""),(J27*50)/W27,"") ->  | Y27: =IF(J27<>0,U27/X27,0) -> 0.00 | Z27: =Y27/43.56 -> 0.00
A28: 81746257 | B28: =INDEX(PRICING[Agency/TT],MATCH(A28,PRICING[SKU],0)) -> A | E28: $30 off 24+; $50 off 48+ | F28: Tribute® Total | G28: 6 oz | H28: Herbicide | I28: ✔ | K28: =INDEX(PRICING[2025 In-Season Price],MATCH(A28,PRICING[SKU],0)) -> $ 426.40 | L28: =IF(J28*K28= 0,"",J28*K28) ->  | M28: =INDEX(PRICING[NOW Price],MATCH(A28,PRICING[SKU],0)) -> $ 405.08 | O28: =INDEX(Rebate_Lookup[Instances],MATCH(A28,Rebate_Lookup[SKU CODE],0)) -> 3 | P28: =IF(J28="","",INDEX(Rebate_Lookup[Qualified Rebate Tier],MATCH(A28,Rebate_Lookup[SKU CODE],0))) ->  | Q28: =IF(J28="","",IF(P28=1,INDEX(Rebate_Lookup[REB_MOQ_1],MATCH(A28,Rebate_Lookup[SKU CODE],0)),IF(P28=2,INDEX(Rebate_Lookup[REB_MOQ_2],MATCH(A28,Rebate_Lookup[SKU CODE],0)),IF(P28=3,INDEX(Rebate_Lookup[REB_MOQ_3],MATCH(A28,Rebate_Lookup[SKU CODE],0)),"#err")))) ->  | U28: =IF(AND(J28<>"",J28>0), J28*T28,"") ->  | V28: 0.023 | W28: 1.00 | X28: =IF(AND(TRIM(W28)<>"",TRIM(J28)<>""),(J28*6)/W28,"") ->  | Y28: 0.00 | Z28: 0.00
E29: n/a | F29: Durentis FAW Program: | U29: =N29 -> $ 0.00
L30: =SUM(L15:L28) -> $ 0.00 | N30: =SUM(N15:N29) -> $ 0.00 | R30: =SUM(R15:R28) -> $ 0.00 | S30: =SUM(S15:S29) -> $ 0.00 | U30: =SUM(U15:U29) -> $ 0.00
E32: Summary
E33: Summary is provided as an estimate only. See program rules and conditions. | M33: TOPCHOICE AND TRIPLE CROWN GOLF ARE RESTRICTED USE PESTICIDES. *Pricing for all states except CA or WA. Must be purchased on a single invoice to receive volume discount price. Purchase tier amount credited for non-agency products is predetermined by Envu. **Must be registered in My Envu Rewards and accept the current Terms and Conditions to participate. ***Customer Fall Solutions and NOW Solutions promotional cumulative purchases (Aug. 1 - Dec. 5, 2025) must be $5,000 or more to qualify for program rebates. Specticle FLO and Ronstar FLO herbicides are not eligible for Envu Extras and tier rebates. New members signed up before Dec. 31, 2025, will receive 2025 NOW/Fall Solutions rebates. All rebates for 2025 NOW/Fall Solutions will be paid in points, which can be redeemed for thousands of catalog items, distributor credits and/or company checks (no checks can be issued to a third party). All products must be invoiced between Aug. 1 and Sept. 30, 2025, to qualify for NOW Solutions. Rebate calculations will be based on the date of actual product invoice and calculator tools are provided for estimation purposes only. Rebates will only be paid or delivered to the company or name listed on the invoice. Please allow for rebates to be fulfilled by July 31, 2026. End users are only eligible for one Envu incentive program on these invoiced products. Must be an end user with MER membership and accept current Terms and Conditions. Resale of product(s) purchased within this program will not qualify for rebates. If questions arise, please contact MER at 1-888-456-6464 or email info@myenvurewards.com. Envu reserves the right to modify any portion thereof, or discontinue this program without prior notice.
E35: Estimated Total Before Off Invoice Discounts: | H35: =L30+N30 -> $ 0.00
E36: Estimated Invoice Total: | H36: =N30 -> $ 0.00
E37: Estimated Off-Invoice Discount: | H37: =I37/H36 ->  | I37: =H35-H36 -> $ 0.00
E38: Volume Buy Rebate, Envu Extras & Tier Rebates: | M38: Title Transfer value shown is Redemption Value for the Programs †ALWAYS READ AND FOLLOW LABEL INSTRUCTIONS. Environmental Science U.S. LLC, 5000 CentreGreen Way, Suite 400, Cary, NC 27513. For additional product information, call toll-free 1-800-331-2867. www.envu.com. Please verify state registration of these products in your state before selling, using or distributing. Not all products are registered in all states. Envu, the Envu logo and product logos are trademarks owned by Environmental Science U.S. LLC or one of its affiliates. Other trademarks are the property of their respective owners. ©2025 Environmental Science U.S. LLC.
E39: Estimated Total Volume Buy Rebate: | H39: =I39/$H$36 ->  | I39: =R30 -> $ 0.00
E40: Estimated Tier Rebate Amount: | H40: =IF(U6=TRUE,U5,IF(V6=TRUE,V5,IF(W6=TRUE,W5,IF(X6=TRUE,X5,IF(Y6=TRUE,Y5,IF(Z6=TRUE,Z5,"n/a")))))) -> n/a | I40: =IFERROR(($N$30-SUM($N$21:$N$26,$N$29))*H40,"n/a") -> n/a
E41: Estimated Volume Buy Rebate (5 or more products): | H41: =U9 -> n/a | I41: =IFERROR(($N$30-SUM($N$21:$N$26,$N$29))*H41,"n/a") -> n/a
E42: Estimated Total Rebate: | H42: =SUM(H39:H41) ->  | I42: =SUM(I39:J41) -> $ 0.00
E43: Estimated Total Savings (Rebates + Off Invoice Discounts): | H43: =I43/H36 ->  | I43: =I42+I37 -> $ 0.00
E44: Estimated Net Total after Rebates & Discounts: | H44: =H36-I42 -> $ 0.00
P45: =SUM(N15:N21,N27:N28)*0.08 -> 0
E46: =CONCATENATE("Estimated MER points to be earned: ",TEXT(IF(AND(I42 <>"", I42 > 0),I42*100, 0),"#,##0")) -> Estimated MER points to be earned: 0

Sheet SUMMARY - UNITS (2025)
C2: ='2025 LL-CALCULATOR - UNITS'!E4 -> NAME YOUR DRAFT ORDER HERE:
C3: Description: | D3: =IF('2025 LL-CALCULATOR - UNITS'!F5="","",'2025 LL-CALCULATOR - UNITS'!F5) -> 
C4: Distributor/DSR: | D4: =IF('2025 LL-CALCULATOR - UNITS'!F6="","",'2025 LL-CALCULATOR - UNITS'!F6) -> 
C5: MER#: | D5: =IF('2025 LL-CALCULATOR - UNITS'!F7="","",'2025 LL-CALCULATOR - UNITS'!F7) -> 
C6: Last Updated: | D6: =IF('2025 LL-CALCULATOR - UNITS'!F8="","",'2025 LL-CALCULATOR - UNITS'!F8) -> 
C7: Created For: | D7: =IF('2025 LL-CALCULATOR - UNITS'!F9="","",'2025 LL-CALCULATOR - UNITS'!F9) -> 
C8: Page 1 of 1
C9: PRODUCT NAME | D9: UNIT SIZE | E9: # UNITS | F9: ORIGINAL PRICE/UNIT | G9: NOW PRICE/UNIT | H9: SUBTOTAL | I9: NET PRICE/UNIT (after rebate)
A12: D00000125 | C12: ='2025 LL-CALCULATOR - UNITS'!F15 -> Fame® SC Fungicide | D12: ='2025 LL-CALCULATOR - UNITS'!G15 -> 64 oz | E12: ='2025 LL-CALCULATOR - UNITS'!J15 -> 0 | F12: ='2025 LL-CALCULATOR - UNITS'!J15 -> $ 0.00 | G12: ='2025 LL-CALCULATOR - UNITS'!M15 -> $ 1,471.98 | H12: ='2025 LL-CALCULATOR - UNITS'!N15 ->  | I12: ='2025 LL-CALCULATOR - UNITS'!T15 -> 
A13: 11014245 | C13: ='2025 LL-CALCULATOR - UNITS'!F16 -> Fame® SC Fungicide | D13: ='2025 LL-CALCULATOR - UNITS'!G16 -> 2.5 gal | E13: ='2025 LL-CALCULATOR - UNITS'!J16 -> 0 | F13: ='2025 LL-CALCULATOR - UNITS'!J16 -> $ 0.00 | G13: ='2025 LL-CALCULATOR - UNITS'!M16 -> $ 6,520.42 | H13: ='2025 LL-CALCULATOR - UNITS'!N16 ->  | I13: ='2025 LL-CALCULATOR - UNITS'!T16 -> 
C14: ='2025 LL-CALCULATOR - UNITS'!F17 -> Celsius® WG | D14: ='2025 LL-CALCULATOR - UNITS'!G17 -> 10 oz | E14: ='2025 LL-CALCULATOR - UNITS'!J17 -> 0 | F14: ='2025 LL-CALCULATOR - UNITS'!J17 -> $ 0.00 | G14: ='2025 LL-CALCULATOR - UNITS'!M17 -> $ 124.64 | H14: ='2025 LL-CALCULATOR - UNITS'!N17 ->  | I14: ='2025 LL-CALCULATOR - UNITS'!T17 -> 
C15: ='2025 LL-CALCULATOR - UNITS'!F18 -> Celsius® XTRA | D15: ='2025 LL-CALCULATOR - UNITS'!G18 -> 10 oz | E15: ='2025 LL-CALCULATOR - UNITS'!J18 -> 0 | F15: ='2025 LL-CALCULATOR - UNITS'!J18 -> $ 0.00 | G15: ='2025 LL-CALCULATOR - UNITS'!M18 -> $ 158.08 | H15: ='2025 LL-CALCULATOR - UNITS'!N18 ->  | I15: ='2025 LL-CALCULATOR - UNITS'!T18 -> 
C16: ='2025 LL-CALCULATOR - UNITS'!F19 -> Revolver® | D16: ='2025 LL-CALCULATOR - UNITS'!G19 -> 87 fl oz | E16: ='2025 LL-CALCULATOR - UNITS'!J19 -> 0 | F16: ='2025 LL-CALCULATOR - UNITS'!J19 -> $ 0.00 | G16: ='2025 LL-CALCULATOR - UNITS'!M19 -> $ 727.32 | H16: ='2025 LL-CALCULATOR - UNITS'!N19 ->  | I16: ='2025 LL-CALCULATOR - UNITS'!T19 -> 
C17: ='2025 LL-CALCULATOR - UNITS'!F20 -> Solitare® WSL Herbicide | D17: ='2025 LL-CALCULATOR - UNITS'!G20 -> 2.5 gal | E17: ='2025 LL-CALCULATOR - UNITS'!J20 -> 0 | F17: ='2025 LL-CALCULATOR - UNITS'!J20 -> $ 0.00 | G17: ='2025 LL-CALCULATOR - UNITS'!M20 -> $ 249.28 | H17: ='2025 LL-CALCULATOR - UNITS'!N20 ->  | I17: ='2025 LL-CALCULATOR - UNITS'!T20 -> 
C18: ='2025 LL-CALCULATOR - UNITS'!F21 -> Specticle® FLO (1-6 units) | D18: ='2025 LL-CALCULATOR - UNITS'!G21 -> 1 gal | E18: ='2025 LL-CALCULATOR - UNITS'!J21 -> 0 | F18: ='2025 LL-CALCULATOR - UNITS'!J21 -> $ 0.00 | G18: ='2025 LL-CALCULATOR - UNITS'!M21 -> $ 1,946.30 | H18: ='2025 LL-CALCULATOR - UNITS'!N21 ->  | I18: ='2025 LL-CALCULATOR - UNITS'!T21 -> 
C19: ='2025 LL-CALCULATOR - UNITS'!F22 -> Specticle® FLO (7-13 units) | D19: ='2025 LL-CALCULATOR - UNITS'!G22 -> 1 gal | E19: ='2025 LL-CALCULATOR - UNITS'!J22 -> 0 | F19: ='2025 LL-CALCULATOR - UNITS'!J22 -> $ 0.00 | G19: ='2025 LL-CALCULATOR - UNITS'!M22 -> $ 1,862.59 | H19: ='2025 LL-CALCULATOR - UNITS'!N22 ->  | I19: ='2025 LL-CALCULATOR - UNITS'!T22 -> 
C20: ='2025 LL-CALCULATOR - UNITS'!F23 -> Specticle® FLO (14-25 units) | D20: ='2025 LL-CALCULATOR - UNITS'!G23 -> 1 gal | E20: ='2025 LL-CALCULATOR - UNITS'!J23 -> 0 | F20: ='2025 LL-CALCULATOR - UNITS'!J23 -> $ 0.00 | G20: ='2025 LL-CALCULATOR - UNITS'!M23 -> $ 1,625.74 | H20: ='2025 LL-CALCULATOR - UNITS'!N23 ->  | I20: ='2025 LL-CALCULATOR - UNITS'!T23 -> 
C21: ='2025 LL-CALCULATOR - UNITS'!F24 -> Specticle® FLO (26-51 units) | D21: ='2025 LL-CALCULATOR - UNITS'!G24 -> 1 gal | E21: ='2025 LL-CALCULATOR - UNITS'!J24 -> 0 | F21: ='2025 LL-CALCULATOR - UNITS'!J24 -> $ 0.00 | G21: ='2025 LL-CALCULATOR - UNITS'!M24 -> $ 1,455.08 | H21: ='2025 LL-CALCULATOR - UNITS'!N24 ->  | I21: ='2025 LL-CALCULATOR - UNITS'!T24 -> 
C22: ='2025 LL-CALCULATOR - UNITS'!F25 -> Specticle® FLO (52-99 units) | D22: ='2025 LL-CALCULATOR - UNITS'!G25 -> 1 gal | E22: ='2025 LL-CALCULATOR - UNITS'!J25 -> 0 | F22: ='2025 LL-CALCULATOR - UNITS'!J25 -> $ 0.00 | G22: ='2025 LL-CALCULATOR - UNITS'!M25 -> $ 1,455.08 | H22: ='2025 LL-CALCULATOR - UNITS'!N25 ->  | I22: ='2025 LL-CALCULATOR - UNITS'!T25 -> 
C23: ='2025 LL-CALCULATOR - UNITS'!F26 -> Specticle® FLO (100+ units) | D23: ='2025 LL-CALCULATOR - UNITS'!G26 -> 1 gal | E23: ='2025 LL-CALCULATOR - UNITS'!J26 -> 0 | F23: ='2025 LL-CALCULATOR - UNITS'!J26 -> $ 0.00 | G23: ='2025 LL-CALCULATOR - UNITS'!M26 -> $ 1,455.08 | H23: ='2025 LL-CALCULATOR - UNITS'!N26 ->  | I23: ='2025 LL-CALCULATOR - UNITS'!T26 -> 
C24: ='2025 LL-CALCULATOR - UNITS'!F27 -> Specticle® G | D24: ='2025 LL-CALCULATOR - UNITS'!G27 -> 50 lb | E24: ='2025 LL-CALCULATOR - UNITS'!J27 -> 0 | F24: ='2025 LL-CALCULATOR - UNITS'!J27 -> $ 0.00 | G24: ='2025 LL-CALCULATOR - UNITS'!M27 -> $ 123.98 | H24: ='2025 LL-CALCULATOR - UNITS'!N27 ->  | I24: ='2025 LL-CALCULATOR - UNITS'!T27 -> 
C25: ='2025 LL-CALCULATOR - UNITS'!F28 -> Tribute® Total | D25: ='2025 LL-CALCULATOR - UNITS'!G28 -> 6 oz | E25: ='2025 LL-CALCULATOR - UNITS'!J28 -> 0 | F25: ='2025 LL-CALCULATOR - UNITS'!J28 -> $ 0.00 | G25: ='2025 LL-CALCULATOR - UNITS'!M28 -> $ 405.08 | H25: ='2025 LL-CALCULATOR - UNITS'!N28 ->  | I25: ='2025 LL-CALCULATOR - UNITS'!T28 -> 
C26: ='2025 LL-CALCULATOR - UNITS'!F29 -> Durentis FAW Program: | H26: ='2025 LL-CALCULATOR - UNITS'!N29 -> $ 0.00
H27: =SUM(H12:H25) -> $ 0.00
C28: Summary
C29: Summary is provided as an estimate only. See program rules and conditions.
C31: ='2025 LL-CALCULATOR - UNITS'!E35 -> Estimated Total Before Off Invoice Discounts: | G31: ='2025 LL-CALCULATOR - UNITS'!H35 -> $ 0.00
C32: ='2025 LL-CALCULATOR - UNITS'!E36 -> Estimated Invoice Total: | G32: ='2025 LL-CALCULATOR - UNITS'!H36 -> $ 0.00
C33: ='2025 LL-CALCULATOR - UNITS'!E37 -> Estimated Off-Invoice Discount: | G33: ='2025 LL-CALCULATOR - UNITS'!H37 ->  | H33: ='2025 LL-CALCULATOR - UNITS'!I37 -> $ 0.00
C34: ='2025 LL-CALCULATOR - UNITS'!E38 -> Volume Buy Rebate, Envu Extras & Tier Rebates:
C35: ='2025 LL-CALCULATOR - UNITS'!E39 -> Estimated Total Volume Buy Rebate: | G35: ='2025 LL-CALCULATOR - UNITS'!H39 ->  | H35: ='2025 LL-CALCULATOR - UNITS'!I39 -> $ 0.00
C36: ='2025 LL-CALCULATOR - UNITS'!E40 -> Estimated Tier Rebate Amount: | G36: ='2025 LL-CALCULATOR - UNITS'!H40 -> n/a | H36: ='2025 LL-CALCULATOR - UNITS'!I40 -> n/a
C37: ='2025 LL-CALCULATOR - UNITS'!E41 -> Estimated Volume Buy Rebate (5 or more products): | G37: ='2025 LL-CALCULATOR - UNITS'!H41 -> n/a | H37: ='2025 LL-CALCULATOR - UNITS'!I41 -> n/a
C38: ='2025 LL-CALCULATOR - UNITS'!E42 -> Estimated Total Rebate: | G38: ='2025 LL-CALCULATOR - UNITS'!H42 ->  | H38: ='2025 LL-CALCULATOR - UNITS'!I42 -> $ 0.00
C39: ='2025 LL-CALCULATOR - UNITS'!E43 -> Estimated Total Savings (Rebates + Off Invoice Discounts): | G39: ='2025 LL-CALCULATOR - UNITS'!H43 ->  | H39: ='2025 LL-CALCULATOR - UNITS'!I43 -> $ 0.00
C40: ='2025 LL-CALCULATOR - UNITS'!E44 -> Estimated Net Total after Rebates & Discounts: | G40: ='2025 LL-CALCULATOR - UNITS'!H44 -> $ 0.00
C42: ='2025 LL-CALCULATOR - UNITS'!E46 -> Estimated MER points to be earned: 0
C44: TOPCHOICE AND TRIPLE CROWN GOLF ARE RESTRICTED USE PESTICIDES. *Pricing for all states except CA or WA. Must be purchased on a single invoice to receive volume discount price. Purchase tier amount credited for non-agency products is predetermined by Envu. **Must be registered in My Envu Rewards and accept the current Terms and Conditions to participate. ***Customer Fall Solutions and NOW Solutions promotional cumulative purchases (Aug. 1 - Dec. 5, 2025) must be $5,000 or more to qualify for program rebates. Specticle FLO and Ronstar FLO herbicides are not eligible for Envu Extras and tier rebates. New members signed up before Dec. 31, 2025, will receive 2025 NOW/Fall Solutions rebates. All rebates for 2025 NOW/Fall Solutions will be paid in points, which can be redeemed for thousands of catalog items, distributor credits and/or company checks (no checks can be issued to a third party). All products must be invoiced between Aug. 1 and Sept. 30, 2025, to qualify for NOW Solutions. Rebate calculations will be based on the date of actual product invoice and calculator tools are provided for estimation purposes only. Rebates will only be paid or delivered to the company or name listed on the invoice. Please allow for rebates to be fulfilled by July 31, 2026. End users are only eligible for one Envu incentive program on these invoiced products. Must be an end user with MER membership and accept current Terms and Conditions. Resale of product(s) purchased within this program will not qualify for rebates. If questions arise, please contact MER at 1-888-456-6464 or email info@myenvurewards.com. Envu reserves the right to modify any portion thereof, or discontinue this program without prior notice.
C53: Title Transfer value shown is Redemption Value for the Programs †ALWAYS READ AND FOLLOW LABEL INSTRUCTIONS. Environmental Science U.S. LLC, 5000 CentreGreen Way, Suite 400, Cary, NC 27513. For additional product information, call toll-free 1-800-331-2867. www.envu.com. Please verify state registration of these products in your state before selling, using or distributing. Not all products are registered in all states. Envu, the Envu logo and product logos are trademarks owned by Environmental Science U.S. LLC or one of its affiliates. Other trademarks are the property of their respective owners. ©2025 Environmental Science U.S. LLC.

Sheet REBATE MATRIX (NOW) (hidden)
P1: =COUNTIF(Rebate_Lookup[Volume Buy Counter],TRUE) -> 0
B2: SKU CODE | C2: Agency/TT | D2: Description | E2: Size | F2: Instances | G2: MOQ_1 | H2: MOQ_2 | I2: MOQ_3 | J2: REB_MOQ_1 | K2: REB_MOQ_2 | L2: REB_MOQ_3 | M2: Order Form Quantity | N2: Qualified Rebate Tier | O2: Column1 | P2: Volume Buy Counter
B3: 4250930 | C3: =INDEX(PRICING[Agency/TT],MATCH(Rebate_Lookup[[#This Row],[SKU CODE]],PRICING[SKU],0)) -> TT | D3: =INDEX(PRICING[Product],MATCH(B3,PRICING[SKU],0)) -> 26 GT | E3: =INDEX(PRICING[Size],MATCH(Rebate_Lookup[[#This Row],[SKU CODE]],PRICING[SKU],0)) -> 2.5 gal | F3: =COUNTIFS(PRICING[SKU],B3) -> 1 | J3: =SUMIFS(PRICING[Rebate $],PRICING[SKU],Rebate_Lookup[[#This Row],[SKU CODE]],PRICING[Set],1) -> 0 | K3: =SUMIFS(PRICING[Rebate $],PRICING[SKU],Rebate_Lookup[[#This Row],[SKU CODE]],PRICING[Set],2) -> 0 | L3: =SUMIFS(PRICING[Rebate $],PRICING[SKU],Rebate_Lookup[[#This Row],[SKU CODE]],PRICING[Set],3) -> 0 | M3: =SUMIF('2025 LL-CALCULATOR - UNITS'!A:A,Rebate_Lookup[[#This Row],[SKU CODE]],'2025 LL-CALCULATOR - UNITS'!J:J) -> 0 | N3: =IF(Rebate_Lookup[[#This Row],[Instances]]=1,1, IF(AND(Rebate_Lookup[[#This Row],[Instances]]=2,Rebate_Lookup[[#This Row],[Order Form Quantity]]<Rebate_Lookup[[#This Row],[MOQ_2]]),1,IF(AND(Rebate_Lookup[[#This Row],[Instances]]=2,Rebate_Lookup[[#This Row],[Order Form Quantity]]>=Rebate_Lookup[[#This Row],[MOQ_2]]),2, IF(AND(Rebate_Lookup[[#This Row],[Instances]]=3,Rebate_Lookup[[#This Row],[Order Form Quantity]]<Rebate_Lookup[[#This Row],[MOQ_2]]),1,IF(AND(Rebate_Lookup[[#This Row],[Instances]]=3,Rebate_Lookup[[#This Row],[MOQ_2]]<=Rebate_Lookup[[#This Row],[Order Form Quantity]],Rebate_Lookup[[#This Row],[Order Form Quantity]]<Rebate_Lookup[[#This Row],[MOQ_3]]),2,IF(AND(Rebate_Lookup[[#This Row],[Instances]]=3,Rebate_Lookup[[#This Row],[Order Form Quantity]]>=Rebate_Lookup[[#This Row],[MOQ_3]]),3)))))) -> 1 | O3: =COUNTIF('2025 LL-CALCULATOR - UNITS'!A:A,Rebate_Lookup[[#This Row],[SKU CODE]]) -> 0 | P3: 0
B4: D00000898 | C4: =INDEX(PRICING[Agency/TT],MATCH(Rebate_Lookup[[#This Row],[SKU CODE]],PRICING[SKU],0)) -> TT | D4: =INDEX(PRICING[Product],MATCH(B4,PRICING[SKU],0)) -> Armada 50 WDG | E4: =INDEX(PRICING[Size],MATCH(Rebate_Lookup[[#This Row],[SKU CODE]],PRICING[SKU],0)) -> 2 lb | F4: =COUNTIFS(PRICING[SKU],B4) -> 1 | J4: =SUMIFS(PRICING[Rebate $],PRICING[SKU],Rebate_Lookup[[#This Row],[SKU CODE]],PRICING[Set],1) -> $10.00 | K4: =SUMIFS(PRICING[Rebate $],PRICING[SKU],Rebate_Lookup[[#This Row],[SKU CODE]],PRICING[Set],2) -> 0 | L4: =SUMIFS(PRICING[Rebate $],PRICING[SKU],Rebate_Lookup[[#This Row],[SKU CODE]],PRICING[Set],3) -> 0 | M4: =SUMIF('2025 LL-CALCULATOR - UNITS'!A:A,Rebate_Lookup[[#This Row],[SKU CODE]],'2025 LL-CALCULATOR - UNITS'!J:J) -> 0 | N4: =IF(Rebate_Lookup[[#This Row],[Instances]]=1,1, IF(AND(Rebate_Lookup[[#This Row],[Instances]]=2,Rebate_Lookup[[#This Row],[Order Form Quantity]]<Rebate_Lookup[[#This Row],[MOQ_2]]),1,IF(AND(Rebate_Lookup[[#This Row],[Instances]]=2,Rebate_Lookup[[#This Row],[Order Form Quantity]]>=Rebate_Lookup[[#This Row],[MOQ_2]]),2, IF(AND(Rebate_Lookup[[#This Row],[Instances]]=3,Rebate_Lookup[[#This Row],[Order Form Quantity]]<Rebate_Lookup[[#This Row],[MOQ_2]]),1,IF(AND(Rebate_Lookup[[#This Row],[Instances]]=3,Rebate_Lookup[[#This Row],[MOQ_2]]<=Rebate_Lookup[[#This Row],[Order Form Quantity]],Rebate_Lookup[[#This Row],[Order Form Quantity]]<Rebate_Lookup[[#This Row],[MOQ_3]]),2,IF(AND(Rebate_Lookup[[#This Row],[Instances]]=3,Rebate_Lookup[[#This Row],[Order Form Quantity]]>=Rebate_Lookup[[#This Row],[MOQ_3]]),3)))))) -> 1 | O4: =COUNTIF('2025 LL-CALCULATOR - UNITS'!A:A,Rebate_Lookup[[#This Row],[SKU CODE]]) -> 0 | P4: 0
B5: D00000907 | C5: =INDEX(PRICING[Agency/TT],MATCH(Rebate_Lookup[[#This Row],[SKU CODE]],PRICING[SKU],0)) -> A | D5: =INDEX(PRICING[Product],MATCH(B5,PRICING[SKU],0)) -> Banol® | E5: =INDEX(PRICING[Size],MATCH(Rebate_Lookup[[#This Row],[SKU CODE]],PRICING[SKU],0)) -> 2.5 gal | F5: =COUNTIFS(PRICING[SKU],B5) -> 2 | G5: 1 | H5: 2 | J5: =SUMIFS(PRICING[Rebate $],PRICING[SKU],Rebate_Lookup[[#This Row],[SKU CODE]],PRICING[Set],1) -> 0 | K5: =SUMIFS(PRICING[Rebate $],PRICING[SKU],Rebate_Lookup[[#This Row],[SKU CODE]],PRICING[Set],2) -> $90.00 | L5: =SUMIFS(PRICING[Rebate $],PRICING[SKU],Rebate_Lookup[[#This Row],[SKU CODE]],PRICING[Set],3) -> 0 | M5: =SUMIF('2025 LL-CALCULATOR - UNITS'!A:A,Rebate_Lookup[[#This Row],[SKU CODE]],'2025 LL-CALCULATOR - UNITS'!J:J) -> 0 | N5: =IF(Rebate_Lookup[[#This Row],[Instances]]=1,1, IF(AND(Rebate_Lookup[[#This Row],[Instances]]=2,Rebate_Lookup[[#This Row],[Order Form Quantity]]<Rebate_Lookup[[#This Row],[MOQ_2]]),1,IF(AND(Rebate_Lookup[[#This Row],[Instances]]=2,Rebate_Lookup[[#This Row],[Order Form Quantity]]>=Rebate_Lookup[[#This Row],[MOQ_2]]),2, IF(AND(Rebate_Lookup[[#This Row],[Instances]]=3,Rebate_Lookup[[#This Row],[Order Form Quantity]]<Rebate_Lookup[[#This Row],[MOQ_2]]),1,IF(AND(Rebate_Lookup[[#This Row],[Instances]]=3,Rebate_Lookup[[#This Row],[MOQ_2]]<=Rebate_Lookup[[#This Row],[Order Form Quantity]],Rebate_Lookup[[#This Row],[Order Form Quantity]]<Rebate_Lookup[[#This Row],[MOQ_3]]),2,IF(AND(Rebate_Lookup[[#This Row],[Instances]]=3,Rebate_Lookup[[#This Row],[Order Form Quantity]]>=Rebate_Lookup[[#This Row],[MOQ_3]]),3)))))) -> 1 | O5: =COUNTIF('2025 LL-CALCULATOR - UNITS'!A:A,Rebate_Lookup[[#This Row],[SKU CODE]]) -> 0 | P5: =Rebate_Lookup[[#This Row],[Order Form Quantity]]>=2 -> FALSE
B6: D00000908 | C6: =INDEX(PRICING[Agency/TT],MATCH(Rebate_Lookup[[#This Row],[SKU CODE]],PRICING[SKU],0)) -> A | D6: =INDEX(PRICING[Product],MATCH(B6,PRICING[SKU],0)) -> Broadform | E6: =INDEX(PRICING[Size],MATCH(Rebate_Lookup[[#This Row],[SKU CODE]],PRICING[SKU],0)) -> 12 oz | F6: =COUNTIFS(PRICING[SKU],B6) -> 3 | G6: 1 | H6: 16 | I6: 32 | J6: =SUMIFS(PRICING[Rebate $],PRICING[SKU],Rebate_Lookup[[#This Row],[SKU CODE]],PRICING[Set],1) -> 0 | K6: =SUMIFS(PRICING[Rebate $],PRICING[SKU],Rebate_Lookup[[#This Row],[SKU CODE]],PRICING[Set],2) -> 0 | L6: =SUMIFS(PRICING[Rebate $],PRICING[SKU],Rebate_Lookup[[#This Row],[SKU CODE]],PRICING[Set],3) -> 0 | M6: =SUMIF('2025 LL-CALCULATOR - UNITS'!A:A,Rebate_Lookup[[#This Row],[SKU CODE]],'2025 LL-CALCULATOR - UNITS'!J:J) -> 0 | N6: =IF(Rebate_Lookup[[#This Row],[Instances]]=1,1, IF(AND(Rebate_Lookup[[#This Row],[Instances]]=2,Rebate_Lookup[[#This Row],[Order Form Quantity]]<Rebate_Lookup[[#This Row],[MOQ_2]]),1,IF(AND(Rebate_Lookup[[#This Row],[Instances]]=2,Rebate_Lookup[[#This Row],[Order Form Quantity]]>=Rebate_Lookup[[#This Row],[MOQ_2]]),2, IF(AND(Rebate_Lookup[[#This Row],[Instances]]=3,Rebate_Lookup[[#This Row],[Order Form Quantity]]<Rebate_Lookup[[#This Row],[MOQ_2]]),1,IF(AND(Rebate_Lookup[[#This Row],[Instances]]=3,Rebate_Lookup[[#This Row],[MOQ_2]]<=Rebate_Lookup[[#This Row],[Order Form Quantity]],Rebate_Lookup[[#This Row],[Order Form Quantity]]<Rebate_Lookup[[#This Row],[MOQ_3]]),2,IF(AND(Rebate_Lookup[[#This Row],[Instances]]=3,Rebate_Lookup[[#This Row],[Order Form Quantity]]>=Rebate_Lookup[[#This Row],[MOQ_3]]),3)))))) -> 1 | O6: =COUNTIF('2025 LL-CALCULATOR - UNITS'!A:A,Rebate_Lookup[[#This Row],[SKU CODE]]) -> 0 | P6: =Rebate_Lookup[[#This Row],[Order Form Quantity]]>=16 -> FALSE
B7: D00000623 | C7: =INDEX(PRICING[Agency/TT],MATCH(Rebate_Lookup[[#This Row],[SKU CODE]],PRICING[SKU],0)) -> A | D7: =INDEX(PRICING[Product],MATCH(B7,PRICING[SKU],0)) -> Castlon™ | E7: =INDEX(PRICING[Size],MATCH(Rebate_Lookup[[#This Row],[SKU CODE]],PRICING[SKU],0)) -> 1 gal | F7: =COUNTIFS(PRICING[SKU],B7) -> 3 | G7: 1 | H7: 5 | I7: 10 | J7: =SUMIFS(PRICING[Rebate $],PRICING[SKU],Rebate_Lookup[[#This Row],[SKU CODE]],PRICING[Set],1) -> 0 | K7: =SUMIFS(PRICING[Rebate $],PRICING[SKU],Rebate_Lookup[[#This Row],[SKU CODE]],PRICING[Set],2) -> $525.00 | L7: =SUMIFS(PRICING[Rebate $],PRICING[SKU],Rebate_Lookup[[#This Row],[SKU CODE]],PRICING[Set],3) -> $585.00 | M7: =SUMIF('2025 LL-CALCULATOR - UNITS'!A:A,Rebate_Lookup[[#This Row],[SKU CODE]],'2025 LL-CALCULATOR - UNITS'!J:J) -> 0 | N7: =IF(Rebate_Lookup[[#This Row],[Instances]]=1,1, IF(AND(Rebate_Lookup[[#This Row],[Instances]]=2,Rebate_Lookup[[#This Row],[Order Form Quantity]]<Rebate_Lookup[[#This Row],[MOQ_2]]),1,IF(AND(Rebate_Lookup[[#This Row],[Instances]]=2,Rebate_Lookup[[#This Row],[Order Form Quantity]]>=Rebate_Lookup[[#This Row],[MOQ_2]]),2, IF(AND(Rebate_Lookup[[#This Row],[Instances]]=3,Rebate_Lookup[[#This Row],[Order Form Quantity]]<Rebate_Lookup[[#This Row],[MOQ_2]]),1,IF(AND(Rebate_Lookup[[#This Row],[Instances]]=3,Rebate_Lookup[[#This Row],[MOQ_2]]<=Rebate_Lookup[[#This Row],[Order Form Quantity]],Rebate_Lookup[[#This Row],[Order Form Quantity]]<Rebate_Lookup[[#This Row],[MOQ_3]]),2,IF(AND(Rebate_Lookup[[#This Row],[Instances]]=3,Rebate_Lookup[[#This Row],[Order Form Quantity]]>=Rebate_Lookup[[#This Row],[MOQ_3]]),3)))))) -> 1 | O7: =COUNTIF('2025 LL-CALCULATOR - UNITS'!A:A,Rebate_Lookup[[#This Row],[SKU CODE]]) -> 0 | P7: =Rebate_Lookup[[#This Row],[Order Form Quantity]]>=5 -> FALSE
B8: D00000624 | C8: =INDEX(PRICING[Agency/TT],MATCH(Rebate_Lookup[[#This Row],[SKU CODE]],PRICING[SKU],0)) -> A | D8: =INDEX(PRICING[Product],MATCH(B8,PRICING[SKU],0)) -> Castlon™ | E8: =INDEX(PRICING[Size],MATCH(Rebate_Lookup[[#This Row],[SKU CODE]],PRICING[SKU],0)) -> 16 oz | F8: =COUNTIFS(PRICING[SKU],B8) -> 3 | G8: 1 | H8: 4 | J8: =SUMIFS(PRICING[Rebate $],PRICING[SKU],Rebate_Lookup[[#This Row],[SKU CODE]],PRICING[Set],1) -> 0 | K8: =SUMIFS(PRICING[Rebate $],PRICING[SKU],Rebate_Lookup[[#This Row],[SKU CODE]],PRICING[Set],2) -> $50.00 | L8: =SUMIFS(PRICING[Rebate $],PRICING[SKU],Rebate_Lookup[[#This Row],[SKU CODE]],PRICING[Set],3) -> $105.00 | M8: =SUMIF('2025 LL-CALCULATOR - UNITS'!A:A,Rebate_Lookup[[#This Row],[SKU CODE]],'2025 LL-CALCULATOR - UNITS'!J:J) -> 0 | N8: =IF(Rebate_Lookup[[#This Row],[Instances]]=1,1, IF(AND(Rebate_Lookup[[#This Row],[Instances]]=2,Rebate_Lookup[[#This Row],[Order Form Quantity]]<Rebate_Lookup[[#This Row],[MOQ_2]]),1,IF(AND(Rebate_Lookup[[#This Row],[Instances]]=2,Rebate_Lookup[[#This Row],[Order Form Quantity]]>=Rebate_Lookup[[#This Row],[MOQ_2]]),2, IF(AND(Rebate_Lookup[[#This Row],[Instances]]=3,Rebate_Lookup[[#This Row],[Order Form Quantity]]<Rebate_Lookup[[#This Row],[MOQ_2]]),1,IF(AND(Rebate_Lookup[[#This Row],[Instances]]=3,Rebate_Lookup[[#This Row],[MOQ_2]]<=Rebate_Lookup[[#This Row],[Order Form Quantity]],Rebate_Lookup[[#This Row],[Order Form Quantity]]<Rebate_Lookup[[#This Row],[MOQ_3]]),2,IF(AND(Rebate_Lookup[[#This Row],[Instances]]=3,Rebate_Lookup[[#This Row],[Order Form Quantity]]>=Rebate_Lookup[[#This Row],[MOQ_3]]),3)))))) -> 1 | O8: =COUNTIF('2025 LL-CALCULATOR - UNITS'!A:A,Rebate_Lookup[[#This Row],[SKU CODE]]) -> 0 | P8: =Rebate_Lookup[[#This Row],[Order Form Quantity]]>=4 -> FALSE
B9: D00000914 | C9: =INDEX(PRICING[Agency/TT],MATCH(Rebate_Lookup[[#This Row],[SKU CODE]],PRICING[SKU],0)) -> A | D9: =INDEX(PRICING[Product],MATCH(B9,PRICING[SKU],0)) -> Chipco® Signature™ | E9: =INDEX(PRICING[Size],MATCH(Rebate_Lookup[[#This Row],[SKU CODE]],PRICING[SKU],0)) -> 11 lb | F9: =COUNTIFS(PRICING[SKU],B9) -> 2 | G9: 1 | H9: 9 | J9: =SUMIFS(PRICING[Rebate $],PRICING[SKU],Rebate_Lookup[[#This Row],[SKU CODE]],PRICING[Set],1) -> 0 | K9: =SUMIFS(PRICING[Rebate $],PRICING[SKU],Rebate_Lookup[[#This Row],[SKU CODE]],PRICING[Set],2) -> $5.00 | L9: =SUMIFS(PRICING[Rebate $],PRICING[SKU],Rebate_Lookup[[#This Row],[SKU CODE]],PRICING[Set],3) -> 0 | M9: =SUMIF('2025 LL-CALCULATOR - UNITS'!A:A,Rebate_Lookup[[#This Row],[SKU CODE]],'2025 LL-CALCULATOR - UNITS'!J:J) -> 0 | N9: =IF(Rebate_Lookup[[#This Row],[Instances]]=1,1, IF(AND(Rebate_Lookup[[#This Row],[Instances]]=2,Rebate_Lookup[[#This Row],[Order Form Quantity]]<Rebate_Lookup[[#This Row],[MOQ_2]]),1,IF(AND(Rebate_Lookup[[#This Row],[Instances]]=2,Rebate_Lookup[[#This Row],[Order Form Quantity]]>=Rebate_Lookup[[#This Row],[MOQ_2]]),2, IF(AND(Rebate_Lookup[[#This Row],[Instances]]=3,Rebate_Lookup[[#This Row],[Order Form Quantity]]<Rebate_Lookup[[#This Row],[MOQ_2]]),1,IF(AND(Rebate_Lookup[[#This Row],[Instances]]=3,Rebate_Lookup[[#This Row],[MOQ_2]]<=Rebate_Lookup[[#This Row],[Order Form Quantity]],Rebate_Lookup[[#This Row],[Order Form Quantity]]<Rebate_Lookup[[#This Row],[MOQ_3]]),2,IF(AND(Rebate_Lookup[[#This Row],[Instances]]=3,Rebate_Lookup[[#This Row],[Order Form Quantity]]>=Rebate_Lookup[[#This Row],[MOQ_3]]),3)))))) -> 1 | O9: =COUNTIF('2025 LL-CALCULATOR - UNITS'!A:A,Rebate_Lookup[[#This Row],[SKU CODE]]) -> 0 | P9: =Rebate_Lookup[[#This Row],[Order Form Quantity]]>=9 -> FALSE
B10: D00001373 | C10: =INDEX(PRICING[Agency/TT],MATCH(Rebate_Lookup[[#This Row],[SKU CODE]],PRICING[SKU],0)) -> A | D10: =INDEX(PRICING[Product],MATCH(B10,PRICING[SKU],0)) -> Densicor® | E10: =INDEX(PRICING[Size],MATCH(Rebate_Lookup[[#This Row],[SKU CODE]],PRICING[SKU],0)) -> 51 oz | F10: =COUNTIFS(PRICING[SKU],B10) -> 2 | G10: 1 | H10: 3 | J10: =SUMIFS(PRICING[Rebate $],PRICING[SKU],Rebate_Lookup[[#This Row],[SKU CODE]],PRICING[Set],1) -> 0 | K10: =SUMIFS(PRICING[Rebate $],PRICING[SKU],Rebate_Lookup[[#This Row],[SKU CODE]],PRICING[Set],2) -> $100.00 | L10: =SUMIFS(PRICING[Rebate $],PRICING[SKU],Rebate_Lookup[[#This Row],[SKU CODE]],PRICING[Set],3) -> 0 | M10: =SUMIF('2025 LL-CALCULATOR - UNITS'!A:A,Rebate_Lookup[[#This Row],[SKU CODE]],'2025 LL-CALCULATOR - UNITS'!J:J) -> 0 | N10: =IF(Rebate_Lookup[[#This Row],[Instances]]=1,1, IF(AND(Rebate_Lookup[[#This Row],[Instances]]=2,Rebate_Lookup[[#This Row],[Order Form Quantity]]<Rebate_Lookup[[#This Row],[MOQ_2]]),1,IF(AND(Rebate_Lookup[[#This Row],[Instances]]=2,Rebate_Lookup[[#This Row],[Order Form Quantity]]>=Rebate_Lookup[[#This Row],[MOQ_2]]),2, IF(AND(Rebate_Lookup[[#This Row],[Instances]]=3,Rebate_Lookup[[#This Row],[Order Form Quantity]]<Rebate_Lookup[[#This Row],[MOQ_2]]),1,IF(AND(Rebate_Lookup[[#This Row],[Instances]]=3,Rebate_Lookup[[#This Row],[MOQ_2]]<=Rebate_Lookup[[#This Row],[Order Form Quantity]],Rebate_Lookup[[#This Row],[Order Form Quantity]]<Rebate_Lookup[[#This Row],[MOQ_3]]),2,IF(AND(Rebate_Lookup[[#This Row],[Instances]]=3,Rebate_Lookup[[#This Row],[Order Form Quantity]]>=Rebate_Lookup[[#This Row],[MOQ_3]]),3)))))) -> 1 | O10: =COUNTIF('2025 LL-CALCULATOR - UNITS'!A:A,Rebate_Lookup[[#This Row],[SKU CODE]]) -> 0 | P10: =Rebate_Lookup[[#This Row],[Order Form Quantity]]>=3 -> FALSE
B11: D00000934 | C11: =INDEX(PRICING[Agency/TT],MATCH(Rebate_Lookup[[#This Row],[SKU CODE]],PRICING[SKU],0)) -> A | D11: =INDEX(PRICING[Product],MATCH(B11,PRICING[SKU],0)) -> Exteris® Stressgard® | E11: =INDEX(PRICING[Size],MATCH(Rebate_Lookup[[#This Row],[SKU CODE]],PRICING[SKU],0)) -> 2.5 gal | F11: =COUNTIFS(PRICING[SKU],B11) -> 2 | G11: 1 | H11: 6 | J11: =SUMIFS(PRICING[Rebate $],PRICING[SKU],Rebate_Lookup[[#This Row],[SKU CODE]],PRICING[Set],1) -> 0 | K11: =SUMIFS(PRICING[Rebate $],PRICING[SKU],Rebate_Lookup[[#This Row],[SKU CODE]],PRICING[Set],2) -> $45.00 | L11: =SUMIFS(PRICING[Rebate $],PRICING[SKU],Rebate_Lookup[[#This Row],[SKU CODE]],PRICING[Set],3) -> 0 | M11: =SUMIF('2025 LL-CALCULATOR - UNITS'!A:A,Rebate_Lookup[[#This Row],[SKU CODE]],'2025 LL-CALCULATOR - UNITS'!J:J) -> 0 | N11: =IF(Rebate_Lookup[[#This Row],[Instances]]=1,1, IF(AND(Rebate_Lookup[[#This Row],[Instances]]=2,Rebate_Lookup[[#This Row],[Order Form Quantity]]<Rebate_Lookup[[#This Row],[MOQ_2]]),1,IF(AND(Rebate_Lookup[[#This Row],[Instances]]=2,Rebate_Lookup[[#This Row],[Order Form Quantity]]>=Rebate_Lookup[[#This Row],[MOQ_2]]),2, IF(AND(Rebate_Lookup[[#This Row],[Instances]]=3,Rebate_Lookup[[#This Row],[Order Form Quantity]]<Rebate_Lookup[[#This Row],[MOQ_2]]),1,IF(AND(Rebate_Lookup[[#This Row],[Instances]]=3,Rebate_Lookup[[#This Row],[MOQ_2]]<=Rebate_Lookup[[#This Row],[Order Form Quantity]],Rebate_Lookup[[#This Row],[Order Form Quantity]]<Rebate_Lookup[[#This Row],[MOQ_3]]),2,IF(AND(Rebate_Lookup[[#This Row],[Instances]]=3,Rebate_Lookup[[#This Row],[Order Form Quantity]]>=Rebate_Lookup[[#This Row],[MOQ_3]]),3)))))) -> 1 | O11: =COUNTIF('2025 LL-CALCULATOR - UNITS'!A:A,Rebate_Lookup[[#This Row],[SKU CODE]]) -> 0 | P11: =Rebate_Lookup[[#This Row],[Order Form Quantity]]>=6 -> FALSE
B12: 11008377 | C12: =INDEX(PRICING[Agency/TT],MATCH(Rebate_Lookup[[#This Row],[SKU CODE]],PRICING[SKU],0)) -> A | D12: =INDEX(PRICING[Product],MATCH(B12,PRICING[SKU],0)) -> Fame® +C Fungicide | E12: =INDEX(PRICING[Size],MATCH(Rebate_Lookup[[#This Row],[SKU CODE]],PRICING[SKU],0)) -> 2.5 gal | F12: =COUNTIFS(PRICING[SKU],B12) -> 1 | G12: 1 | J12: =SUMIFS(PRICING[Rebate $],PRICING[SKU],Rebate_Lookup[[#This Row],[SKU CODE]],PRICING[Set],1) -> 0 | K12: =SUMIFS(PRICING[Rebate $],PRICING[SKU],Rebate_Lookup[[#This Row],[SKU CODE]],PRICING[Set],2) -> 0 | L12: =SUMIFS(PRICING[Rebate $],PRICING[SKU],Rebate_Lookup[[#This Row],[SKU CODE]],PRICING[Set],3) -> 0 | M12: =SUMIF('2025 LL-CALCULATOR - UNITS'!A:A,Rebate_Lookup[[#This Row],[SKU CODE]],'2025 LL-CALCULATOR - UNITS'!J:J) -> 0 | N12: =IF(Rebate_Lookup[[#This Row],[Instances]]=1,1, IF(AND(Rebate_Lookup[[#This Row],[Instances]]=2,Rebate_Lookup[[#This Row],[Order Form Quantity]]<Rebate_Lookup[[#This Row],[MOQ_2]]),1,IF(AND(Rebate_Lookup[[#This Row],[Instances]]=2,Rebate_Lookup[[#This Row],[Order Form Quantity]]>=Rebate_Lookup[[#This Row],[MOQ_2]]),2, IF(AND(Rebate_Lookup[[#This Row],[Instances]]=3,Rebate_Lookup[[#This Row],[Order Form Quantity]]<Rebate_Lookup[[#This Row],[MOQ_2]]),1,IF(AND(Rebate_Lookup[[#This Row],[Instances]]=3,Rebate_Lookup[[#This Row],[MOQ_2]]<=Rebate_Lookup[[#This Row],[Order Form Quantity]],Rebate_Lookup[[#This Row],[Order Form Quantity]]<Rebate_Lookup[[#This Row],[MOQ_3]]),2,IF(AND(Rebate_Lookup[[#This Row],[Instances]]=3,Rebate_Lookup[[#This Row],[Order Form Quantity]]>=Rebate_Lookup[[#This Row],[MOQ_3]]),3)))))) -> 1 | O12: =COUNTIF('2025 LL-CALCULATOR - UNITS'!A:A,Rebate_Lookup[[#This Row],[SKU CODE]]) -> 0 | P12: 0
B13: 11008557 | C13: =INDEX(PRICING[Agency/TT],MATCH(Rebate_Lookup[[#This Row],[SKU CODE]],PRICING[SKU],0)) -> A | D13: =INDEX(PRICING[Product],MATCH(B13,PRICING[SKU],0)) -> Fame® SC Fungicide | E13: =INDEX(PRICING[Size],MATCH(Rebate_Lookup[[#This Row],[SKU CODE]],PRICING[SKU],0)) -> 64 oz | F13: =COUNTIFS(PRICING[SKU],B13) -> 2 | G13: 1 | H13: 4 | J13: =SUMIFS(PRICING[Rebate $],PRICING[SKU],Rebate_Lookup[[#This Row],[SKU CODE]],PRICING[Set],1) -> 0 | K13: =SUMIFS(PRICING[Rebate $],PRICING[SKU],Rebate_Lookup[[#This Row],[SKU CODE]],PRICING[Set],2) -> $410.00 | L13: =SUMIFS(PRICING[Rebate $],PRICING[SKU],Rebate_Lookup[[#This Row],[SKU CODE]],PRICING[Set],3) -> 0 | M13: =SUMIF('2025 LL-CALCULATOR - UNITS'!A:A,Rebate_Lookup[[#This Row],[SKU CODE]],'2025 LL-CALCULATOR - UNITS'!J:J) -> 0 | N13: =IF(Rebate_Lookup[[#This Row],[Instances]]=1,1, IF(AND(Rebate_Lookup[[#This Row],[Instances]]=2,Rebate_Lookup[[#This Row],[Order Form Quantity]]<Rebate_Lookup[[#This Row],[MOQ_2]]),1,IF(AND(Rebate_Lookup[[#This Row],[Instances]]=2,Rebate_Lookup[[#This Row],[Order Form Quantity]]>=Rebate_Lookup[[#This Row],[MOQ_2]]),2, IF(AND(Rebate_Lookup[[#This Row],[Instances]]=3,Rebate_Lookup[[#This Row],[Order Form Quantity]]<Rebate_Lookup[[#This Row],[MOQ_2]]),1,IF(AND(Rebate_Lookup[[#This Row],[Instances]]=3,Rebate_Lookup[[#This Row],[MOQ_2]]<=Rebate_Lookup[[#This Row],[Order Form Quantity]],Rebate_Lookup[[#This Row],[Order Form Quantity]]<Rebate_Lookup[[#This Row],[MOQ_3]]),2,IF(AND(Rebate_Lookup[[#This Row],[Instances]]=3,Rebate_Lookup[[#This Row],[Order Form Quantity]]>=Rebate_Lookup[[#This Row],[MOQ_3]]),3)))))) -> 1 | O13: =COUNTIF('2025 LL-CALCULATOR - UNITS'!A:A,Rebate_Lookup[[#This Row],[SKU CODE]]) -> 1 | P13: =Rebate_Lookup[[#This Row],[Order Form Quantity]]>=4 -> FALSE
B14: 11009500 | C14: =INDEX(PRICING[Agency/TT],MATCH(Rebate_Lookup[[#This Row],[SKU CODE]],PRICING[SKU],0)) -> A | D14: =INDEX(PRICING[Product],MATCH(B14,PRICING[SKU],0)) -> Fame® SC Fungicide | E14: =INDEX(PRICING[Size],MATCH(Rebate_Lookup[[#This Row],[SKU CODE]],PRICING[SKU],0)) -> 2.5 gal | F14: =COUNTIFS(PRICING[SKU],B14) -> 3 | G14: 1 | H14: 2 | I14: 4 | J14: =SUMIFS(PRICING[Rebate $],PRICING[SKU],Rebate_Lookup[[#This Row],[SKU CODE]],PRICING[Set],1) -> 0 | K14: =SUMIFS(PRICING[Rebate $],PRICING[SKU],Rebate_Lookup[[#This Row],[SKU CODE]],PRICING[Set],2) -> $1,450.00 | L14: =SUMIFS(PRICING[Rebate $],PRICING[SKU],Rebate_Lookup[[#This Row],[SKU CODE]],PRICING[Set],3) -> $1,600.00 | M14: =SUMIF('2025 LL-CALCULATOR - UNITS'!A:A,Rebate_Lookup[[#This Row],[SKU CODE]],'2025 LL-CALCULATOR - UNITS'!J:J) -> 0 | N14: =IF(Rebate_Lookup[[#This Row],[Instances]]=1,1, IF(AND(Rebate_Lookup[[#This Row],[Instances]]=2,Rebate_Lookup[[#This Row],[Order Form Quantity]]<Rebate_Lookup[[#This Row],[MOQ_2]]),1,IF(AND(Rebate_Lookup[[#This Row],[Instances]]=2,Rebate_Lookup[[#This Row],[Order Form Quantity]]>=Rebate_Lookup[[#This Row],[MOQ_2]]),2, IF(AND(Rebate_Lookup[[#This Row],[Instances]]=3,Rebate_Lookup[[#This Row],[Order Form Quantity]]<Rebate_Lookup[[#This Row],[MOQ_2]]),1,IF(AND(Rebate_Lookup[[#This Row],[Instances]]=3,Rebate_Lookup[[#This Row],[MOQ_2]]<=Rebate_Lookup[[#This Row],[Order Form Quantity]],Rebate_Lookup[[#This Row],[Order Form Quantity]]<Rebate_Lookup[[#This Row],[MOQ_3]]),2,IF(AND(Rebate_Lookup[[#This Row],[Instances]]=3,Rebate_Lookup[[#This Row],[Order Form Quantity]]>=Rebate_Lookup[[#This Row],[MOQ_3]]),3)))))) -> 1 | O14: =COUNTIF('2025 LL-CALCULATOR - UNITS'!A:A,Rebate_Lookup[[#This Row],[SKU CODE]]) -> 1 | P14: =Rebate_Lookup[[#This Row],[Order Form Quantity]]>=2 -> FALSE
B15: 11008393 | C15: =INDEX(PRICING[Agency/TT],MATCH(Rebate_Lookup[[#This Row],[SKU CODE]],PRICING[SKU],0)) -> A | D15: =INDEX(PRICING[Product],MATCH(B15,PRICING[SKU],0)) -> Fame® SC Fungicide | E15: =INDEX(PRICING[Size],MATCH(Rebate_Lookup[[#This Row],[SKU CODE]],PRICING[SKU],0)) -> 16 oz | F15: 2 | G15: 1 | H15: 4 | J15: =SUMIFS(PRICING[Rebate $],PRICING[SKU],Rebate_Lookup[[#This Row],[SKU CODE]],PRICING[Set],1) -> 0 | K15: =SUMIFS(PRICING[Rebate $],PRICING[SKU],Rebate_Lookup[[#This Row],[SKU CODE]],PRICING[Set],2) -> $50.00 | M15: =SUMIF('2025 LL-CALCULATOR - UNITS'!A:A,Rebate_Lookup[[#This Row],[SKU CODE]],'2025 LL-CALCULATOR - UNITS'!J:J) -> 0 | N15: =IF(Rebate_Lookup[[#This Row],[Instances]]=1,1, IF(AND(Rebate_Lookup[[#This Row],[Instances]]=2,Rebate_Lookup[[#This Row],[Order Form Quantity]]<Rebate_Lookup[[#This Row],[MOQ_2]]),1,IF(AND(Rebate_Lookup[[#This Row],[Instances]]=2,Rebate_Lookup[[#This Row],[Order Form Quantity]]>=Rebate_Lookup[[#This Row],[MOQ_2]]),2, IF(AND(Rebate_Lookup[[#This Row],[Instances]]=3,Rebate_Lookup[[#This Row],[Order Form Quantity]]<Rebate_Lookup[[#This Row],[MOQ_2]]),1,IF(AND(Rebate_Lookup[[#This Row],[Instances]]=3,Rebate_Lookup[[#This Row],[MOQ_2]]<=Rebate_Lookup[[#This Row],[Order Form Quantity]],Rebate_Lookup[[#This Row],[Order Form Quantity]]<Rebate_Lookup[[#This Row],[MOQ_3]]),2,IF(AND(Rebate_Lookup[[#This Row],[Instances]]=3,Rebate_Lookup[[#This Row],[Order Form Quantity]]>=Rebate_Lookup[[#This Row],[MOQ_3]]),3)))))) -> 1 | O15: =COUNTIF('2025 LL-CALCULATOR - UNITS'!A:A,Rebate_Lookup[[#This Row],[SKU CODE]]) -> 0 | P15: =Rebate_Lookup[[#This Row],[Order Form Quantity]]>=4 -> FALSE
B16: D00000935 | C16: =INDEX(PRICING[Agency/TT],MATCH(Rebate_Lookup[[#This Row],[SKU CODE]],PRICING[SKU],0)) -> A | D16: =INDEX(PRICING[Product],MATCH(B16,PRICING[SKU],0)) -> Fiata® Stressgard® | E16: =INDEX(PRICING[Size],MATCH(Rebate_Lookup[[#This Row],[SKU CODE]],PRICING[SKU],0)) -> 2.5 gal | F16: =COUNTIFS(PRICING[SKU],B16) -> 2 | G16: 1 | H16: 16 | J16: =SUMIFS(PRICING[Rebate $],PRICING[SKU],Rebate_Lookup[[#This Row],[SKU CODE]],PRICING[Set],1) -> 0 | K16: =SUMIFS(PRICING[Rebate $],PRICING[SKU],Rebate_Lookup[[#This Row],[SKU CODE]],PRICING[Set],2) -> $10.00 | L16: =SUMIFS(PRICING[Rebate $],PRICING[SKU],Rebate_Lookup[[#This Row],[SKU CODE]],PRICING[Set],3) -> 0 | M16: =SUMIF('2025 LL-CALCULATOR - UNITS'!A:A,Rebate_Lookup[[#This Row],[SKU CODE]],'2025 LL-CALCULATOR - UNITS'!J:J) -> 0 | N16: =IF(Rebate_Lookup[[#This Row],[Instances]]=1,1, IF(AND(Rebate_Lookup[[#This Row],[Instances]]=2,Rebate_Lookup[[#This Row],[Order Form Quantity]]<Rebate_Lookup[[#This Row],[MOQ_2]]),1,IF(AND(Rebate_Lookup[[#This Row],[Instances]]=2,Rebate_Lookup[[#This Row],[Order Form Quantity]]>=Rebate_Lookup[[#This Row],[MOQ_2]]),2, IF(AND(Rebate_Lookup[[#This Row],[Instances]]=3,Rebate_Lookup[[#This Row],[Order Form Quantity]]<Rebate_Lookup[[#This Row],[MOQ_2]]),1,IF(AND(Rebate_Lookup[[#This Row],[Instances]]=3,Rebate_Lookup[[#This Row],[MOQ_2]]<=Rebate_Lookup[[#This Row],[Order Form Quantity]],Rebate_Lookup[[#This Row],[Order Form Quantity]]<Rebate_Lookup[[#This Row],[MOQ_3]]),2,IF(AND(Rebate_Lookup[[#This Row],[Instances]]=3,Rebate_Lookup[[#This Row],[Order Form Quantity]]>=Rebate_Lookup[[#This Row],[MOQ_3]]),3)))))) -> 1 | O16: =COUNTIF('2025 LL-CALCULATOR - UNITS'!A:A,Rebate_Lookup[[#This Row],[SKU CODE]]) -> 0 | P16: =Rebate_Lookup[[#This Row],[Order Form Quantity]]>=16 -> FALSE
B17: D00001379 | C17: =INDEX(PRICING[Agency/TT],MATCH(Rebate_Lookup[[#This Row],[SKU CODE]],PRICING[SKU],0)) -> A | D17: =INDEX(PRICING[Product],MATCH(B17,PRICING[SKU],0)) -> Indemnify® | E17: =INDEX(PRICING[Size],MATCH(Rebate_Lookup[[#This Row],[SKU CODE]],PRICING[SKU],0)) -> 17.1 fl oz | F17: =COUNTIFS(PRICING[SKU],B17) -> 3 | G17: 1 | H17: 3 | I17: 6 | J17: =SUMIFS(PRICING[Rebate $],PRICING[SKU],Rebate_Lookup[[#This Row],[SKU CODE]],PRICING[Set],1) -> 0 | K17: =SUMIFS(PRICING[Rebate $],PRICING[SKU],Rebate_Lookup[[#This Row],[SKU CODE]],PRICING[Set],2) -> $185.00 | L17: =SUMIFS(PRICING[Rebate $],PRICING[SKU],Rebate_Lookup[[#This Row],[SKU CODE]],PRICING[Set],3) -> $410.00 | M17: =SUMIF('2025 LL-CALCULATOR - UNITS'!A:A,Rebate_Lookup[[#This Row],[SKU CODE]],'2025 LL-CALCULATOR - UNITS'!J:J) -> 0 | N17: =IF(Rebate_Lookup[[#This Row],[Instances]]=1,1, IF(AND(Rebate_Lookup[[#This Row],[Instances]]=2,Rebate_Lookup[[#This Row],[Order Form Quantity]]<Rebate_Lookup[[#This Row],[MOQ_2]]),1,IF(AND(Rebate_Lookup[[#This Row],[Instances]]=2,Rebate_Lookup[[#This Row],[Order Form Quantity]]>=Rebate_Lookup[[#This Row],[MOQ_2]]),2, IF(AND(Rebate_Lookup[[#This Row],[Instances]]=3,Rebate_Lookup[[#This Row],[Order Form Quantity]]<Rebate_Lookup[[#This Row],[MOQ_2]]),1,IF(AND(Rebate_Lookup[[#This Row],[Instances]]=3,Rebate_Lookup[[#This Row],[MOQ_2]]<=Rebate_Lookup[[#This Row],[Order Form Quantity]],Rebate_Lookup[[#This Row],[Order Form Quantity]]<Rebate_Lookup[[#This Row],[MOQ_3]]),2,IF(AND(Rebate_Lookup[[#This Row],[Instances]]=3,Rebate_Lookup[[#This Row],[Order Form Quantity]]>=Rebate_Lookup[[#This Row],[MOQ_3]]),3)))))) -> 1 | O17: =COUNTIF('2025 LL-CALCULATOR - UNITS'!A:A,Rebate_Lookup[[#This Row],[SKU CODE]]) -> 0 | P17: =Rebate_Lookup[[#This Row],[Order Form Quantity]]>=3 -> FALSE
B18: 81701245 | C18: =INDEX(PRICING[Agency/TT],MATCH(Rebate_Lookup[[#This Row],[SKU CODE]],PRICING[SKU],0)) -> A | D18: =INDEX(PRICING[Product],MATCH(B18,PRICING[SKU],0)) -> Interface® Stressgard® | E18: =INDEX(PRICING[Size],MATCH(Rebate_Lookup[[#This Row],[SKU CODE]],PRICING[SKU],0)) -> 2.5 gal | F18: =COUNTIFS(PRICING[SKU],B18) -> 2 | G18: 1 | H18: 6 | J18: =SUMIFS(PRICING[Rebate $],PRICING[SKU],Rebate_Lookup[[#This Row],[SKU CODE]],PRICING[Set],1) -> 0 | K18: =SUMIFS(PRICING[Rebate $],PRICING[SKU],Rebate_Lookup[[#This Row],[SKU CODE]],PRICING[Set],2) -> $90.00 | L18: =SUMIFS(PRICING[Rebate $],PRICING[SKU],Rebate_Lookup[[#This Row],[SKU CODE]],PRICING[Set],3) -> 0 | M18: =SUMIF('2025 LL-CALCULATOR - UNITS'!A:A,Rebate_Lookup[[#This Row],[SKU CODE]],'2025 LL-CALCULATOR - UNITS'!J:J) -> 0 | N18: =IF(Rebate_Lookup[[#This Row],[Instances]]=1,1, IF(AND(Rebate_Lookup[[#This Row],[Instances]]=2,Rebate_Lookup[[#This Row],[Order Form Quantity]]<Rebate_Lookup[[#This Row],[MOQ_2]]),1,IF(AND(Rebate_Lookup[[#This Row],[Instances]]=2,Rebate_Lookup[[#This Row],[Order Form Quantity]]>=Rebate_Lookup[[#This Row],[MOQ_2]]),2, IF(AND(Rebate_Lookup[[#This Row],[Instances]]=3,Rebate_Lookup[[#This Row],[Order Form Quantity]]<Rebate_Lookup[[#This Row],[MOQ_2]]),1,IF(AND(Rebate_Lookup[[#This Row],[Instances]]=3,Rebate_Lookup[[#This Row],[MOQ_2]]<=Rebate_Lookup[[#This Row],[Order Form Quantity]],Rebate_Lookup[[#This Row],[Order Form Quantity]]<Rebate_Lookup[[#This Row],[MOQ_3]]),2,IF(AND(Rebate_Lookup[[#This Row],[Instances]]=3,Rebate_Lookup[[#This Row],[Order Form Quantity]]>=Rebate_Lookup[[#This Row],[MOQ_3]]),3)))))) -> 1 | O18: =COUNTIF('2025 LL-CALCULATOR - UNITS'!A:A,Rebate_Lookup[[#This Row],[SKU CODE]]) -> 0 | P18: =Rebate_Lookup[[#This Row],[Order Form Quantity]]>=6 -> FALSE
B19: 11013671 | C19: =INDEX(PRICING[Agency/TT],MATCH(Rebate_Lookup[[#This Row],[SKU CODE]],PRICING[SKU],0)) -> A | D19: =INDEX(PRICING[Product],MATCH(B19,PRICING[SKU],0)) -> Kalida® Fungicide | E19: =INDEX(PRICING[Size],MATCH(Rebate_Lookup[[#This Row],[SKU CODE]],PRICING[SKU],0)) -> 64 oz | F19: =COUNTIFS(PRICING[SKU],B19) -> 2 | G19: 1 | H19: 4 | J19: =SUMIFS(PRICING[Rebate $],PRICING[SKU],Rebate_Lookup[[#This Row],[SKU CODE]],PRICING[Set],1) -> 0 | K19: =SUMIFS(PRICING[Rebate $],PRICING[SKU],Rebate_Lookup[[#This Row],[SKU CODE]],PRICING[Set],2) -> $295.00 | L19: =SUMIFS(PRICING[Rebate $],PRICING[SKU],Rebate_Lookup[[#This Row],[SKU CODE]],PRICING[Set],3) -> 0 | M19: =SUMIF('2025 LL-CALCULATOR - UNITS'!A:A,Rebate_Lookup[[#This Row],[SKU CODE]],'2025 LL-CALCULATOR - UNITS'!J:J) -> 0 | N19: =IF(Rebate_Lookup[[#This Row],[Instances]]=1,1, IF(AND(Rebate_Lookup[[#This Row],[Instances]]=2,Rebate_Lookup[[#This Row],[Order Form Quantity]]<Rebate_Lookup[[#This Row],[MOQ_2]]),1,IF(AND(Rebate_Lookup[[#This Row],[Instances]]=2,Rebate_Lookup[[#This Row],[Order Form Quantity]]>=Rebate_Lookup[[#This Row],[MOQ_2]]),2, IF(AND(Rebate_Lookup[[#This Row],[Instances]]=3,Rebate_Lookup[[#This Row],[Order Form Quantity]]<Rebate_Lookup[[#This Row],[MOQ_2]]),1,IF(AND(Rebate_Lookup[[#This Row],[Instances]]=3,Rebate_Lookup[[#This Row],[MOQ_2]]<=Rebate_Lookup[[#This Row],[Order Form Quantity]],Rebate_Lookup[[#This Row],[Order Form Quantity]]<Rebate_Lookup[[#This Row],[MOQ_3]]),2,IF(AND(Rebate_Lookup[[#This Row],[Instances]]=3,Rebate_Lookup[[#This Row],[Order Form Quantity]]>=Rebate_Lookup[[#This Row],[MOQ_3]]),3)))))) -> 1 | O19: =COUNTIF('2025 LL-CALCULATOR - UNITS'!A:A,Rebate_Lookup[[#This Row],[SKU CODE]]) -> 0 | P19: =Rebate_Lookup[[#This Row],[Order Form Quantity]]>=4 -> FALSE
B20: D00000965 | C20: =INDEX(PRICING[Agency/TT],MATCH(Rebate_Lookup[[#This Row],[SKU CODE]],PRICING[SKU],0)) -> A | D20: =INDEX(PRICING[Product],MATCH(B20,PRICING[SKU],0)) -> Mirage® Stressgard® | E20: =INDEX(PRICING[Size],MATCH(Rebate_Lookup[[#This Row],[SKU CODE]],PRICING[SKU],0)) -> 2.5 gal | F20: =COUNTIFS(PRICING[SKU],B20) -> 2 | G20: 1 | H20: 4 | J20: =SUMIFS(PRICING[Rebate $],PRICING[SKU],Rebate_Lookup[[#This Row],[SKU CODE]],PRICING[Set],1) -> 0 | K20: =SUMIFS(PRICING[Rebate $],PRICING[SKU],Rebate_Lookup[[#This Row],[SKU CODE]],PRICING[Set],2) -> $90.00 | L20: =SUMIFS(PRICING[Rebate $],PRICING[SKU],Rebate_Lookup[[#This Row],[SKU CODE]],PRICING[Set],3) -> 0 | M20: =SUMIF('2025 LL-CALCULATOR - UNITS'!A:A,Rebate_Lookup[[#This Row],[SKU CODE]],'2025 LL-CALCULATOR - UNITS'!J:J) -> 0 | N20: =IF(Rebate_Lookup[[#This Row],[Instances]]=1,1, IF(AND(Rebate_Lookup[[#This Row],[Instances]]=2,Rebate_Lookup[[#This Row],[Order Form Quantity]]<Rebate_Lookup[[#This Row],[MOQ_2]]),1,IF(AND(Rebate_Lookup[[#This Row],[Instances]]=2,Rebate_Lookup[[#This Row],[Order Form Quantity]]>=Rebate_Lookup[[#This Row],[MOQ_2]]),2, IF(AND(Rebate_Lookup[[#This Row],[Instances]]=3,Rebate_Lookup[[#This Row],[Order Form Quantity]]<Rebate_Lookup[[#This Row],[MOQ_2]]),1,IF(AND(Rebate_Lookup[[#This Row],[Instances]]=3,Rebate_Lookup[[#This Row],[MOQ_2]]<=Rebate_Lookup[[#This Row],[Order Form Quantity]],Rebate_Lookup[[#This Row],[Order Form Quantity]]<Rebate_Lookup[[#This Row],[MOQ_3]]),2,IF(AND(Rebate_Lookup[[#This Row],[Instances]]=3,Rebate_Lookup[[#This Row],[Order Form Quantity]]>=Rebate_Lookup[[#This Row],[MOQ_3]]),3)))))) -> 1 | O20: =COUNTIF('2025 LL-CALCULATOR - UNITS'!A:A,Rebate_Lookup[[#This Row],[SKU CODE]]) -> 0 | P20: =Rebate_Lookup[[#This Row],[Order Form Quantity]]>=4 -> FALSE
B21: 11003880 | C21: =INDEX(PRICING[Agency/TT],MATCH(Rebate_Lookup[[#This Row],[SKU CODE]],PRICING[SKU],0)) -> A | D21: =INDEX(PRICING[Product],MATCH(B21,PRICING[SKU],0)) -> Rayora® Fungicide | E21: =INDEX(PRICING[Size],MATCH(Rebate_Lookup[[#This Row],[SKU CODE]],PRICING[SKU],0)) -> 2.5 gal | F21: =COUNTIFS(PRICING[SKU],B21) -> 2 | G21: 1 | H21: 6 | J21: =SUMIFS(PRICING[Rebate $],PRICING[SKU],Rebate_Lookup[[#This Row],[SKU CODE]],PRICING[Set],1) -> 0 | K21: =SUMIFS(PRICING[Rebate $],PRICING[SKU],Rebate_Lookup[[#This Row],[SKU CODE]],PRICING[Set],2) -> $160.00 | L21: =SUMIFS(PRICING[Rebate $],PRICING[SKU],Rebate_Lookup[[#This Row],[SKU CODE]],PRICING[Set],3) -> 0 | M21: =SUMIF('2025 LL-CALCULATOR - UNITS'!A:A,Rebate_Lookup[[#This Row],[SKU CODE]],'2025 LL-CALCULATOR - UNITS'!J:J) -> 0 | N21: =IF(Rebate_Lookup[[#This Row],[Instances]]=1,1, IF(AND(Rebate_Lookup[[#This Row],[Instances]]=2,Rebate_Lookup[[#This Row],[Order Form Quantity]]<Rebate_Lookup[[#This Row],[MOQ_2]]),1,IF(AND(Rebate_Lookup[[#This Row],[Instances]]=2,Rebate_Lookup[[#This Row],[Order Form Quantity]]>=Rebate_Lookup[[#This Row],[MOQ_2]]),2, IF(AND(Rebate_Lookup[[#This Row],[Instances]]=3,Rebate_Lookup[[#This Row],[Order Form Quantity]]<Rebate_Lookup[[#This Row],[MOQ_2]]),1,IF(AND(Rebate_Lookup[[#This Row],[Instances]]=3,Rebate_Lookup[[#This Row],[MOQ_2]]<=Rebate_Lookup[[#This Row],[Order Form Quantity]],Rebate_Lookup[[#This Row],[Order Form Quantity]]<Rebate_Lookup[[#This Row],[MOQ_3]]),2,IF(AND(Rebate_Lookup[[#This Row],[Instances]]=3,Rebate_Lookup[[#This Row],[Order Form Quantity]]>=Rebate_Lookup[[#This Row],[MOQ_3]]),3)))))) -> 1 | O21: =COUNTIF('2025 LL-CALCULATOR - UNITS'!A:A,Rebate_Lookup[[#This Row],[SKU CODE]]) -> 0 | P21: =Rebate_Lookup[[#This Row],[Order Form Quantity]]>=6 -> FALSE
B22: D00000125 | C22: =INDEX(PRICING[Agency/TT],MATCH(Rebate_Lookup[[#This Row],[SKU CODE]],PRICING[SKU],0)) -> A | D22: =INDEX(PRICING[Product],MATCH(B22,PRICING[SKU],0)) -> Resilia™ | E22: =INDEX(PRICING[Size],MATCH(Rebate_Lookup[[#This Row],[SKU CODE]],PRICING[SKU],0)) -> 2.72 gal | F22: =COUNTIFS(PRICING[SKU],B22) -> 3 | G22: 1 | H22: 4 | I22: 15 | J22: =SUMIFS(PRICING[Rebate $],PRICING[SKU],Rebate_Lookup[[#This Row],[SKU CODE]],PRICING[Set],1) -> 0 | K22: =SUMIFS(PRICING[Rebate $],PRICING[SKU],Rebate_Lookup[[#This Row],[SKU CODE]],PRICING[Set],2) -> $65.00 | L22: =SUMIFS(PRICING[Rebate $],PRICING[SKU],Rebate_Lookup[[#This Row],[SKU CODE]],PRICING[Set],3) -> $180.00 | M22: =SUMIF('2025 LL-CALCULATOR - UNITS'!A:A,Rebate_Lookup[[#This Row],[SKU CODE]],'2025 LL-CALCULATOR - UNITS'!J:J) -> 0 | N22: =IF(Rebate_Lookup[[#This Row],[Instances]]=1,1, IF(AND(Rebate_Lookup[[#This Row],[Instances]]=2,Rebate_Lookup[[#This Row],[Order Form Quantity]]<Rebate_Lookup[[#This Row],[MOQ_2]]),1,IF(AND(Rebate_Lookup[[#This Row],[Instances]]=2,Rebate_Lookup[[#This Row],[Order Form Quantity]]>=Rebate_Lookup[[#This Row],[MOQ_2]]),2, IF(AND(Rebate_Lookup[[#This Row],[Instances]]=3,Rebate_Lookup[[#This Row],[Order Form Quantity]]<Rebate_Lookup[[#This Row],[MOQ_2]]),1,IF(AND(Rebate_Lookup[[#This Row],[Instances]]=3,Rebate_Lookup[[#This Row],[MOQ_2]]<=Rebate_Lookup[[#This Row],[Order Form Quantity]],Rebate_Lookup[[#This Row],[Order Form Quantity]]<Rebate_Lookup[[#This Row],[MOQ_3]]),2,IF(AND(Rebate_Lookup[[#This Row],[Instances]]=3,Rebate_Lookup[[#This Row],[Order Form Quantity]]>=Rebate_Lookup[[#This Row],[MOQ_3]]),3)))))) -> 1 | O22: =COUNTIF('2025 LL-CALCULATOR - UNITS'!A:A,Rebate_Lookup[[#This Row],[SKU CODE]]) -> 0 | P22: =Rebate_Lookup[[#This Row],[Order Form Quantity]]>=4 -> FALSE
B23: 11014245 | C23: =INDEX(PRICING[Agency/TT],MATCH(Rebate_Lookup[[#This Row],[SKU CODE]],PRICING[SKU],0)) -> A | D23: =INDEX(PRICING[Product],MATCH(B23,PRICING[SKU],0)) -> Serata® Fungicide | E23: =INDEX(PRICING[Size],MATCH(Rebate_Lookup[[#This Row],[SKU CODE]],PRICING[SKU],0)) -> 35 oz | F23: =COUNTIFS(PRICING[SKU],B23) -> 2 | G23: 1 | H23: 8 | J23: =SUMIFS(PRICING[Rebate $],PRICING[SKU],Rebate_Lookup[[#This Row],[SKU CODE]],PRICING[Set],1) -> 0 | K23: =SUMIFS(PRICING[Rebate $],PRICING[SKU],Rebate_Lookup[[#This Row],[SKU CODE]],PRICING[Set],2) -> $15.00 | L23: =SUMIFS(PRICING[Rebate $],PRICING[SKU],Rebate_Lookup[[#This Row],[SKU CODE]],PRICING[Set],3) -> 0 | M23: =SUMIF('2025 LL-CALCULATOR - UNITS'!A:A,Rebate_Lookup[[#This Row],[SKU CODE]],'2025 LL-CALCULATOR - UNITS'!J:J) -> 0 | N23: =IF(Rebate_Lookup[[#This Row],[Instances]]=1,1, IF(AND(Rebate_Lookup[[#This Row],[Instances]]=2,Rebate_Lookup[[#This Row],[Order Form Quantity]]<Rebate_Lookup[[#This Row],[MOQ_2]]),1,IF(AND(Rebate_Lookup[[#This Row],[Instances]]=2,Rebate_Lookup[[#This Row],[Order Form Quantity]]>=Rebate_Lookup[[#This Row],[MOQ_2]]),2, IF(AND(Rebate_Lookup[[#This Row],[Instances]]=3,Rebate_Lookup[[#This Row],[Order Form Quantity]]<Rebate_Lookup[[#This Row],[MOQ_2]]),1,IF(AND(Rebate_Lookup[[#This Row],[Instances]]=3,Rebate_Lookup[[#This Row],[MOQ_2]]<=Rebate_Lookup[[#This Row],[Order Form Quantity]],Rebate_Lookup[[#This Row],[Order Form Quantity]]<Rebate_Lookup[[#This Row],[MOQ_3]]),2,IF(AND(Rebate_Lookup[[#This Row],[Instances]]=3,Rebate_Lookup[[#This Row],[Order Form Quantity]]>=Rebate_Lookup[[#This Row],[MOQ_3]]),3)))))) -> 1 | O23: =COUNTIF('2025 LL-CALCULATOR - UNITS'!A:A,Rebate_Lookup[[#This Row],[SKU CODE]]) -> 0 | P23: =Rebate_Lookup[[#This Row],[Order Form Quantity]]>=8 -> FALSE
B24: D00000989 | C24: =INDEX(PRICING[Agency/TT],MATCH(Rebate_Lookup[[#This Row],[SKU CODE]],PRICING[SKU],0)) -> A | D24: =INDEX(PRICING[Product],MATCH(B24,PRICING[SKU],0)) -> Signature™ XTRA Stressgard® | E24: =INDEX(PRICING[Size],MATCH(Rebate_Lookup[[#This Row],[SKU CODE]],PRICING[SKU],0)) -> 5.5 lb | F24: =COUNTIFS(PRICING[SKU],B24) -> 2 | G24: 1 | H24: 24 | J24: =SUMIFS(PRICING[Rebate $],PRICING[SKU],Rebate_Lookup[[#This Row],[SKU CODE]],PRICING[Set],1) -> 0 | K24: =SUMIFS(PRICING[Rebate $],PRICING[SKU],Rebate_Lookup[[#This Row],[SKU CODE]],PRICING[Set],2) -> $15.00 | L24: =SUMIFS(PRICING[Rebate $],PRICING[SKU],Rebate_Lookup[[#This Row],[SKU CODE]],PRICING[Set],3) -> 0 | M24: =SUMIF('2025 LL-CALCULATOR - UNITS'!A:A,Rebate_Lookup[[#This Row],[SKU CODE]],'2025 LL-CALCULATOR - UNITS'!J:J) -> 0 | N24: =IF(Rebate_Lookup[[#This Row],[Instances]]=1,1, IF(AND(Rebate_Lookup[[#This Row],[Instances]]=2,Rebate_Lookup[[#This Row],[Order Form Quantity]]<Rebate_Lookup[[#This Row],[MOQ_2]]),1,IF(AND(Rebate_Lookup[[#This Row],[Instances]]=2,Rebate_Lookup[[#This Row],[Order Form Quantity]]>=Rebate_Lookup[[#This Row],[MOQ_2]]),2, IF(AND(Rebate_Lookup[[#This Row],[Instances]]=3,Rebate_Lookup[[#This Row],[Order Form Quantity]]<Rebate_Lookup[[#This Row],[MOQ_2]]),1,IF(AND(Rebate_Lookup[[#This Row],[Instances]]=3,Rebate_Lookup[[#This Row],[MOQ_2]]<=Rebate_Lookup[[#This Row],[Order Form Quantity]],Rebate_Lookup[[#This Row],[Order Form Quantity]]<Rebate_Lookup[[#This Row],[MOQ_3]]),2,IF(AND(Rebate_Lookup[[#This Row],[Instances]]=3,Rebate_Lookup[[#This Row],[Order Form Quantity]]>=Rebate_Lookup[[#This Row],[MOQ_3]]),3)))))) -> 1 | O24: =COUNTIF('2025 LL-CALCULATOR - UNITS'!A:A,Rebate_Lookup[[#This Row],[SKU CODE]]) -> 0 | P24: =Rebate_Lookup[[#This Row],[Order Form Quantity]]>=24 -> FALSE
B25: D00000998 | C25: =INDEX(PRICING[Agency/TT],MATCH(Rebate_Lookup[[#This Row],[SKU CODE]],PRICING[SKU],0)) -> A | D25: =INDEX(PRICING[Product],MATCH(B25,PRICING[SKU],0)) -> Tartan® Stressgard® | E25: =INDEX(PRICING[Size],MATCH(Rebate_Lookup[[#This Row],[SKU CODE]],PRICING[SKU],0)) -> 2.5 gal | F25: =COUNTIFS(PRICING[SKU],B25) -> 2 | G25: 1 | H25: 6 | J25: =SUMIFS(PRICING[Rebate $],PRICING[SKU],Rebate_Lookup[[#This Row],[SKU CODE]],PRICING[Set],1) -> 0 | K25: $5.00 | L25: =SUMIFS(PRICING[Rebate $],PRICING[SKU],Rebate_Lookup[[#This Row],[SKU CODE]],PRICING[Set],3) -> 0 | M25: =SUMIF('2025 LL-CALCULATOR - UNITS'!A:A,Rebate_Lookup[[#This Row],[SKU CODE]],'2025 LL-CALCULATOR - UNITS'!J:J) -> 0 | N25: =IF(Rebate_Lookup[[#This Row],[Instances]]=1,1, IF(AND(Rebate_Lookup[[#This Row],[Instances]]=2,Rebate_Lookup[[#This Row],[Order Form Quantity]]<Rebate_Lookup[[#This Row],[MOQ_2]]),1,IF(AND(Rebate_Lookup[[#This Row],[Instances]]=2,Rebate_Lookup[[#This Row],[Order Form Quantity]]>=Rebate_Lookup[[#This Row],[MOQ_2]]),2, IF(AND(Rebate_Lookup[[#This Row],[Instances]]=3,Rebate_Lookup[[#This Row],[Order Form Quantity]]<Rebate_Lookup[[#This Row],[MOQ_2]]),1,IF(AND(Rebate_Lookup[[#This Row],[Instances]]=3,Rebate_Lookup[[#This Row],[MOQ_2]]<=Rebate_Lookup[[#This Row],[Order Form Quantity]],Rebate_Lookup[[#This Row],[Order Form Quantity]]<Rebate_Lookup[[#This Row],[MOQ_3]]),2,IF(AND(Rebate_Lookup[[#This Row],[Instances]]=3,Rebate_Lookup[[#This Row],[Order Form Quantity]]>=Rebate_Lookup[[#This Row],[MOQ_3]]),3)))))) -> 1 | O25: =COUNTIF('2025 LL-CALCULATOR - UNITS'!A:A,Rebate_Lookup[[#This Row],[SKU CODE]]) -> 0 | P25: =Rebate_Lookup[[#This Row],[Order Form Quantity]]>=6 -> FALSE
B26: 11015981 | C26: =INDEX(PRICING[Agency/TT],MATCH(Rebate_Lookup[[#This Row],[SKU CODE]],PRICING[SKU],0)) -> A | D26: =INDEX(PRICING[Product],MATCH(B26,PRICING[SKU],0)) -> Tarvecta | E26: =INDEX(PRICING[Size],MATCH(Rebate_Lookup[[#This Row],[SKU CODE]],PRICING[SKU],0)) -> 2.5 gal | F26: =COUNTIFS(PRICING[SKU],B26) -> 2 | G26: 1 | H26: 3 | J26: =SUMIFS(PRICING[Rebate $],PRICING[SKU],Rebate_Lookup[[#This Row],[SKU CODE]],PRICING[Set],1) -> 0 | K26: $400.00 | L26: =SUMIFS(PRICING[Rebate $],PRICING[SKU],Rebate_Lookup[[#This Row],[SKU CODE]],PRICING[Set],3) -> 0 | M26: =SUMIF('2025 LL-CALCULATOR - UNITS'!A:A,Rebate_Lookup[[#This Row],[SKU CODE]],'2025 LL-CALCULATOR - UNITS'!J:J) -> 0 | N26: =IF(Rebate_Lookup[[#This Row],[Instances]]=1,1, IF(AND(Rebate_Lookup[[#This Row],[Instances]]=2,Rebate_Lookup[[#This Row],[Order Form Quantity]]<Rebate_Lookup[[#This Row],[MOQ_2]]),1,IF(AND(Rebate_Lookup[[#This Row],[Instances]]=2,Rebate_Lookup[[#This Row],[Order Form Quantity]]>=Rebate_Lookup[[#This Row],[MOQ_2]]),2, IF(AND(Rebate_Lookup[[#This Row],[Instances]]=3,Rebate_Lookup[[#This Row],[Order Form Quantity]]<Rebate_Lookup[[#This Row],[MOQ_2]]),1,IF(AND(Rebate_Lookup[[#This Row],[Instances]]=3,Rebate_Lookup[[#This Row],[MOQ_2]]<=Rebate_Lookup[[#This Row],[Order Form Quantity]],Rebate_Lookup[[#This Row],[Order Form Quantity]]<Rebate_Lookup[[#This Row],[MOQ_3]]),2,IF(AND(Rebate_Lookup[[#This Row],[Instances]]=3,Rebate_Lookup[[#This Row],[Order Form Quantity]]>=Rebate_Lookup[[#This Row],[MOQ_3]]),3)))))) -> 1 | O26: =COUNTIF('2025 LL-CALCULATOR - UNITS'!A:A,Rebate_Lookup[[#This Row],[SKU CODE]]) -> 0 | P26: =Rebate_Lookup[[#This Row],[Order Form Quantity]]>=3 -> FALSE
B27: 11015990 | C27: =INDEX(PRICING[Agency/TT],MATCH(Rebate_Lookup[[#This Row],[SKU CODE]],PRICING[SKU],0)) -> A | D27: =INDEX(PRICING[Product],MATCH(B27,PRICING[SKU],0)) -> Tarvecta | E27: =INDEX(PRICING[Size],MATCH(Rebate_Lookup[[#This Row],[SKU CODE]],PRICING[SKU],0)) -> 64 oz | F27: =COUNTIFS(PRICING[SKU],B27) -> 2 | G27: 1 | H27: 4 | J27: =SUMIFS(PRICING[Rebate $],PRICING[SKU],Rebate_Lookup[[#This Row],[SKU CODE]],PRICING[Set],1) -> 0 | K27: $145.00 | L27: =SUMIFS(PRICING[Rebate $],PRICING[SKU],Rebate_Lookup[[#This Row],[SKU CODE]],PRICING[Set],3) -> 0 | M27: =SUMIF('2025 LL-CALCULATOR - UNITS'!A:A,Rebate_Lookup[[#This Row],[SKU CODE]],'2025 LL-CALCULATOR - UNITS'!J:J) -> 0 | N27: =IF(Rebate_Lookup[[#This Row],[Instances]]=1,1, IF(AND(Rebate_Lookup[[#This Row],[Instances]]=2,Rebate_Lookup[[#This Row],[Order Form Quantity]]<Rebate_Lookup[[#This Row],[MOQ_2]]),1,IF(AND(Rebate_Lookup[[#This Row],[Instances]]=2,Rebate_Lookup[[#This Row],[Order Form Quantity]]>=Rebate_Lookup[[#This Row],[MOQ_2]]),2, IF(AND(Rebate_Lookup[[#This Row],[Instances]]=3,Rebate_Lookup[[#This Row],[Order Form Quantity]]<Rebate_Lookup[[#This Row],[MOQ_2]]),1,IF(AND(Rebate_Lookup[[#This Row],[Instances]]=3,Rebate_Lookup[[#This Row],[MOQ_2]]<=Rebate_Lookup[[#This Row],[Order Form Quantity]],Rebate_Lookup[[#This Row],[Order Form Quantity]]<Rebate_Lookup[[#This Row],[MOQ_3]]),2,IF(AND(Rebate_Lookup[[#This Row],[Instances]]=3,Rebate_Lookup[[#This Row],[Order Form Quantity]]>=Rebate_Lookup[[#This Row],[MOQ_3]]),3)))))) -> 1 | O27: =COUNTIF('2025 LL-CALCULATOR - UNITS'!A:A,Rebate_Lookup[[#This Row],[SKU CODE]]) -> 0 | P27: =Rebate_Lookup[[#This Row],[Order Form Quantity]]>=4 -> FALSE
B28: D00000665 | C28: =INDEX(PRICING[Agency/TT],MATCH(Rebate_Lookup[[#This Row],[SKU CODE]],PRICING[SKU],0)) -> TT | D28: =INDEX(PRICING[Product],MATCH(B28,PRICING[SKU],0)) -> Acclaim Accelerate | E28: =INDEX(PRICING[Size],MATCH(Rebate_Lookup[[#This Row],[SKU CODE]],PRICING[SKU],0)) -> 0.5 gal | F28: =COUNTIFS(PRICING[SKU],B28) -> 1 | G28: 150 gal | J28: =SUMIFS(PRICING[Rebate $],PRICING[SKU],Rebate_Lookup[[#This Row],[SKU CODE]],PRICING[Set],1) -> $7.50 | K28: =SUMIFS(PRICING[Rebate $],PRICING[SKU],Rebate_Lookup[[#This Row],[SKU CODE]],PRICING[Set],2) -> 0 | L28: =SUMIFS(PRICING[Rebate $],PRICING[SKU],Rebate_Lookup[[#This Row],[SKU CODE]],PRICING[Set],3) -> 0 | M28: =SUMIF('2025 LL-CALCULATOR - UNITS'!A:A,Rebate_Lookup[[#This Row],[SKU CODE]],'2025 LL-CALCULATOR - UNITS'!J:J) -> 0 | N28: =IF(Rebate_Lookup[[#This Row],[Instances]]=1,1, IF(AND(Rebate_Lookup[[#This Row],[Instances]]=2,Rebate_Lookup[[#This Row],[Order Form Quantity]]<Rebate_Lookup[[#This Row],[MOQ_2]]),1,IF(AND(Rebate_Lookup[[#This Row],[Instances]]=2,Rebate_Lookup[[#This Row],[Order Form Quantity]]>=Rebate_Lookup[[#This Row],[MOQ_2]]),2, IF(AND(Rebate_Lookup[[#This Row],[Instances]]=3,Rebate_Lookup[[#This Row],[Order Form Quantity]]<Rebate_Lookup[[#This Row],[MOQ_2]]),1,IF(AND(Rebate_Lookup[[#This Row],[Instances]]=3,Rebate_Lookup[[#This Row],[MOQ_2]]<=Rebate_Lookup[[#This Row],[Order Form Quantity]],Rebate_Lookup[[#This Row],[Order Form Quantity]]<Rebate_Lookup[[#This Row],[MOQ_3]]),2,IF(AND(Rebate_Lookup[[#This Row],[Instances]]=3,Rebate_Lookup[[#This Row],[Order Form Quantity]]>=Rebate_Lookup[[#This Row],[MOQ_3]]),3)))))) -> 1 | O28: =COUNTIF('2025 LL-CALCULATOR - UNITS'!A:A,Rebate_Lookup[[#This Row],[SKU CODE]]) -> 0 | P28: 0
B29: D00000666 | C29: =INDEX(PRICING[Agency/TT],MATCH(Rebate_Lookup[[#This Row],[SKU CODE]],PRICING[SKU],0)) -> TT | D29: =INDEX(PRICING[Product],MATCH(B29,PRICING[SKU],0)) -> Acclaim Accelerate | E29: =INDEX(PRICING[Size],MATCH(Rebate_Lookup[[#This Row],[SKU CODE]],PRICING[SKU],0)) -> 2.5 gal | F29: =COUNTIFS(PRICING[SKU],B29) -> 1 | G29: 150 gal | J29: =SUMIFS(PRICING[Rebate $],PRICING[SKU],Rebate_Lookup[[#This Row],[SKU CODE]],PRICING[Set],1) -> $37.50 | K29: =SUMIFS(PRICING[Rebate $],PRICING[SKU],Rebate_Lookup[[#This Row],[SKU CODE]],PRICING[Set],2) -> 0 | L29: =SUMIFS(PRICING[Rebate $],PRICING[SKU],Rebate_Lookup[[#This Row],[SKU CODE]],PRICING[Set],3) -> 0 | M29: =SUMIF('2025 LL-CALCULATOR - UNITS'!A:A,Rebate_Lookup[[#This Row],[SKU CODE]],'2025 LL-CALCULATOR - UNITS'!J:J) -> 0 | N29: =IF(Rebate_Lookup[[#This Row],[Instances]]=1,1, IF(AND(Rebate_Lookup[[#This Row],[Instances]]=2,Rebate_Lookup[[#This Row],[Order Form Quantity]]<Rebate_Lookup[[#This Row],[MOQ_2]]),1,IF(AND(Rebate_Lookup[[#This Row],[Instances]]=2,Rebate_Lookup[[#This Row],[Order Form Quantity]]>=Rebate_Lookup[[#This Row],[MOQ_2]]),2, IF(AND(Rebate_Lookup[[#This Row],[Instances]]=3,Rebate_Lookup[[#This Row],[Order Form Quantity]]<Rebate_Lookup[[#This Row],[MOQ_2]]),1,IF(AND(Rebate_Lookup[[#This Row],[Instances]]=3,Rebate_Lookup[[#This Row],[MOQ_2]]<=Rebate_Lookup[[#This Row],[Order Form Quantity]],Rebate_Lookup[[#This Row],[Order Form Quantity]]<Rebate_Lookup[[#This Row],[MOQ_3]]),2,IF(AND(Rebate_Lookup[[#This Row],[Instances]]=3,Rebate_Lookup[[#This Row],[Order Form Quantity]]>=Rebate_Lookup[[#This Row],[MOQ_3]]),3)))))) -> 1 | O29: =COUNTIF('2025 LL-CALCULATOR - UNITS'!A:A,Rebate_Lookup[[#This Row],[SKU CODE]]) -> 0 | P29: 0
B30: 87300722 | C30: =INDEX(PRICING[Agency/TT],MATCH(Rebate_Lookup[[#This Row],[SKU CODE]],PRICING[SKU],0)) -> TT | D30: =INDEX(PRICING[Product],MATCH(B30,PRICING[SKU],0)) -> Acclaim Extra | E30: =INDEX(PRICING[Size],MATCH(Rebate_Lookup[[#This Row],[SKU CODE]],PRICING[SKU],0)) -> 1 gal | F30: =COUNTIFS(PRICING[SKU],B30) -> 1 | G30: 1 | J30: =SUMIFS(PRICING[Rebate $],PRICING[SKU],Rebate_Lookup[[#This Row],[SKU CODE]],PRICING[Set],1) -> $90.00 | K30: =SUMIFS(PRICING[Rebate $],PRICING[SKU],Rebate_Lookup[[#This Row],[SKU CODE]],PRICING[Set],2) -> 0 | L30: =SUMIFS(PRICING[Rebate $],PRICING[SKU],Rebate_Lookup[[#This Row],[SKU CODE]],PRICING[Set],3) -> 0 | M30: =SUMIF('2025 LL-CALCULATOR - UNITS'!A:A,Rebate_Lookup[[#This Row],[SKU CODE]],'2025 LL-CALCULATOR - UNITS'!J:J) -> 0 | N30: =IF(Rebate_Lookup[[#This Row],[Instances]]=1,1, IF(AND(Rebate_Lookup[[#This Row],[Instances]]=2,Rebate_Lookup[[#This Row],[Order Form Quantity]]<Rebate_Lookup[[#This Row],[MOQ_2]]),1,IF(AND(Rebate_Lookup[[#This Row],[Instances]]=2,Rebate_Lookup[[#This Row],[Order Form Quantity]]>=Rebate_Lookup[[#This Row],[MOQ_2]]),2, IF(AND(Rebate_Lookup[[#This Row],[Instances]]=3,Rebate_Lookup[[#This Row],[Order Form Quantity]]<Rebate_Lookup[[#This Row],[MOQ_2]]),1,IF(AND(Rebate_Lookup[[#This Row],[Instances]]=3,Rebate_Lookup[[#This Row],[MOQ_2]]<=Rebate_Lookup[[#This Row],[Order Form Quantity]],Rebate_Lookup[[#This Row],[Order Form Quantity]]<Rebate_Lookup[[#This Row],[MOQ_3]]),2,IF(AND(Rebate_Lookup[[#This Row],[Instances]]=3,Rebate_Lookup[[#This Row],[Order Form Quantity]]>=Rebate_Lookup[[#This Row],[MOQ_3]]),3)))))) -> 1 | O30: =COUNTIF('2025 LL-CALCULATOR - UNITS'!A:A,Rebate_Lookup[[#This Row],[SKU CODE]]) -> 0 | P30: 0
B31: 11008351 | C31: =INDEX(PRICING[Agency/TT],MATCH(Rebate_Lookup[[#This Row],[SKU CODE]],PRICING[SKU],0)) -> TT | D31: =INDEX(PRICING[Product],MATCH(B31,PRICING[SKU],0)) -> Blindside® Herbicide | E31: =INDEX(PRICING[Size],MATCH(Rebate_Lookup[[#This Row],[SKU CODE]],PRICING[SKU],0)) -> 0.5 lb | F31: =COUNTIFS(PRICING[SKU],B31) -> 1 | G31: 1 | J31: =SUMIFS(PRICING[Rebate $],PRICING[SKU],Rebate_Lookup[[#This Row],[SKU CODE]],PRICING[Set],1) -> $22.00 | K31: =SUMIFS(PRICING[Rebate $],PRICING[SKU],Rebate_Lookup[[#This Row],[SKU CODE]],PRICING[Set],2) -> 0 | L31: =SUMIFS(PRICING[Rebate $],PRICING[SKU],Rebate_Lookup[[#This Row],[SKU CODE]],PRICING[Set],3) -> 0 | M31: =SUMIF('2025 LL-CALCULATOR - UNITS'!A:A,Rebate_Lookup[[#This Row],[SKU CODE]],'2025 LL-CALCULATOR - UNITS'!J:J) -> 0 | N31: =IF(Rebate_Lookup[[#This Row],[Instances]]=1,1, IF(AND(Rebate_Lookup[[#This Row],[Instances]]=2,Rebate_Lookup[[#This Row],[Order Form Quantity]]<Rebate_Lookup[[#This Row],[MOQ_2]]),1,IF(AND(Rebate_Lookup[[#This Row],[Instances]]=2,Rebate_Lookup[[#This Row],[Order Form Quantity]]>=Rebate_Lookup[[#This Row],[MOQ_2]]),2, IF(AND(Rebate_Lookup[[#This Row],[Instances]]=3,Rebate_Lookup[[#This Row],[Order Form Quantity]]<Rebate_Lookup[[#This Row],[MOQ_2]]),1,IF(AND(Rebate_Lookup[[#This Row],[Instances]]=3,Rebate_Lookup[[#This Row],[MOQ_2]]<=Rebate_Lookup[[#This Row],[Order Form Quantity]],Rebate_Lookup[[#This Row],[Order Form Quantity]]<Rebate_Lookup[[#This Row],[MOQ_3]]),2,IF(AND(Rebate_Lookup[[#This Row],[Instances]]=3,Rebate_Lookup[[#This Row],[Order Form Quantity]]>=Rebate_Lookup[[#This Row],[MOQ_3]]),3)))))) -> 1 | O31: =COUNTIF('2025 LL-CALCULATOR - UNITS'!A:A,Rebate_Lookup[[#This Row],[SKU CODE]]) -> 0 | P31: 0
B32: 79714858 | C32: =INDEX(PRICING[Agency/TT],MATCH(Rebate_Lookup[[#This Row],[SKU CODE]],PRICING[SKU],0)) -> A | D32: =INDEX(PRICING[Product],MATCH(B32,PRICING[SKU],0)) -> Celsius® WG | E32: =INDEX(PRICING[Size],MATCH(Rebate_Lookup[[#This Row],[SKU CODE]],PRICING[SKU],0)) -> 10 oz | F32: =COUNTIFS(PRICING[SKU],B32) -> 3 | G32: 1 | H32: 48 | I32: 96 | J32: =SUMIFS(PRICING[Rebate $],PRICING[SKU],Rebate_Lookup[[#This Row],[SKU CODE]],PRICING[Set],1) -> 0 | K32: =SUMIFS(PRICING[Rebate $],PRICING[SKU],Rebate_Lookup[[#This Row],[SKU CODE]],PRICING[Set],2) -> $12.00 | L32: =SUMIFS(PRICING[Rebate $],PRICING[SKU],Rebate_Lookup[[#This Row],[SKU CODE]],PRICING[Set],3) -> $24.00 | M32: =SUMIF('2025 LL-CALCULATOR - UNITS'!A:A,Rebate_Lookup[[#This Row],[SKU CODE]],'2025 LL-CALCULATOR - UNITS'!J:J) -> 0 | N32: =IF(Rebate_Lookup[[#This Row],[Instances]]=1,1, IF(AND(Rebate_Lookup[[#This Row],[Instances]]=2,Rebate_Lookup[[#This Row],[Order Form Quantity]]<Rebate_Lookup[[#This Row],[MOQ_2]]),1,IF(AND(Rebate_Lookup[[#This Row],[Instances]]=2,Rebate_Lookup[[#This Row],[Order Form Quantity]]>=Rebate_Lookup[[#This Row],[MOQ_2]]),2, IF(AND(Rebate_Lookup[[#This Row],[Instances]]=3,Rebate_Lookup[[#This Row],[Order Form Quantity]]<Rebate_Lookup[[#This Row],[MOQ_2]]),1,IF(AND(Rebate_Lookup[[#This Row],[Instances]]=3,Rebate_Lookup[[#This Row],[MOQ_2]]<=Rebate_Lookup[[#This Row],[Order Form Quantity]],Rebate_Lookup[[#This Row],[Order Form Quantity]]<Rebate_Lookup[[#This Row],[MOQ_3]]),2,IF(AND(Rebate_Lookup[[#This Row],[Instances]]=3,Rebate_Lookup[[#This Row],[Order Form Quantity]]>=Rebate_Lookup[[#This Row],[MOQ_3]]),3)))))) -> 1 | O32: =COUNTIF('2025 LL-CALCULATOR - UNITS'!A:A,Rebate_Lookup[[#This Row],[SKU CODE]]) -> 1 | P32: =Rebate_Lookup[[#This Row],[Order Form Quantity]]>=48 -> FALSE
B33: D00000911 | C33: =INDEX(PRICING[Agency/TT],MATCH(Rebate_Lookup[[#This Row],[SKU CODE]],PRICING[SKU],0)) -> A | D33: =INDEX(PRICING[Product],MATCH(B33,PRICING[SKU],0)) -> Celsius® XTRA | E33: =INDEX(PRICING[Size],MATCH(Rebate_Lookup[[#This Row],[SKU CODE]],PRICING[SKU],0)) -> 10 oz | F33: =COUNTIFS(PRICING[SKU],B33) -> 3 | G33: 1 | H33: 16 | I33: 32 | J33: =SUMIFS(PRICING[Rebate $],PRICING[SKU],Rebate_Lookup[[#This Row],[SKU CODE]],PRICING[Set],1) -> 0 | K33: =SUMIFS(PRICING[Rebate $],PRICING[SKU],Rebate_Lookup[[#This Row],[SKU CODE]],PRICING[Set],2) -> $12.00 | L33: =SUMIFS(PRICING[Rebate $],PRICING[SKU],Rebate_Lookup[[#This Row],[SKU CODE]],PRICING[Set],3) -> $24.00 | M33: =SUMIF('2025 LL-CALCULATOR - UNITS'!A:A,Rebate_Lookup[[#This Row],[SKU CODE]],'2025 LL-CALCULATOR - UNITS'!J:J) -> 0 | N33: =IF(Rebate_Lookup[[#This Row],[Instances]]=1,1, IF(AND(Rebate_Lookup[[#This Row],[Instances]]=2,Rebate_Lookup[[#This Row],[Order Form Quantity]]<Rebate_Lookup[[#This Row],[MOQ_2]]),1,IF(AND(Rebate_Lookup[[#This Row],[Instances]]=2,Rebate_Lookup[[#This Row],[Order Form Quantity]]>=Rebate_Lookup[[#This Row],[MOQ_2]]),2, IF(AND(Rebate_Lookup[[#This Row],[Instances]]=3,Rebate_Lookup[[#This Row],[Order Form Quantity]]<Rebate_Lookup[[#This Row],[MOQ_2]]),1,IF(AND(Rebate_Lookup[[#This Row],[Instances]]=3,Rebate_Lookup[[#This Row],[MOQ_2]]<=Rebate_Lookup[[#This Row],[Order Form Quantity]],Rebate_Lookup[[#This Row],[Order Form Quantity]]<Rebate_Lookup[[#This Row],[MOQ_3]]),2,IF(AND(Rebate_Lookup[[#This Row],[Instances]]=3,Rebate_Lookup[[#This Row],[Order Form Quantity]]>=Rebate_Lookup[[#This Row],[MOQ_3]]),3)))))) -> 1 | O33: =COUNTIF('2025 LL-CALCULATOR - UNITS'!A:A,Rebate_Lookup[[#This Row],[SKU CODE]]) -> 1 | P33: =Rebate_Lookup[[#This Row],[Order Form Quantity]]>=16 -> FALSE
B34: 11008357 | C34: =INDEX(PRICING[Agency/TT],MATCH(Rebate_Lookup[[#This Row],[SKU CODE]],PRICING[SKU],0)) -> TT | D34: =INDEX(PRICING[Product],MATCH(B34,PRICING[SKU],0)) -> Dismiss® CA Herbicide | E34: =INDEX(PRICING[Size],MATCH(Rebate_Lookup[[#This Row],[SKU CODE]],PRICING[SKU],0)) -> 6 oz | F34: =COUNTIFS(PRICING[SKU],B34) -> 1 | J34: =SUMIFS(PRICING[Rebate $],PRICING[SKU],Rebate_Lookup[[#This Row],[SKU CODE]],PRICING[Set],1) -> $14.00 | K34: =SUMIFS(PRICING[Rebate $],PRICING[SKU],Rebate_Lookup[[#This Row],[SKU CODE]],PRICING[Set],2) -> 0 | L34: =SUMIFS(PRICING[Rebate $],PRICING[SKU],Rebate_Lookup[[#This Row],[SKU CODE]],PRICING[Set],3) -> 0 | M34: =SUMIF('2025 LL-CALCULATOR - UNITS'!A:A,Rebate_Lookup[[#This Row],[SKU CODE]],'2025 LL-CALCULATOR - UNITS'!J:J) -> 0 | N34: =IF(Rebate_Lookup[[#This Row],[Instances]]=1,1, IF(AND(Rebate_Lookup[[#This Row],[Instances]]=2,Rebate_Lookup[[#This Row],[Order Form Quantity]]<Rebate_Lookup[[#This Row],[MOQ_2]]),1,IF(AND(Rebate_Lookup[[#This Row],[Instances]]=2,Rebate_Lookup[[#This Row],[Order Form Quantity]]>=Rebate_Lookup[[#This Row],[MOQ_2]]),2, IF(AND(Rebate_Lookup[[#This Row],[Instances]]=3,Rebate_Lookup[[#This Row],[Order Form Quantity]]<Rebate_Lookup[[#This Row],[MOQ_2]]),1,IF(AND(Rebate_Lookup[[#This Row],[Instances]]=3,Rebate_Lookup[[#This Row],[MOQ_2]]<=Rebate_Lookup[[#This Row],[Order Form Quantity]],Rebate_Lookup[[#This Row],[Order Form Quantity]]<Rebate_Lookup[[#This Row],[MOQ_3]]),2,IF(AND(Rebate_Lookup[[#This Row],[Instances]]=3,Rebate_Lookup[[#This Row],[Order Form Quantity]]>=Rebate_Lookup[[#This Row],[MOQ_3]]),3)))))) -> 1 | O34: =COUNTIF('2025 LL-CALCULATOR - UNITS'!A:A,Rebate_Lookup[[#This Row],[SKU CODE]]) -> 0 | P34: 0
B35: 11008409 | C35: =INDEX(PRICING[Agency/TT],MATCH(Rebate_Lookup[[#This Row],[SKU CODE]],PRICING[SKU],0)) -> A | D35: =INDEX(PRICING[Product],MATCH(B35,PRICING[SKU],0)) -> Dismiss® NXT Herbicide | E35: =INDEX(PRICING[Size],MATCH(Rebate_Lookup[[#This Row],[SKU CODE]],PRICING[SKU],0)) -> 10 oz | F35: =COUNTIFS(PRICING[SKU],B35) -> 1 | J35: =SUMIFS(PRICING[Rebate $],PRICING[SKU],Rebate_Lookup[[#This Row],[SKU CODE]],PRICING[Set],1) -> $11.00 | K35: =SUMIFS(PRICING[Rebate $],PRICING[SKU],Rebate_Lookup[[#This Row],[SKU CODE]],PRICING[Set],2) -> 0 | L35: =SUMIFS(PRICING[Rebate $],PRICING[SKU],Rebate_Lookup[[#This Row],[SKU CODE]],PRICING[Set],3) -> 0 | M35: =SUMIF('2025 LL-CALCULATOR - UNITS'!A:A,Rebate_Lookup[[#This Row],[SKU CODE]],'2025 LL-CALCULATOR - UNITS'!J:J) -> 0 | N35: =IF(Rebate_Lookup[[#This Row],[Instances]]=1,1, IF(AND(Rebate_Lookup[[#This Row],[Instances]]=2,Rebate_Lookup[[#This Row],[Order Form Quantity]]<Rebate_Lookup[[#This Row],[MOQ_2]]),1,IF(AND(Rebate_Lookup[[#This Row],[Instances]]=2,Rebate_Lookup[[#This Row],[Order Form Quantity]]>=Rebate_Lookup[[#This Row],[MOQ_2]]),2, IF(AND(Rebate_Lookup[[#This Row],[Instances]]=3,Rebate_Lookup[[#This Row],[Order Form Quantity]]<Rebate_Lookup[[#This Row],[MOQ_2]]),1,IF(AND(Rebate_Lookup[[#This Row],[Instances]]=3,Rebate_Lookup[[#This Row],[MOQ_2]]<=Rebate_Lookup[[#This Row],[Order Form Quantity]],Rebate_Lookup[[#This Row],[Order Form Quantity]]<Rebate_Lookup[[#This Row],[MOQ_3]]),2,IF(AND(Rebate_Lookup[[#This Row],[Instances]]=3,Rebate_Lookup[[#This Row],[Order Form Quantity]]>=Rebate_Lookup[[#This Row],[MOQ_3]]),3)))))) -> 1 | O35: =COUNTIF('2025 LL-CALCULATOR - UNITS'!A:A,Rebate_Lookup[[#This Row],[SKU CODE]]) -> 0 | P35: 0
B36: 11008589 | C36: =INDEX(PRICING[Agency/TT],MATCH(Rebate_Lookup[[#This Row],[SKU CODE]],PRICING[SKU],0)) -> A | D36: =INDEX(PRICING[Product],MATCH(B36,PRICING[SKU],0)) -> Dismiss® NXT Herbicide | E36: =INDEX(PRICING[Size],MATCH(Rebate_Lookup[[#This Row],[SKU CODE]],PRICING[SKU],0)) -> 60 oz | F36: =COUNTIFS(PRICING[SKU],B36) -> 3 | G36: 1 | H36: 16 | I36: 32 | J36: =SUMIFS(PRICING[Rebate $],PRICING[SKU],Rebate_Lookup[[#This Row],[SKU CODE]],PRICING[Set],1) -> 0 | K36: =SUMIFS(PRICING[Rebate $],PRICING[SKU],Rebate_Lookup[[#This Row],[SKU CODE]],PRICING[Set],2) -> $60.00 | L36: =SUMIFS(PRICING[Rebate $],PRICING[SKU],Rebate_Lookup[[#This Row],[SKU CODE]],PRICING[Set],3) -> $150.00 | M36: =SUMIF('2025 LL-CALCULATOR - UNITS'!A:A,Rebate_Lookup[[#This Row],[SKU CODE]],'2025 LL-CALCULATOR - UNITS'!J:J) -> 0 | N36: =IF(Rebate_Lookup[[#This Row],[Instances]]=1,1, IF(AND(Rebate_Lookup[[#This Row],[Instances]]=2,Rebate_Lookup[[#This Row],[Order Form Quantity]]<Rebate_Lookup[[#This Row],[MOQ_2]]),1,IF(AND(Rebate_Lookup[[#This Row],[Instances]]=2,Rebate_Lookup[[#This Row],[Order Form Quantity]]>=Rebate_Lookup[[#This Row],[MOQ_2]]),2, IF(AND(Rebate_Lookup[[#This Row],[Instances]]=3,Rebate_Lookup[[#This Row],[Order Form Quantity]]<Rebate_Lookup[[#This Row],[MOQ_2]]),1,IF(AND(Rebate_Lookup[[#This Row],[Instances]]=3,Rebate_Lookup[[#This Row],[MOQ_2]]<=Rebate_Lookup[[#This Row],[Order Form Quantity]],Rebate_Lookup[[#This Row],[Order Form Quantity]]<Rebate_Lookup[[#This Row],[MOQ_3]]),2,IF(AND(Rebate_Lookup[[#This Row],[Instances]]=3,Rebate_Lookup[[#This Row],[Order Form Quantity]]>=Rebate_Lookup[[#This Row],[MOQ_3]]),3)))))) -> 1 | O36: =COUNTIF('2025 LL-CALCULATOR - UNITS'!A:A,Rebate_Lookup[[#This Row],[SKU CODE]]) -> 0 | P36: =Rebate_Lookup[[#This Row],[Order Form Quantity]]>=16 -> FALSE
B37: 11008474 | C37: =INDEX(PRICING[Agency/TT],MATCH(Rebate_Lookup[[#This Row],[SKU CODE]],PRICING[SKU],0)) -> TT | D37: =INDEX(PRICING[Product],MATCH(B37,PRICING[SKU],0)) -> Dismiss® South Herbicide | E37: =INDEX(PRICING[Size],MATCH(Rebate_Lookup[[#This Row],[SKU CODE]],PRICING[SKU],0)) -> 1 pint | F37: =COUNTIFS(PRICING[SKU],B37) -> 1 | G37: 1 | J37: =SUMIFS(PRICING[Rebate $],PRICING[SKU],Rebate_Lookup[[#This Row],[SKU CODE]],PRICING[Set],1) -> $24.00 | K37: =SUMIFS(PRICING[Rebate $],PRICING[SKU],Rebate_Lookup[[#This Row],[SKU CODE]],PRICING[Set],2) -> 0 | L37: =SUMIFS(PRICING[Rebate $],PRICING[SKU],Rebate_Lookup[[#This Row],[SKU CODE]],PRICING[Set],3) -> 0 | M37: =SUMIF('2025 LL-CALCULATOR - UNITS'!A:A,Rebate_Lookup[[#This Row],[SKU CODE]],'2025 LL-CALCULATOR - UNITS'!J:J) -> 0 | N37: =IF(Rebate_Lookup[[#This Row],[Instances]]=1,1, IF(AND(Rebate_Lookup[[#This Row],[Instances]]=2,Rebate_Lookup[[#This Row],[Order Form Quantity]]<Rebate_Lookup[[#This Row],[MOQ_2]]),1,IF(AND(Rebate_Lookup[[#This Row],[Instances]]=2,Rebate_Lookup[[#This Row],[Order Form Quantity]]>=Rebate_Lookup[[#This Row],[MOQ_2]]),2, IF(AND(Rebate_Lookup[[#This Row],[Instances]]=3,Rebate_Lookup[[#This Row],[Order Form Quantity]]<Rebate_Lookup[[#This Row],[MOQ_2]]),1,IF(AND(Rebate_Lookup[[#This Row],[Instances]]=3,Rebate_Lookup[[#This Row],[MOQ_2]]<=Rebate_Lookup[[#This Row],[Order Form Quantity]],Rebate_Lookup[[#This Row],[Order Form Quantity]]<Rebate_Lookup[[#This Row],[MOQ_3]]),2,IF(AND(Rebate_Lookup[[#This Row],[Instances]]=3,Rebate_Lookup[[#This Row],[Order Form Quantity]]>=Rebate_Lookup[[#This Row],[MOQ_3]]),3)))))) -> 1 | O37: =COUNTIF('2025 LL-CALCULATOR - UNITS'!A:A,Rebate_Lookup[[#This Row],[SKU CODE]]) -> 0 | P37: 0
B38: 11008475 | C38: =INDEX(PRICING[Agency/TT],MATCH(Rebate_Lookup[[#This Row],[SKU CODE]],PRICING[SKU],0)) -> TT | D38: =INDEX(PRICING[Product],MATCH(B38,PRICING[SKU],0)) -> Dismiss® Turf Herbicide | E38: =INDEX(PRICING[Size],MATCH(Rebate_Lookup[[#This Row],[SKU CODE]],PRICING[SKU],0)) -> 6 oz | F38: =COUNTIFS(PRICING[SKU],B38) -> 1 | G38: 1 | J38: =SUMIFS(PRICING[Rebate $],PRICING[SKU],Rebate_Lookup[[#This Row],[SKU CODE]],PRICING[Set],1) -> $14.00 | K38: =SUMIFS(PRICING[Rebate $],PRICING[SKU],Rebate_Lookup[[#This Row],[SKU CODE]],PRICING[Set],2) -> 0 | L38: =SUMIFS(PRICING[Rebate $],PRICING[SKU],Rebate_Lookup[[#This Row],[SKU CODE]],PRICING[Set],3) -> 0 | M38: =SUMIF('2025 LL-CALCULATOR - UNITS'!A:A,Rebate_Lookup[[#This Row],[SKU CODE]],'2025 LL-CALCULATOR - UNITS'!J:J) -> 0 | N38: =IF(Rebate_Lookup[[#This Row],[Instances]]=1,1, IF(AND(Rebate_Lookup[[#This Row],[Instances]]=2,Rebate_Lookup[[#This Row],[Order Form Quantity]]<Rebate_Lookup[[#This Row],[MOQ_2]]),1,IF(AND(Rebate_Lookup[[#This Row],[Instances]]=2,Rebate_Lookup[[#This Row],[Order Form Quantity]]>=Rebate_Lookup[[#This Row],[MOQ_2]]),2, IF(AND(Rebate_Lookup[[#This Row],[Instances]]=3,Rebate_Lookup[[#This Row],[Order Form Quantity]]<Rebate_Lookup[[#This Row],[MOQ_2]]),1,IF(AND(Rebate_Lookup[[#This Row],[Instances]]=3,Rebate_Lookup[[#This Row],[MOQ_2]]<=Rebate_Lookup[[#This Row],[Order Form Quantity]],Rebate_Lookup[[#This Row],[Order Form Quantity]]<Rebate_Lookup[[#This Row],[MOQ_3]]),2,IF(AND(Rebate_Lookup[[#This Row],[Instances]]=3,Rebate_Lookup[[#This Row],[Order Form Quantity]]>=Rebate_Lookup[[#This Row],[MOQ_3]]),3)))))) -> 1 | O38: =COUNTIF('2025 LL-CALCULATOR - UNITS'!A:A,Rebate_Lookup[[#This Row],[SKU CODE]]) -> 0 | P38: 0
B39: 11008336 | C39: =INDEX(PRICING[Agency/TT],MATCH(Rebate_Lookup[[#This Row],[SKU CODE]],PRICING[SKU],0)) -> TT | D39: =INDEX(PRICING[Product],MATCH(B39,PRICING[SKU],0)) -> Dismiss® Turf Herbicide | E39: =INDEX(PRICING[Size],MATCH(Rebate_Lookup[[#This Row],[SKU CODE]],PRICING[SKU],0)) -> 64 oz | F39: =COUNTIFS(PRICING[SKU],B39) -> 1 | G39: 1 | J39: =SUMIFS(PRICING[Rebate $],PRICING[SKU],Rebate_Lookup[[#This Row],[SKU CODE]],PRICING[Set],1) -> $40.00 | K39: =SUMIFS(PRICING[Rebate $],PRICING[SKU],Rebate_Lookup[[#This Row],[SKU CODE]],PRICING[Set],2) -> 0 | L39: =SUMIFS(PRICING[Rebate $],PRICING[SKU],Rebate_Lookup[[#This Row],[SKU CODE]],PRICING[Set],3) -> 0 | M39: =SUMIF('2025 LL-CALCULATOR - UNITS'!A:A,Rebate_Lookup[[#This Row],[SKU CODE]],'2025 LL-CALCULATOR - UNITS'!J:J) -> 0 | N39: =IF(Rebate_Lookup[[#This Row],[Instances]]=1,1, IF(AND(Rebate_Lookup[[#This Row],[Instances]]=2,Rebate_Lookup[[#This Row],[Order Form Quantity]]<Rebate_Lookup[[#This Row],[MOQ_2]]),1,IF(AND(Rebate_Lookup[[#This Row],[Instances]]=2,Rebate_Lookup[[#This Row],[Order Form Quantity]]>=Rebate_Lookup[[#This Row],[MOQ_2]]),2, IF(AND(Rebate_Lookup[[#This Row],[Instances]]=3,Rebate_Lookup[[#This Row],[Order Form Quantity]]<Rebate_Lookup[[#This Row],[MOQ_2]]),1,IF(AND(Rebate_Lookup[[#This Row],[Instances]]=3,Rebate_Lookup[[#This Row],[MOQ_2]]<=Rebate_Lookup[[#This Row],[Order Form Quantity]],Rebate_Lookup[[#This Row],[Order Form Quantity]]<Rebate_Lookup[[#This Row],[MOQ_3]]),2,IF(AND(Rebate_Lookup[[#This Row],[Instances]]=3,Rebate_Lookup[[#This Row],[Order Form Quantity]]>=Rebate_Lookup[[#This Row],[MOQ_3]]),3)))))) -> 1 | O39: =COUNTIF('2025 LL-CALCULATOR - UNITS'!A:A,Rebate_Lookup[[#This Row],[SKU CODE]]) -> 0 | P39: 0
B40: 11008464 | C40: =INDEX(PRICING[Agency/TT],MATCH(Rebate_Lookup[[#This Row],[SKU CODE]],PRICING[SKU],0)) -> A | D40: =INDEX(PRICING[Product],MATCH(B40,PRICING[SKU],0)) -> Echelon® 4SC Herbicide | E40: =INDEX(PRICING[Size],MATCH(Rebate_Lookup[[#This Row],[SKU CODE]],PRICING[SKU],0)) -> 1 gal | F40: =COUNTIFS(PRICING[SKU],B40) -> 2 | G40: 1 | H40: 16 | J40: =SUMIFS(PRICING[Rebate $],PRICING[SKU],Rebate_Lookup[[#This Row],[SKU CODE]],PRICING[Set],1) -> 0 | K40: =SUMIFS(PRICING[Rebate $],PRICING[SKU],Rebate_Lookup[[#This Row],[SKU CODE]],PRICING[Set],2) -> $145.00 | L40: =SUMIFS(PRICING[Rebate $],PRICING[SKU],Rebate_Lookup[[#This Row],[SKU CODE]],PRICING[Set],3) -> 0 | M40: =SUMIF('2025 LL-CALCULATOR - UNITS'!A:A,Rebate_Lookup[[#This Row],[SKU CODE]],'2025 LL-CALCULATOR - UNITS'!J:J) -> 0 | N40: =IF(Rebate_Lookup[[#This Row],[Instances]]=1,1, IF(AND(Rebate_Lookup[[#This Row],[Instances]]=2,Rebate_Lookup[[#This Row],[Order Form Quantity]]<Rebate_Lookup[[#This Row],[MOQ_2]]),1,IF(AND(Rebate_Lookup[[#This Row],[Instances]]=2,Rebate_Lookup[[#This Row],[Order Form Quantity]]>=Rebate_Lookup[[#This Row],[MOQ_2]]),2, IF(AND(Rebate_Lookup[[#This Row],[Instances]]=3,Rebate_Lookup[[#This Row],[Order Form Quantity]]<Rebate_Lookup[[#This Row],[MOQ_2]]),1,IF(AND(Rebate_Lookup[[#This Row],[Instances]]=3,Rebate_Lookup[[#This Row],[MOQ_2]]<=Rebate_Lookup[[#This Row],[Order Form Quantity]],Rebate_Lookup[[#This Row],[Order Form Quantity]]<Rebate_Lookup[[#This Row],[MOQ_3]]),2,IF(AND(Rebate_Lookup[[#This Row],[Instances]]=3,Rebate_Lookup[[#This Row],[Order Form Quantity]]>=Rebate_Lookup[[#This Row],[MOQ_3]]),3)))))) -> 1 | O40: =COUNTIF('2025 LL-CALCULATOR - UNITS'!A:A,Rebate_Lookup[[#This Row],[SKU CODE]]) -> 0 | P40: =Rebate_Lookup[[#This Row],[Order Form Quantity]]>=16 -> FALSE
B41: D00000946 | C41: =INDEX(PRICING[Agency/TT],MATCH(Rebate_Lookup[[#This Row],[SKU CODE]],PRICING[SKU],0)) -> A | D41: =INDEX(PRICING[Product],MATCH(B41,PRICING[SKU],0)) -> Marengo FLO | E41: =INDEX(PRICING[Size],MATCH(Rebate_Lookup[[#This Row],[SKU CODE]],PRICING[SKU],0)) -> 64 oz | F41: =COUNTIFS(PRICING[SKU],B41) -> 3 | G41: 1 | H41: 4 | I41: 16 | J41: =SUMIFS(PRICING[Rebate $],PRICING[SKU],Rebate_Lookup[[#This Row],[SKU CODE]],PRICING[Set],1) -> 0 | K41: =SUMIFS(PRICING[Rebate $],PRICING[SKU],Rebate_Lookup[[#This Row],[SKU CODE]],PRICING[Set],2) -> 0 | L41: =SUMIFS(PRICING[Rebate $],PRICING[SKU],Rebate_Lookup[[#This Row],[SKU CODE]],PRICING[Set],3) -> 0 | M41: =SUMIF('2025 LL-CALCULATOR - UNITS'!A:A,Rebate_Lookup[[#This Row],[SKU CODE]],'2025 LL-CALCULATOR - UNITS'!J:J) -> 0 | N41: =IF(Rebate_Lookup[[#This Row],[Instances]]=1,1, IF(AND(Rebate_Lookup[[#This Row],[Instances]]=2,Rebate_Lookup[[#This Row],[Order Form Quantity]]<Rebate_Lookup[[#This Row],[MOQ_2]]),1,IF(AND(Rebate_Lookup[[#This Row],[Instances]]=2,Rebate_Lookup[[#This Row],[Order Form Quantity]]>=Rebate_Lookup[[#This Row],[MOQ_2]]),2, IF(AND(Rebate_Lookup[[#This Row],[Instances]]=3,Rebate_Lookup[[#This Row],[Order Form Quantity]]<Rebate_Lookup[[#This Row],[MOQ_2]]),1,IF(AND(Rebate_Lookup[[#This Row],[Instances]]=3,Rebate_Lookup[[#This Row],[MOQ_2]]<=Rebate_Lookup[[#This Row],[Order Form Quantity]],Rebate_Lookup[[#This Row],[Order Form Quantity]]<Rebate_Lookup[[#This Row],[MOQ_3]]),2,IF(AND(Rebate_Lookup[[#This Row],[Instances]]=3,Rebate_Lookup[[#This Row],[Order Form Quantity]]>=Rebate_Lookup[[#This Row],[MOQ_3]]),3)))))) -> 1 | O41: =COUNTIF('2025 LL-CALCULATOR - UNITS'!A:A,Rebate_Lookup[[#This Row],[SKU CODE]]) -> 0 | P41: 0
B42: D00000945 | C42: =INDEX(PRICING[Agency/TT],MATCH(Rebate_Lookup[[#This Row],[SKU CODE]],PRICING[SKU],0)) -> A | D42: =INDEX(PRICING[Product],MATCH(B42,PRICING[SKU],0)) -> Marengo G | E42: =INDEX(PRICING[Size],MATCH(Rebate_Lookup[[#This Row],[SKU CODE]],PRICING[SKU],0)) -> 50 lb | F42: =COUNTIFS(PRICING[SKU],B42) -> 3 | G42: 1 | H42: 40 | I42: 120 | J42: =SUMIFS(PRICING[Rebate $],PRICING[SKU],Rebate_Lookup[[#This Row],[SKU CODE]],PRICING[Set],1) -> 0 | K42: =SUMIFS(PRICING[Rebate $],PRICING[SKU],Rebate_Lookup[[#This Row],[SKU CODE]],PRICING[Set],2) -> 0 | L42: =SUMIFS(PRICING[Rebate $],PRICING[SKU],Rebate_Lookup[[#This Row],[SKU CODE]],PRICING[Set],3) -> 0 | M42: =SUMIF('2025 LL-CALCULATOR - UNITS'!A:A,Rebate_Lookup[[#This Row],[SKU CODE]],'2025 LL-CALCULATOR - UNITS'!J:J) -> 0 | N42: =IF(Rebate_Lookup[[#This Row],[Instances]]=1,1, IF(AND(Rebate_Lookup[[#This Row],[Instances]]=2,Rebate_Lookup[[#This Row],[Order Form Quantity]]<Rebate_Lookup[[#This Row],[MOQ_2]]),1,IF(AND(Rebate_Lookup[[#This Row],[Instances]]=2,Rebate_Lookup[[#This Row],[Order Form Quantity]]>=Rebate_Lookup[[#This Row],[MOQ_2]]),2, IF(AND(Rebate_Lookup[[#This Row],[Instances]]=3,Rebate_Lookup[[#This Row],[Order Form Quantity]]<Rebate_Lookup[[#This Row],[MOQ_2]]),1,IF(AND(Rebate_Lookup[[#This Row],[Instances]]=3,Rebate_Lookup[[#This Row],[MOQ_2]]<=Rebate_Lookup[[#This Row],[Order Form Quantity]],Rebate_Lookup[[#This Row],[Order Form Quantity]]<Rebate_Lookup[[#This Row],[MOQ_3]]),2,IF(AND(Rebate_Lookup[[#This Row],[Instances]]=3,Rebate_Lookup[[#This Row],[Order Form Quantity]]>=Rebate_Lookup[[#This Row],[MOQ_3]]),3)))))) -> 1 | O42: =COUNTIF('2025 LL-CALCULATOR - UNITS'!A:A,Rebate_Lookup[[#This Row],[SKU CODE]]) -> 0 | P42: 0
B43: 86215578 | C43: =INDEX(PRICING[Agency/TT],MATCH(Rebate_Lookup[[#This Row],[SKU CODE]],PRICING[SKU],0)) -> TT | D43: =INDEX(PRICING[Product],MATCH(B43,PRICING[SKU],0)) -> Prograss EC | E43: =INDEX(PRICING[Size],MATCH(Rebate_Lookup[[#This Row],[SKU CODE]],PRICING[SKU],0)) -> 2.5 gal | F43: =COUNTIFS(PRICING[SKU],B43) -> 1 | G43: 1 | J43: =SUMIFS(PRICING[Rebate $],PRICING[SKU],Rebate_Lookup[[#This Row],[SKU CODE]],PRICING[Set],1) -> $22.00 | K43: =SUMIFS(PRICING[Rebate $],PRICING[SKU],Rebate_Lookup[[#This Row],[SKU CODE]],PRICING[Set],2) -> 0 | L43: =SUMIFS(PRICING[Rebate $],PRICING[SKU],Rebate_Lookup[[#This Row],[SKU CODE]],PRICING[Set],3) -> 0 | M43: =SUMIF('2025 LL-CALCULATOR - UNITS'!A:A,Rebate_Lookup[[#This Row],[SKU CODE]],'2025 LL-CALCULATOR - UNITS'!J:J) -> 0 | N43: =IF(Rebate_Lookup[[#This Row],[Instances]]=1,1, IF(AND(Rebate_Lookup[[#This Row],[Instances]]=2,Rebate_Lookup[[#This Row],[Order Form Quantity]]<Rebate_Lookup[[#This Row],[MOQ_2]]),1,IF(AND(Rebate_Lookup[[#This Row],[Instances]]=2,Rebate_Lookup[[#This Row],[Order Form Quantity]]>=Rebate_Lookup[[#This Row],[MOQ_2]]),2, IF(AND(Rebate_Lookup[[#This Row],[Instances]]=3,Rebate_Lookup[[#This Row],[Order Form Quantity]]<Rebate_Lookup[[#This Row],[MOQ_2]]),1,IF(AND(Rebate_Lookup[[#This Row],[Instances]]=3,Rebate_Lookup[[#This Row],[MOQ_2]]<=Rebate_Lookup[[#This Row],[Order Form Quantity]],Rebate_Lookup[[#This Row],[Order Form Quantity]]<Rebate_Lookup[[#This Row],[MOQ_3]]),2,IF(AND(Rebate_Lookup[[#This Row],[Instances]]=3,Rebate_Lookup[[#This Row],[Order Form Quantity]]>=Rebate_Lookup[[#This Row],[MOQ_3]]),3)))))) -> 1 | O43: =COUNTIF('2025 LL-CALCULATOR - UNITS'!A:A,Rebate_Lookup[[#This Row],[SKU CODE]]) -> 0 | P43: 0
B44: D00000913 | C44: =INDEX(PRICING[Agency/TT],MATCH(Rebate_Lookup[[#This Row],[SKU CODE]],PRICING[SKU],0)) -> TT | D44: =INDEX(PRICING[Product],MATCH(B44,PRICING[SKU],0)) -> Proxy | E44: =INDEX(PRICING[Size],MATCH(Rebate_Lookup[[#This Row],[SKU CODE]],PRICING[SKU],0)) -> 2.5 gal | F44: =COUNTIFS(PRICING[SKU],B44) -> 1 | G44: 1 | J44: =SUMIFS(PRICING[Rebate $],PRICING[SKU],Rebate_Lookup[[#This Row],[SKU CODE]],PRICING[Set],1) -> 0 | K44: =SUMIFS(PRICING[Rebate $],PRICING[SKU],Rebate_Lookup[[#This Row],[SKU CODE]],PRICING[Set],2) -> 0 | L44: =SUMIFS(PRICING[Rebate $],PRICING[SKU],Rebate_Lookup[[#This Row],[SKU CODE]],PRICING[Set],3) -> 0 | M44: =SUMIF('2025 LL-CALCULATOR - UNITS'!A:A,Rebate_Lookup[[#This Row],[SKU CODE]],'2025 LL-CALCULATOR - UNITS'!J:J) -> 0 | N44: =IF(Rebate_Lookup[[#This Row],[Instances]]=1,1, IF(AND(Rebate_Lookup[[#This Row],[Instances]]=2,Rebate_Lookup[[#This Row],[Order Form Quantity]]<Rebate_Lookup[[#This Row],[MOQ_2]]),1,IF(AND(Rebate_Lookup[[#This Row],[Instances]]=2,Rebate_Lookup[[#This Row],[Order Form Quantity]]>=Rebate_Lookup[[#This Row],[MOQ_2]]),2, IF(AND(Rebate_Lookup[[#This Row],[Instances]]=3,Rebate_Lookup[[#This Row],[Order Form Quantity]]<Rebate_Lookup[[#This Row],[MOQ_2]]),1,IF(AND(Rebate_Lookup[[#This Row],[Instances]]=3,Rebate_Lookup[[#This Row],[MOQ_2]]<=Rebate_Lookup[[#This Row],[Order Form Quantity]],Rebate_Lookup[[#This Row],[Order Form Quantity]]<Rebate_Lookup[[#This Row],[MOQ_3]]),2,IF(AND(Rebate_Lookup[[#This Row],[Instances]]=3,Rebate_Lookup[[#This Row],[Order Form Quantity]]>=Rebate_Lookup[[#This Row],[MOQ_3]]),3)))))) -> 1 | O44: =COUNTIF('2025 LL-CALCULATOR - UNITS'!A:A,Rebate_Lookup[[#This Row],[SKU CODE]]) -> 0 | P44: 0
B45: 11008447 | C45: =INDEX(PRICING[Agency/TT],MATCH(Rebate_Lookup[[#This Row],[SKU CODE]],PRICING[SKU],0)) -> TT | D45: =INDEX(PRICING[Product],MATCH(B45,PRICING[SKU],0)) -> QuickSilver® Herbicide | E45: =INDEX(PRICING[Size],MATCH(Rebate_Lookup[[#This Row],[SKU CODE]],PRICING[SKU],0)) -> 8 oz | F45: =COUNTIFS(PRICING[SKU],B45) -> 1 | G45: 1 | J45: =SUMIFS(PRICING[Rebate $],PRICING[SKU],Rebate_Lookup[[#This Row],[SKU CODE]],PRICING[Set],1) -> $20.00 | K45: =SUMIFS(PRICING[Rebate $],PRICING[SKU],Rebate_Lookup[[#This Row],[SKU CODE]],PRICING[Set],2) -> 0 | L45: =SUMIFS(PRICING[Rebate $],PRICING[SKU],Rebate_Lookup[[#This Row],[SKU CODE]],PRICING[Set],3) -> 0 | M45: =SUMIF('2025 LL-CALCULATOR - UNITS'!A:A,Rebate_Lookup[[#This Row],[SKU CODE]],'2025 LL-CALCULATOR - UNITS'!J:J) -> 0 | N45: =IF(Rebate_Lookup[[#This Row],[Instances]]=1,1, IF(AND(Rebate_Lookup[[#This Row],[Instances]]=2,Rebate_Lookup[[#This Row],[Order Form Quantity]]<Rebate_Lookup[[#This Row],[MOQ_2]]),1,IF(AND(Rebate_Lookup[[#This Row],[Instances]]=2,Rebate_Lookup[[#This Row],[Order Form Quantity]]>=Rebate_Lookup[[#This Row],[MOQ_2]]),2, IF(AND(Rebate_Lookup[[#This Row],[Instances]]=3,Rebate_Lookup[[#This Row],[Order Form Quantity]]<Rebate_Lookup[[#This Row],[MOQ_2]]),1,IF(AND(Rebate_Lookup[[#This Row],[Instances]]=3,Rebate_Lookup[[#This Row],[MOQ_2]]<=Rebate_Lookup[[#This Row],[Order Form Quantity]],Rebate_Lookup[[#This Row],[Order Form Quantity]]<Rebate_Lookup[[#This Row],[MOQ_3]]),2,IF(AND(Rebate_Lookup[[#This Row],[Instances]]=3,Rebate_Lookup[[#This Row],[Order Form Quantity]]>=Rebate_Lookup[[#This Row],[MOQ_3]]),3)))))) -> 1 | O45: =COUNTIF('2025 LL-CALCULATOR - UNITS'!A:A,Rebate_Lookup[[#This Row],[SKU CODE]]) -> 0 | P45: 0
B46: 79545312 | C46: =INDEX(PRICING[Agency/TT],MATCH(Rebate_Lookup[[#This Row],[SKU CODE]],PRICING[SKU],0)) -> A | D46: =INDEX(PRICING[Product],MATCH(B46,PRICING[SKU],0)) -> Revolver® | E46: =INDEX(PRICING[Size],MATCH(Rebate_Lookup[[#This Row],[SKU CODE]],PRICING[SKU],0)) -> 87 fl oz | F46: =COUNTIFS(PRICING[SKU],B46) -> 3 | G46: 1 | H46: 16 | I46: 32 | J46: =SUMIFS(PRICING[Rebate $],PRICING[SKU],Rebate_Lookup[[#This Row],[SKU CODE]],PRICING[Set],1) -> 0 | K46: =SUMIFS(PRICING[Rebate $],PRICING[SKU],Rebate_Lookup[[#This Row],[SKU CODE]],PRICING[Set],2) -> $50.00 | L46: =SUMIFS(PRICING[Rebate $],PRICING[SKU],Rebate_Lookup[[#This Row],[SKU CODE]],PRICING[Set],3) -> $100.00 | M46: =SUMIF('2025 LL-CALCULATOR - UNITS'!A:A,Rebate_Lookup[[#This Row],[SKU CODE]],'2025 LL-CALCULATOR - UNITS'!J:J) -> 0 | N46: =IF(Rebate_Lookup[[#This Row],[Instances]]=1,1, IF(AND(Rebate_Lookup[[#This Row],[Instances]]=2,Rebate_Lookup[[#This Row],[Order Form Quantity]]<Rebate_Lookup[[#This Row],[MOQ_2]]),1,IF(AND(Rebate_Lookup[[#This Row],[Instances]]=2,Rebate_Lookup[[#This Row],[Order Form Quantity]]>=Rebate_Lookup[[#This Row],[MOQ_2]]),2, IF(AND(Rebate_Lookup[[#This Row],[Instances]]=3,Rebate_Lookup[[#This Row],[Order Form Quantity]]<Rebate_Lookup[[#This Row],[MOQ_2]]),1,IF(AND(Rebate_Lookup[[#This Row],[Instances]]=3,Rebate_Lookup[[#This Row],[MOQ_2]]<=Rebate_Lookup[[#This Row],[Order Form Quantity]],Rebate_Lookup[[#This Row],[Order Form Quantity]]<Rebate_Lookup[[#This Row],[MOQ_3]]),2,IF(AND(Rebate_Lookup[[#This Row],[Instances]]=3,Rebate_Lookup[[#This Row],[Order Form Quantity]]>=Rebate_Lookup[[#This Row],[MOQ_3]]),3)))))) -> 1 | O46: =COUNTIF('2025 LL-CALCULATOR - UNITS'!A:A,Rebate_Lookup[[#This Row],[SKU CODE]]) -> 1 | P46: =Rebate_Lookup[[#This Row],[Order Form Quantity]]>=16 -> FALSE
B47: 79850980 | C47: =INDEX(PRICING[Agency/TT],MATCH(Rebate_Lookup[[#This Row],[SKU CODE]],PRICING[SKU],0)) -> TT | D47: =INDEX(PRICING[Product],MATCH(B47,PRICING[SKU],0)) -> Revolver® | E47: =INDEX(PRICING[Size],MATCH(Rebate_Lookup[[#This Row],[SKU CODE]],PRICING[SKU],0)) -> 32 fl oz | F47: =COUNTIFS(PRICING[SKU],B47) -> 1 | G47: 1 | J47: =SUMIFS(PRICING[Rebate $],PRICING[SKU],Rebate_Lookup[[#This Row],[SKU CODE]],PRICING[Set],1) -> $21.00 | K47: =SUMIFS(PRICING[Rebate $],PRICING[SKU],Rebate_Lookup[[#This Row],[SKU CODE]],PRICING[Set],2) -> 0 | L47: =SUMIFS(PRICING[Rebate $],PRICING[SKU],Rebate_Lookup[[#This Row],[SKU CODE]],PRICING[Set],3) -> 0 | M47: =SUMIF('2025 LL-CALCULATOR - UNITS'!A:A,Rebate_Lookup[[#This Row],[SKU CODE]],'2025 LL-CALCULATOR - UNITS'!J:J) -> 0 | N47: =IF(Rebate_Lookup[[#This Row],[Instances]]=1,1, IF(AND(Rebate_Lookup[[#This Row],[Instances]]=2,Rebate_Lookup[[#This Row],[Order Form Quantity]]<Rebate_Lookup[[#This Row],[MOQ_2]]),1,IF(AND(Rebate_Lookup[[#This Row],[Instances]]=2,Rebate_Lookup[[#This Row],[Order Form Quantity]]>=Rebate_Lookup[[#This Row],[MOQ_2]]),2, IF(AND(Rebate_Lookup[[#This Row],[Instances]]=3,Rebate_Lookup[[#This Row],[Order Form Quantity]]<Rebate_Lookup[[#This Row],[MOQ_2]]),1,IF(AND(Rebate_Lookup[[#This Row],[Instances]]=3,Rebate_Lookup[[#This Row],[MOQ_2]]<=Rebate_Lookup[[#This Row],[Order Form Quantity]],Rebate_Lookup[[#This Row],[Order Form Quantity]]<Rebate_Lookup[[#This Row],[MOQ_3]]),2,IF(AND(Rebate_Lookup[[#This Row],[Instances]]=3,Rebate_Lookup[[#This Row],[Order Form Quantity]]>=Rebate_Lookup[[#This Row],[MOQ_3]]),3)))))) -> 1 | O47: =COUNTIF('2025 LL-CALCULATOR - UNITS'!A:A,Rebate_Lookup[[#This Row],[SKU CODE]]) -> 0 | P47: 0
B48: D00000986 | C48: =INDEX(PRICING[Agency/TT],MATCH(Rebate_Lookup[[#This Row],[SKU CODE]],PRICING[SKU],0)) -> A | D48: =INDEX(PRICING[Product],MATCH(B48,PRICING[SKU],0)) -> Ronstar® FLO | E48: =INDEX(PRICING[Size],MATCH(Rebate_Lookup[[#This Row],[SKU CODE]],PRICING[SKU],0)) -> 2.5 gal | F48: =COUNTIFS(PRICING[SKU],B48) -> 3 | G48: MANUAL | J48: =SUMIFS(PRICING[Rebate $],PRICING[SKU],Rebate_Lookup[[#This Row],[SKU CODE]],PRICING[Set],1) -> 0 | K48: =SUMIFS(PRICING[Rebate $],PRICING[SKU],Rebate_Lookup[[#This Row],[SKU CODE]],PRICING[Set],2) -> 0 | L48: =SUMIFS(PRICING[Rebate $],PRICING[SKU],Rebate_Lookup[[#This Row],[SKU CODE]],PRICING[Set],3) -> 0 | M48: =SUMIF('2025 LL-CALCULATOR - UNITS'!A:A,Rebate_Lookup[[#This Row],[SKU CODE]],'2025 LL-CALCULATOR - UNITS'!J:J) -> 0 | N48: =IF(Rebate_Lookup[[#This Row],[Instances]]=1,1, IF(AND(Rebate_Lookup[[#This Row],[Instances]]=2,Rebate_Lookup[[#This Row],[Order Form Quantity]]<Rebate_Lookup[[#This Row],[MOQ_2]]),1,IF(AND(Rebate_Lookup[[#This Row],[Instances]]=2,Rebate_Lookup[[#This Row],[Order Form Quantity]]>=Rebate_Lookup[[#This Row],[MOQ_2]]),2, IF(AND(Rebate_Lookup[[#This Row],[Instances]]=3,Rebate_Lookup[[#This Row],[Order Form Quantity]]<Rebate_Lookup[[#This Row],[MOQ_2]]),1,IF(AND(Rebate_Lookup[[#This Row],[Instances]]=3,Rebate_Lookup[[#This Row],[MOQ_2]]<=Rebate_Lookup[[#This Row],[Order Form Quantity]],Rebate_Lookup[[#This Row],[Order Form Quantity]]<Rebate_Lookup[[#This Row],[MOQ_3]]),2,IF(AND(Rebate_Lookup[[#This Row],[Instances]]=3,Rebate_Lookup[[#This Row],[Order Form Quantity]]>=Rebate_Lookup[[#This Row],[MOQ_3]]),3)))))) -> 3 | O48: =COUNTIF('2025 LL-CALCULATOR - UNITS'!A:A,Rebate_Lookup[[#This Row],[SKU CODE]]) -> 0 | P48: =Rebate_Lookup[[#This Row],[Order Form Quantity]]>=12 -> FALSE
B49: 427709 | C49: =INDEX(PRICING[Agency/TT],MATCH(Rebate_Lookup[[#This Row],[SKU CODE]],PRICING[SKU],0)) -> TT | D49: =INDEX(PRICING[Product],MATCH(B49,PRICING[SKU],0)) -> Sencor 75 | E49: =INDEX(PRICING[Size],MATCH(Rebate_Lookup[[#This Row],[SKU CODE]],PRICING[SKU],0)) -> 5 lb | F49: =COUNTIFS(PRICING[SKU],B49) -> 1 | G49: 1 | J49: =SUMIFS(PRICING[Rebate $],PRICING[SKU],Rebate_Lookup[[#This Row],[SKU CODE]],PRICING[Set],1) -> 0 | K49: =SUMIFS(PRICING[Rebate $],PRICING[SKU],Rebate_Lookup[[#This Row],[SKU CODE]],PRICING[Set],2) -> 0 | L49: =SUMIFS(PRICING[Rebate $],PRICING[SKU],Rebate_Lookup[[#This Row],[SKU CODE]],PRICING[Set],3) -> 0 | M49: =SUMIF('2025 LL-CALCULATOR - UNITS'!A:A,Rebate_Lookup[[#This Row],[SKU CODE]],'2025 LL-CALCULATOR - UNITS'!J:J) -> 0 | N49: =IF(Rebate_Lookup[[#This Row],[Instances]]=1,1, IF(AND(Rebate_Lookup[[#This Row],[Instances]]=2,Rebate_Lookup[[#This Row],[Order Form Quantity]]<Rebate_Lookup[[#This Row],[MOQ_2]]),1,IF(AND(Rebate_Lookup[[#This Row],[Instances]]=2,Rebate_Lookup[[#This Row],[Order Form Quantity]]>=Rebate_Lookup[[#This Row],[MOQ_2]]),2, IF(AND(Rebate_Lookup[[#This Row],[Instances]]=3,Rebate_Lookup[[#This Row],[Order Form Quantity]]<Rebate_Lookup[[#This Row],[MOQ_2]]),1,IF(AND(Rebate_Lookup[[#This Row],[Instances]]=3,Rebate_Lookup[[#This Row],[MOQ_2]]<=Rebate_Lookup[[#This Row],[Order Form Quantity]],Rebate_Lookup[[#This Row],[Order Form Quantity]]<Rebate_Lookup[[#This Row],[MOQ_3]]),2,IF(AND(Rebate_Lookup[[#This Row],[Instances]]=3,Rebate_Lookup[[#This Row],[Order Form Quantity]]>=Rebate_Lookup[[#This Row],[MOQ_3]]),3)))))) -> 1 | O49: =COUNTIF('2025 LL-CALCULATOR - UNITS'!A:A,Rebate_Lookup[[#This Row],[SKU CODE]]) -> 0 | P49: 0
B50: 11008522 | C50: =INDEX(PRICING[Agency/TT],MATCH(Rebate_Lookup[[#This Row],[SKU CODE]],PRICING[SKU],0)) -> A | D50: =INDEX(PRICING[Product],MATCH(B50,PRICING[SKU],0)) -> Solitare® Herbicide | E50: =INDEX(PRICING[Size],MATCH(Rebate_Lookup[[#This Row],[SKU CODE]],PRICING[SKU],0)) -> 4 lb | F50: =COUNTIFS(PRICING[SKU],B50) -> 3 | G50: 1 | H50: 16 | I50: 32 | J50: =SUMIFS(PRICING[Rebate $],PRICING[SKU],Rebate_Lookup[[#This Row],[SKU CODE]],PRICING[Set],1) -> 0 | K50: =SUMIFS(PRICING[Rebate $],PRICING[SKU],Rebate_Lookup[[#This Row],[SKU CODE]],PRICING[Set],2) -> $40.00 | L50: =SUMIFS(PRICING[Rebate $],PRICING[SKU],Rebate_Lookup[[#This Row],[SKU CODE]],PRICING[Set],3) -> $85.00 | M50: =SUMIF('2025 LL-CALCULATOR - UNITS'!A:A,Rebate_Lookup[[#This Row],[SKU CODE]],'2025 LL-CALCULATOR - UNITS'!J:J) -> 0 | N50: =IF(Rebate_Lookup[[#This Row],[Instances]]=1,1, IF(AND(Rebate_Lookup[[#This Row],[Instances]]=2,Rebate_Lookup[[#This Row],[Order Form Quantity]]<Rebate_Lookup[[#This Row],[MOQ_2]]),1,IF(AND(Rebate_Lookup[[#This Row],[Instances]]=2,Rebate_Lookup[[#This Row],[Order Form Quantity]]>=Rebate_Lookup[[#This Row],[MOQ_2]]),2, IF(AND(Rebate_Lookup[[#This Row],[Instances]]=3,Rebate_Lookup[[#This Row],[Order Form Quantity]]<Rebate_Lookup[[#This Row],[MOQ_2]]),1,IF(AND(Rebate_Lookup[[#This Row],[Instances]]=3,Rebate_Lookup[[#This Row],[MOQ_2]]<=Rebate_Lookup[[#This Row],[Order Form Quantity]],Rebate_Lookup[[#This Row],[Order Form Quantity]]<Rebate_Lookup[[#This Row],[MOQ_3]]),2,IF(AND(Rebate_Lookup[[#This Row],[Instances]]=3,Rebate_Lookup[[#This Row],[Order Form Quantity]]>=Rebate_Lookup[[#This Row],[MOQ_3]]),3)))))) -> 1 | O50: =COUNTIF('2025 LL-CALCULATOR - UNITS'!A:A,Rebate_Lookup[[#This Row],[SKU CODE]]) -> 0 | P50: =Rebate_Lookup[[#This Row],[Order Form Quantity]]>=16 -> FALSE
B51: 11008482 | C51: =INDEX(PRICING[Agency/TT],MATCH(Rebate_Lookup[[#This Row],[SKU CODE]],PRICING[SKU],0)) -> TT | D51: =INDEX(PRICING[Product],MATCH(B51,PRICING[SKU],0)) -> Solitare® Herbicide | E51: =INDEX(PRICING[Size],MATCH(Rebate_Lookup[[#This Row],[SKU CODE]],PRICING[SKU],0)) -> 1 lb | F51: =COUNTIFS(PRICING[SKU],B51) -> 1 | G51: 1 | J51: =SUMIFS(PRICING[Rebate $],PRICING[SKU],Rebate_Lookup[[#This Row],[SKU CODE]],PRICING[Set],1) -> $15.00 | K51: =SUMIFS(PRICING[Rebate $],PRICING[SKU],Rebate_Lookup[[#This Row],[SKU CODE]],PRICING[Set],2) -> 0 | L51: =SUMIFS(PRICING[Rebate $],PRICING[SKU],Rebate_Lookup[[#This Row],[SKU CODE]],PRICING[Set],3) -> 0 | M51: =SUMIF('2025 LL-CALCULATOR - UNITS'!A:A,Rebate_Lookup[[#This Row],[SKU CODE]],'2025 LL-CALCULATOR - UNITS'!J:J) -> 0 | N51: =IF(Rebate_Lookup[[#This Row],[Instances]]=1,1, IF(AND(Rebate_Lookup[[#This Row],[Instances]]=2,Rebate_Lookup[[#This Row],[Order Form Quantity]]<Rebate_Lookup[[#This Row],[MOQ_2]]),1,IF(AND(Rebate_Lookup[[#This Row],[Instances]]=2,Rebate_Lookup[[#This Row],[Order Form Quantity]]>=Rebate_Lookup[[#This Row],[MOQ_2]]),2, IF(AND(Rebate_Lookup[[#This Row],[Instances]]=3,Rebate_Lookup[[#This Row],[Order Form Quantity]]<Rebate_Lookup[[#This Row],[MOQ_2]]),1,IF(AND(Rebate_Lookup[[#This Row],[Instances]]=3,Rebate_Lookup[[#This Row],[MOQ_2]]<=Rebate_Lookup[[#This Row],[Order Form Quantity]],Rebate_Lookup[[#This Row],[Order Form Quantity]]<Rebate_Lookup[[#This Row],[MOQ_3]]),2,IF(AND(Rebate_Lookup[[#This Row],[Instances]]=3,Rebate_Lookup[[#This Row],[Order Form Quantity]]>=Rebate_Lookup[[#This Row],[MOQ_3]]),3)))))) -> 1 | O51: =COUNTIF('2025 LL-CALCULATOR - UNITS'!A:A,Rebate_Lookup[[#This Row],[SKU CODE]]) -> 0 | P51: 0
B52: 11013862 | C52: =INDEX(PRICING[Agency/TT],MATCH(Rebate_Lookup[[#This Row],[SKU CODE]],PRICING[SKU],0)) -> A | D52: =INDEX(PRICING[Product],MATCH(B52,PRICING[SKU],0)) -> Solitare® WSL Herbicide | E52: =INDEX(PRICING[Size],MATCH(Rebate_Lookup[[#This Row],[SKU CODE]],PRICING[SKU],0)) -> 2.5 gal | F52: =COUNTIFS(PRICING[SKU],B52) -> 3 | G52: 1 | H52: 24 | I52: 48 | J52: =SUMIFS(PRICING[Rebate $],PRICING[SKU],Rebate_Lookup[[#This Row],[SKU CODE]],PRICING[Set],1) -> 0 | K52: =SUMIFS(PRICING[Rebate $],PRICING[SKU],Rebate_Lookup[[#This Row],[SKU CODE]],PRICING[Set],2) -> $40.00 | L52: =SUMIFS(PRICING[Rebate $],PRICING[SKU],Rebate_Lookup[[#This Row],[SKU CODE]],PRICING[Set],3) -> $85.00 | M52: =SUMIF('2025 LL-CALCULATOR - UNITS'!A:A,Rebate_Lookup[[#This Row],[SKU CODE]],'2025 LL-CALCULATOR - UNITS'!J:J) -> 0 | N52: =IF(Rebate_Lookup[[#This Row],[Instances]]=1,1, IF(AND(Rebate_Lookup[[#This Row],[Instances]]=2,Rebate_Lookup[[#This Row],[Order Form Quantity]]<Rebate_Lookup[[#This Row],[MOQ_2]]),1,IF(AND(Rebate_Lookup[[#This Row],[Instances]]=2,Rebate_Lookup[[#This Row],[Order Form Quantity]]>=Rebate_Lookup[[#This Row],[MOQ_2]]),2, IF(AND(Rebate_Lookup[[#This Row],[Instances]]=3,Rebate_Lookup[[#This Row],[Order Form Quantity]]<Rebate_Lookup[[#This Row],[MOQ_2]]),1,IF(AND(Rebate_Lookup[[#This Row],[Instances]]=3,Rebate_Lookup[[#This Row],[MOQ_2]]<=Rebate_Lookup[[#This Row],[Order Form Quantity]],Rebate_Lookup[[#This Row],[Order Form Quantity]]<Rebate_Lookup[[#This Row],[MOQ_3]]),2,IF(AND(Rebate_Lookup[[#This Row],[Instances]]=3,Rebate_Lookup[[#This Row],[Order Form Quantity]]>=Rebate_Lookup[[#This Row],[MOQ_3]]),3)))))) -> 1 | O52: =COUNTIF('2025 LL-CALCULATOR - UNITS'!A:A,Rebate_Lookup[[#This Row],[SKU CODE]]) -> 1 | P52: =Rebate_Lookup[[#This Row],[Order Form Quantity]]>=7 -> FALSE
B53: 11008369 | C53: =INDEX(PRICING[Agency/TT],MATCH(Rebate_Lookup[[#This Row],[SKU CODE]],PRICING[SKU],0)) -> TT | D53: =INDEX(PRICING[Product],MATCH(B53,PRICING[SKU],0)) -> Solitare® WSL Herbicide | E53: =INDEX(PRICING[Size],MATCH(Rebate_Lookup[[#This Row],[SKU CODE]],PRICING[SKU],0)) -> 0.75 gal | F53: =COUNTIFS(PRICING[SKU],B53) -> 1 | G53: 1 | J53: =SUMIFS(PRICING[Rebate $],PRICING[SKU],Rebate_Lookup[[#This Row],[SKU CODE]],PRICING[Set],1) -> $12.00 | K53: =SUMIFS(PRICING[Rebate $],PRICING[SKU],Rebate_Lookup[[#This Row],[SKU CODE]],PRICING[Set],2) -> 0 | L53: =SUMIFS(PRICING[Rebate $],PRICING[SKU],Rebate_Lookup[[#This Row],[SKU CODE]],PRICING[Set],3) -> 0 | M53: =SUMIF('2025 LL-CALCULATOR - UNITS'!A:A,Rebate_Lookup[[#This Row],[SKU CODE]],'2025 LL-CALCULATOR - UNITS'!J:J) -> 0 | N53: =IF(Rebate_Lookup[[#This Row],[Instances]]=1,1, IF(AND(Rebate_Lookup[[#This Row],[Instances]]=2,Rebate_Lookup[[#This Row],[Order Form Quantity]]<Rebate_Lookup[[#This Row],[MOQ_2]]),1,IF(AND(Rebate_Lookup[[#This Row],[Instances]]=2,Rebate_Lookup[[#This Row],[Order Form Quantity]]>=Rebate_Lookup[[#This Row],[MOQ_2]]),2, IF(AND(Rebate_Lookup[[#This Row],[Instances]]=3,Rebate_Lookup[[#This Row],[Order Form Quantity]]<Rebate_Lookup[[#This Row],[MOQ_2]]),1,IF(AND(Rebate_Lookup[[#This Row],[Instances]]=3,Rebate_Lookup[[#This Row],[MOQ_2]]<=Rebate_Lookup[[#This Row],[Order Form Quantity]],Rebate_Lookup[[#This Row],[Order Form Quantity]]<Rebate_Lookup[[#This Row],[MOQ_3]]),2,IF(AND(Rebate_Lookup[[#This Row],[Instances]]=3,Rebate_Lookup[[#This Row],[Order Form Quantity]]>=Rebate_Lookup[[#This Row],[MOQ_3]]),3)))))) -> 1 | O53: =COUNTIF('2025 LL-CALCULATOR - UNITS'!A:A,Rebate_Lookup[[#This Row],[SKU CODE]]) -> 0 | P53: 0
B54: D00000990 | C54: =INDEX(PRICING[Agency/TT],MATCH(Rebate_Lookup[[#This Row],[SKU CODE]],PRICING[SKU],0)) -> A | D54: =INDEX(PRICING[Product],MATCH(B54,PRICING[SKU],0)) -> Specticle® FLO | E54: =INDEX(PRICING[Size],MATCH(Rebate_Lookup[[#This Row],[SKU CODE]],PRICING[SKU],0)) -> 1 gal | F54: =COUNTIFS(PRICING[SKU],B54) -> 6 | G54: MANUAL | J54: =SUMIFS(PRICING[Rebate $],PRICING[SKU],Rebate_Lookup[[#This Row],[SKU CODE]],PRICING[Set],1) -> 0 | K54: =SUMIFS(PRICING[Rebate $],PRICING[SKU],Rebate_Lookup[[#This Row],[SKU CODE]],PRICING[Set],2) -> $38.00 | L54: =SUMIFS(PRICING[Rebate $],PRICING[SKU],Rebate_Lookup[[#This Row],[SKU CODE]],PRICING[Set],3) -> $32.00 | M54: =SUMIF('2025 LL-CALCULATOR - UNITS'!A:A,Rebate_Lookup[[#This Row],[SKU CODE]],'2025 LL-CALCULATOR - UNITS'!J:J) -> 0 | N54: =IF(Rebate_Lookup[[#This Row],[Instances]]=1,1, IF(AND(Rebate_Lookup[[#This Row],[Instances]]=2,Rebate_Lookup[[#This Row],[Order Form Quantity]]<Rebate_Lookup[[#This Row],[MOQ_2]]),1,IF(AND(Rebate_Lookup[[#This Row],[Instances]]=2,Rebate_Lookup[[#This Row],[Order Form Quantity]]>=Rebate_Lookup[[#This Row],[MOQ_2]]),2, IF(AND(Rebate_Lookup[[#This Row],[Instances]]=3,Rebate_Lookup[[#This Row],[Order Form Quantity]]<Rebate_Lookup[[#This Row],[MOQ_2]]),1,IF(AND(Rebate_Lookup[[#This Row],[Instances]]=3,Rebate_Lookup[[#This Row],[MOQ_2]]<=Rebate_Lookup[[#This Row],[Order Form Quantity]],Rebate_Lookup[[#This Row],[Order Form Quantity]]<Rebate_Lookup[[#This Row],[MOQ_3]]),2,IF(AND(Rebate_Lookup[[#This Row],[Instances]]=3,Rebate_Lookup[[#This Row],[Order Form Quantity]]>=Rebate_Lookup[[#This Row],[MOQ_3]]),3,0)))))) -> 0 | O54: =COUNTIF('2025 LL-CALCULATOR - UNITS'!A:A,Rebate_Lookup[[#This Row],[SKU CODE]]) -> 6 | P54: =Rebate_Lookup[[#This Row],[Order Form Quantity]]>=7 -> FALSE
B55: D00000992 | C55: =INDEX(PRICING[Agency/TT],MATCH(Rebate_Lookup[[#This Row],[SKU CODE]],PRICING[SKU],0)) -> A | D55: =INDEX(PRICING[Product],MATCH(B55,PRICING[SKU],0)) -> Specticle® G | E55: =INDEX(PRICING[Size],MATCH(Rebate_Lookup[[#This Row],[SKU CODE]],PRICING[SKU],0)) -> 50 lb | F55: =COUNTIFS(PRICING[SKU],B55) -> 3 | G55: 1 | H55: 20 | I55: 200 | J55: =SUMIFS(PRICING[Rebate $],PRICING[SKU],Rebate_Lookup[[#This Row],[SKU CODE]],PRICING[Set],1) -> 0 | K55: $8.00 | L55: $18.00 | M55: =SUMIF('2025 LL-CALCULATOR - UNITS'!A:A,Rebate_Lookup[[#This Row],[SKU CODE]],'2025 LL-CALCULATOR - UNITS'!J:J) -> 0 | N55: =IF(Rebate_Lookup[[#This Row],[Instances]]=1,1, IF(AND(Rebate_Lookup[[#This Row],[Instances]]=2,Rebate_Lookup[[#This Row],[Order Form Quantity]]<Rebate_Lookup[[#This Row],[MOQ_2]]),1,IF(AND(Rebate_Lookup[[#This Row],[Instances]]=2,Rebate_Lookup[[#This Row],[Order Form Quantity]]>=Rebate_Lookup[[#This Row],[MOQ_2]]),2, IF(AND(Rebate_Lookup[[#This Row],[Instances]]=3,Rebate_Lookup[[#This Row],[Order Form Quantity]]<Rebate_Lookup[[#This Row],[MOQ_2]]),1,IF(AND(Rebate_Lookup[[#This Row],[Instances]]=3,Rebate_Lookup[[#This Row],[MOQ_2]]<=Rebate_Lookup[[#This Row],[Order Form Quantity]],Rebate_Lookup[[#This Row],[Order Form Quantity]]<Rebate_Lookup[[#This Row],[MOQ_3]]),2,IF(AND(Rebate_Lookup[[#This Row],[Instances]]=3,Rebate_Lookup[[#This Row],[Order Form Quantity]]>=Rebate_Lookup[[#This Row],[MOQ_3]]),3)))))) -> 1 | O55: =COUNTIF('2025 LL-CALCULATOR - UNITS'!A:A,Rebate_Lookup[[#This Row],[SKU CODE]]) -> 1 | P55: =Rebate_Lookup[[#This Row],[Order Form Quantity]]>=20 -> FALSE
B56: D00000675 | C56: =INDEX(PRICING[Agency/TT],MATCH(Rebate_Lookup[[#This Row],[SKU CODE]],PRICING[SKU],0)) -> TT | D56: =INDEX(PRICING[Product],MATCH(B56,PRICING[SKU],0)) -> Terradex C&B | E56: =INDEX(PRICING[Size],MATCH(Rebate_Lookup[[#This Row],[SKU CODE]],PRICING[SKU],0)) -> 1 gal | F56: =COUNTIFS(PRICING[SKU],B56) -> 1 | G56: 1 | J56: $15.00 | K56: =SUMIFS(PRICING[Rebate $],PRICING[SKU],Rebate_Lookup[[#This Row],[SKU CODE]],PRICING[Set],2) -> 0 | L56: =SUMIFS(PRICING[Rebate $],PRICING[SKU],Rebate_Lookup[[#This Row],[SKU CODE]],PRICING[Set],3) -> 0 | M56: =SUMIF('2025 LL-CALCULATOR - UNITS'!A:A,Rebate_Lookup[[#This Row],[SKU CODE]],'2025 LL-CALCULATOR - UNITS'!J:J) -> 0 | N56: =IF(Rebate_Lookup[[#This Row],[Instances]]=1,1, IF(AND(Rebate_Lookup[[#This Row],[Instances]]=2,Rebate_Lookup[[#This Row],[Order Form Quantity]]<Rebate_Lookup[[#This Row],[MOQ_2]]),1,IF(AND(Rebate_Lookup[[#This Row],[Instances]]=2,Rebate_Lookup[[#This Row],[Order Form Quantity]]>=Rebate_Lookup[[#This Row],[MOQ_2]]),2, IF(AND(Rebate_Lookup[[#This Row],[Instances]]=3,Rebate_Lookup[[#This Row],[Order Form Quantity]]<Rebate_Lookup[[#This Row],[MOQ_2]]),1,IF(AND(Rebate_Lookup[[#This Row],[Instances]]=3,Rebate_Lookup[[#This Row],[MOQ_2]]<=Rebate_Lookup[[#This Row],[Order Form Quantity]],Rebate_Lookup[[#This Row],[Order Form Quantity]]<Rebate_Lookup[[#This Row],[MOQ_3]]),2,IF(AND(Rebate_Lookup[[#This Row],[Instances]]=3,Rebate_Lookup[[#This Row],[Order Form Quantity]]>=Rebate_Lookup[[#This Row],[MOQ_3]]),3)))))) -> 1 | O56: =COUNTIF('2025 LL-CALCULATOR - UNITS'!A:A,Rebate_Lookup[[#This Row],[SKU CODE]]) -> 0 | P56: 0
B57: D00000674 | C57: =INDEX(PRICING[Agency/TT],MATCH(Rebate_Lookup[[#This Row],[SKU CODE]],PRICING[SKU],0)) -> TT | D57: =INDEX(PRICING[Product],MATCH(B57,PRICING[SKU],0)) -> Terradex C&B | E57: =INDEX(PRICING[Size],MATCH(Rebate_Lookup[[#This Row],[SKU CODE]],PRICING[SKU],0)) -> 2.5 gal | F57: =COUNTIFS(PRICING[SKU],B57) -> 1 | G57: 1 | J57: $37.50 | K57: =SUMIFS(PRICING[Rebate $],PRICING[SKU],Rebate_Lookup[[#This Row],[SKU CODE]],PRICING[Set],2) -> 0 | L57: =SUMIFS(PRICING[Rebate $],PRICING[SKU],Rebate_Lookup[[#This Row],[SKU CODE]],PRICING[Set],3) -> 0 | M57: =SUMIF('2025 LL-CALCULATOR - UNITS'!A:A,Rebate_Lookup[[#This Row],[SKU CODE]],'2025 LL-CALCULATOR - UNITS'!J:J) -> 0 | N57: =IF(Rebate_Lookup[[#This Row],[Instances]]=1,1, IF(AND(Rebate_Lookup[[#This Row],[Instances]]=2,Rebate_Lookup[[#This Row],[Order Form Quantity]]<Rebate_Lookup[[#This Row],[MOQ_2]]),1,IF(AND(Rebate_Lookup[[#This Row],[Instances]]=2,Rebate_Lookup[[#This Row],[Order Form Quantity]]>=Rebate_Lookup[[#This Row],[MOQ_2]]),2, IF(AND(Rebate_Lookup[[#This Row],[Instances]]=3,Rebate_Lookup[[#This Row],[Order Form Quantity]]<Rebate_Lookup[[#This Row],[MOQ_2]]),1,IF(AND(Rebate_Lookup[[#This Row],[Instances]]=3,Rebate_Lookup[[#This Row],[MOQ_2]]<=Rebate_Lookup[[#This Row],[Order Form Quantity]],Rebate_Lookup[[#This Row],[Order Form Quantity]]<Rebate_Lookup[[#This Row],[MOQ_3]]),2,IF(AND(Rebate_Lookup[[#This Row],[Instances]]=3,Rebate_Lookup[[#This Row],[Order Form Quantity]]>=Rebate_Lookup[[#This Row],[MOQ_3]]),3)))))) -> 1 | O57: =COUNTIF('2025 LL-CALCULATOR - UNITS'!A:A,Rebate_Lookup[[#This Row],[SKU CODE]]) -> 0 | P57: 0
B58: D00000669 | C58: =INDEX(PRICING[Agency/TT],MATCH(Rebate_Lookup[[#This Row],[SKU CODE]],PRICING[SKU],0)) -> TT | D58: =INDEX(PRICING[Product],MATCH(B58,PRICING[SKU],0)) -> Terradex Power Premix | E58: =INDEX(PRICING[Size],MATCH(Rebate_Lookup[[#This Row],[SKU CODE]],PRICING[SKU],0)) -> 2.5 gal | F58: =COUNTIFS(PRICING[SKU],B58) -> 1 | G58: 1 | J58: $37.50 | K58: =SUMIFS(PRICING[Rebate $],PRICING[SKU],Rebate_Lookup[[#This Row],[SKU CODE]],PRICING[Set],2) -> 0 | L58: =SUMIFS(PRICING[Rebate $],PRICING[SKU],Rebate_Lookup[[#This Row],[SKU CODE]],PRICING[Set],3) -> 0 | M58: =SUMIF('2025 LL-CALCULATOR - UNITS'!A:A,Rebate_Lookup[[#This Row],[SKU CODE]],'2025 LL-CALCULATOR - UNITS'!J:J) -> 0 | N58: =IF(Rebate_Lookup[[#This Row],[Instances]]=1,1, IF(AND(Rebate_Lookup[[#This Row],[Instances]]=2,Rebate_Lookup[[#This Row],[Order Form Quantity]]<Rebate_Lookup[[#This Row],[MOQ_2]]),1,IF(AND(Rebate_Lookup[[#This Row],[Instances]]=2,Rebate_Lookup[[#This Row],[Order Form Quantity]]>=Rebate_Lookup[[#This Row],[MOQ_2]]),2, IF(AND(Rebate_Lookup[[#This Row],[Instances]]=3,Rebate_Lookup[[#This Row],[Order Form Quantity]]<Rebate_Lookup[[#This Row],[MOQ_2]]),1,IF(AND(Rebate_Lookup[[#This Row],[Instances]]=3,Rebate_Lookup[[#This Row],[MOQ_2]]<=Rebate_Lookup[[#This Row],[Order Form Quantity]],Rebate_Lookup[[#This Row],[Order Form Quantity]]<Rebate_Lookup[[#This Row],[MOQ_3]]),2,IF(AND(Rebate_Lookup[[#This Row],[Instances]]=3,Rebate_Lookup[[#This Row],[Order Form Quantity]]>=Rebate_Lookup[[#This Row],[MOQ_3]]),3)))))) -> 1 | O58: =COUNTIF('2025 LL-CALCULATOR - UNITS'!A:A,Rebate_Lookup[[#This Row],[SKU CODE]]) -> 0 | P58: 0
B59: D00000670 | C59: =INDEX(PRICING[Agency/TT],MATCH(Rebate_Lookup[[#This Row],[SKU CODE]],PRICING[SKU],0)) -> TT | D59: =INDEX(PRICING[Product],MATCH(B59,PRICING[SKU],0)) -> Terradex Power Premix | E59: =INDEX(PRICING[Size],MATCH(Rebate_Lookup[[#This Row],[SKU CODE]],PRICING[SKU],0)) -> 30 gal | F59: =COUNTIFS(PRICING[SKU],B59) -> 1 | G59: 1 | J59: $450.00 | K59: =SUMIFS(PRICING[Rebate $],PRICING[SKU],Rebate_Lookup[[#This Row],[SKU CODE]],PRICING[Set],2) -> 0 | L59: =SUMIFS(PRICING[Rebate $],PRICING[SKU],Rebate_Lookup[[#This Row],[SKU CODE]],PRICING[Set],3) -> 0 | M59: =SUMIF('2025 LL-CALCULATOR - UNITS'!A:A,Rebate_Lookup[[#This Row],[SKU CODE]],'2025 LL-CALCULATOR - UNITS'!J:J) -> 0 | N59: =IF(Rebate_Lookup[[#This Row],[Instances]]=1,1, IF(AND(Rebate_Lookup[[#This Row],[Instances]]=2,Rebate_Lookup[[#This Row],[Order Form Quantity]]<Rebate_Lookup[[#This Row],[MOQ_2]]),1,IF(AND(Rebate_Lookup[[#This Row],[Instances]]=2,Rebate_Lookup[[#This Row],[Order Form Quantity]]>=Rebate_Lookup[[#This Row],[MOQ_2]]),2, IF(AND(Rebate_Lookup[[#This Row],[Instances]]=3,Rebate_Lookup[[#This Row],[Order Form Quantity]]<Rebate_Lookup[[#This Row],[MOQ_2]]),1,IF(AND(Rebate_Lookup[[#This Row],[Instances]]=3,Rebate_Lookup[[#This Row],[MOQ_2]]<=Rebate_Lookup[[#This Row],[Order Form Quantity]],Rebate_Lookup[[#This Row],[Order Form Quantity]]<Rebate_Lookup[[#This Row],[MOQ_3]]),2,IF(AND(Rebate_Lookup[[#This Row],[Instances]]=3,Rebate_Lookup[[#This Row],[Order Form Quantity]]>=Rebate_Lookup[[#This Row],[MOQ_3]]),3)))))) -> 1 | O59: =COUNTIF('2025 LL-CALCULATOR - UNITS'!A:A,Rebate_Lookup[[#This Row],[SKU CODE]]) -> 0 | P59: 0
B60: D00000673 | C60: =INDEX(PRICING[Agency/TT],MATCH(Rebate_Lookup[[#This Row],[SKU CODE]],PRICING[SKU],0)) -> TT | D60: =INDEX(PRICING[Product],MATCH(B60,PRICING[SKU],0)) -> Terradex Quick Strike | E60: =INDEX(PRICING[Size],MATCH(Rebate_Lookup[[#This Row],[SKU CODE]],PRICING[SKU],0)) -> 1 gal | F60: =COUNTIFS(PRICING[SKU],B60) -> 1 | G60: 1 | J60: $15.00 | K60: =SUMIFS(PRICING[Rebate $],PRICING[SKU],Rebate_Lookup[[#This Row],[SKU CODE]],PRICING[Set],2) -> 0 | L60: =SUMIFS(PRICING[Rebate $],PRICING[SKU],Rebate_Lookup[[#This Row],[SKU CODE]],PRICING[Set],3) -> 0 | M60: =SUMIF('2025 LL-CALCULATOR - UNITS'!A:A,Rebate_Lookup[[#This Row],[SKU CODE]],'2025 LL-CALCULATOR - UNITS'!J:J) -> 0 | N60: =IF(Rebate_Lookup[[#This Row],[Instances]]=1,1, IF(AND(Rebate_Lookup[[#This Row],[Instances]]=2,Rebate_Lookup[[#This Row],[Order Form Quantity]]<Rebate_Lookup[[#This Row],[MOQ_2]]),1,IF(AND(Rebate_Lookup[[#This Row],[Instances]]=2,Rebate_Lookup[[#This Row],[Order Form Quantity]]>=Rebate_Lookup[[#This Row],[MOQ_2]]),2, IF(AND(Rebate_Lookup[[#This Row],[Instances]]=3,Rebate_Lookup[[#This Row],[Order Form Quantity]]<Rebate_Lookup[[#This Row],[MOQ_2]]),1,IF(AND(Rebate_Lookup[[#This Row],[Instances]]=3,Rebate_Lookup[[#This Row],[MOQ_2]]<=Rebate_Lookup[[#This Row],[Order Form Quantity]],Rebate_Lookup[[#This Row],[Order Form Quantity]]<Rebate_Lookup[[#This Row],[MOQ_3]]),2,IF(AND(Rebate_Lookup[[#This Row],[Instances]]=3,Rebate_Lookup[[#This Row],[Order Form Quantity]]>=Rebate_Lookup[[#This Row],[MOQ_3]]),3)))))) -> 1 | O60: =COUNTIF('2025 LL-CALCULATOR - UNITS'!A:A,Rebate_Lookup[[#This Row],[SKU CODE]]) -> 0 | P60: 0
B61: D00000672 | C61: =INDEX(PRICING[Agency/TT],MATCH(Rebate_Lookup[[#This Row],[SKU CODE]],PRICING[SKU],0)) -> TT | D61: =INDEX(PRICING[Product],MATCH(B61,PRICING[SKU],0)) -> Terradex Quick Strike | E61: =INDEX(PRICING[Size],MATCH(Rebate_Lookup[[#This Row],[SKU CODE]],PRICING[SKU],0)) -> 2.5 gal | F61: =COUNTIFS(PRICING[SKU],B61) -> 1 | G61: 1 | J61: $37.50 | K61: =SUMIFS(PRICING[Rebate $],PRICING[SKU],Rebate_Lookup[[#This Row],[SKU CODE]],PRICING[Set],2) -> 0 | L61: =SUMIFS(PRICING[Rebate $],PRICING[SKU],Rebate_Lookup[[#This Row],[SKU CODE]],PRICING[Set],3) -> 0 | M61: =SUMIF('2025 LL-CALCULATOR - UNITS'!A:A,Rebate_Lookup[[#This Row],[SKU CODE]],'2025 LL-CALCULATOR - UNITS'!J:J) -> 0 | N61: =IF(Rebate_Lookup[[#This Row],[Instances]]=1,1, IF(AND(Rebate_Lookup[[#This Row],[Instances]]=2,Rebate_Lookup[[#This Row],[Order Form Quantity]]<Rebate_Lookup[[#This Row],[MOQ_2]]),1,IF(AND(Rebate_Lookup[[#This Row],[Instances]]=2,Rebate_Lookup[[#This Row],[Order Form Quantity]]>=Rebate_Lookup[[#This Row],[MOQ_2]]),2, IF(AND(Rebate_Lookup[[#This Row],[Instances]]=3,Rebate_Lookup[[#This Row],[Order Form Quantity]]<Rebate_Lookup[[#This Row],[MOQ_2]]),1,IF(AND(Rebate_Lookup[[#This Row],[Instances]]=3,Rebate_Lookup[[#This Row],[MOQ_2]]<=Rebate_Lookup[[#This Row],[Order Form Quantity]],Rebate_Lookup[[#This Row],[Order Form Quantity]]<Rebate_Lookup[[#This Row],[MOQ_3]]),2,IF(AND(Rebate_Lookup[[#This Row],[Instances]]=3,Rebate_Lookup[[#This Row],[Order Form Quantity]]>=Rebate_Lookup[[#This Row],[MOQ_3]]),3)))))) -> 1 | O61: =COUNTIF('2025 LL-CALCULATOR - UNITS'!A:A,Rebate_Lookup[[#This Row],[SKU CODE]]) -> 0 | P61: 0
B62: D00000671 | C62: =INDEX(PRICING[Agency/TT],MATCH(Rebate_Lookup[[#This Row],[SKU CODE]],PRICING[SKU],0)) -> TT | D62: =INDEX(PRICING[Product],MATCH(B62,PRICING[SKU],0)) -> Terradex Quick Strike | E62: =INDEX(PRICING[Size],MATCH(Rebate_Lookup[[#This Row],[SKU CODE]],PRICING[SKU],0)) -> 30 gal | F62: =COUNTIFS(PRICING[SKU],B62) -> 1 | G62: 1 | J62: $450.00 | K62: =SUMIFS(PRICING[Rebate $],PRICING[SKU],Rebate_Lookup[[#This Row],[SKU CODE]],PRICING[Set],2) -> 0 | L62: =SUMIFS(PRICING[Rebate $],PRICING[SKU],Rebate_Lookup[[#This Row],[SKU CODE]],PRICING[Set],3) -> 0 | M62: =SUMIF('2025 LL-CALCULATOR - UNITS'!A:A,Rebate_Lookup[[#This Row],[SKU CODE]],'2025 LL-CALCULATOR - UNITS'!J:J) -> 0 | N62: =IF(Rebate_Lookup[[#This Row],[Instances]]=1,1, IF(AND(Rebate_Lookup[[#This Row],[Instances]]=2,Rebate_Lookup[[#This Row],[Order Form Quantity]]<Rebate_Lookup[[#This Row],[MOQ_2]]),1,IF(AND(Rebate_Lookup[[#This Row],[Instances]]=2,Rebate_Lookup[[#This Row],[Order Form Quantity]]>=Rebate_Lookup[[#This Row],[MOQ_2]]),2, IF(AND(Rebate_Lookup[[#This Row],[Instances]]=3,Rebate_Lookup[[#This Row],[Order Form Quantity]]<Rebate_Lookup[[#This Row],[MOQ_2]]),1,IF(AND(Rebate_Lookup[[#This Row],[Instances]]=3,Rebate_Lookup[[#This Row],[MOQ_2]]<=Rebate_Lookup[[#This Row],[Order Form Quantity]],Rebate_Lookup[[#This Row],[Order Form Quantity]]<Rebate_Lookup[[#This Row],[MOQ_3]]),2,IF(AND(Rebate_Lookup[[#This Row],[Instances]]=3,Rebate_Lookup[[#This Row],[Order Form Quantity]]>=Rebate_Lookup[[#This Row],[MOQ_3]]),3)))))) -> 1 | O62: =COUNTIF('2025 LL-CALCULATOR - UNITS'!A:A,Rebate_Lookup[[#This Row],[SKU CODE]]) -> 0 | P62: 0
B63: 81746257 | C63: =INDEX(PRICING[Agency/TT],MATCH(Rebate_Lookup[[#This Row],[SKU CODE]],PRICING[SKU],0)) -> A | D63: =INDEX(PRICING[Product],MATCH(B63,PRICING[SKU],0)) -> Tribute® Total | E63: =INDEX(PRICING[Size],MATCH(Rebate_Lookup[[#This Row],[SKU CODE]],PRICING[SKU],0)) -> 6 oz | F63: =COUNTIFS(PRICING[SKU],B63) -> 3 | G63: 1 | H63: 24 | I63: 48 | J63: =SUMIFS(PRICING[Rebate $],PRICING[SKU],Rebate_Lookup[[#This Row],[SKU CODE]],PRICING[Set],1) -> 0 | K63: $30.00 | L63: $50.00 | M63: =SUMIF('2025 LL-CALCULATOR - UNITS'!A:A,Rebate_Lookup[[#This Row],[SKU CODE]],'2025 LL-CALCULATOR - UNITS'!J:J) -> 0 | N63: =IF(Rebate_Lookup[[#This Row],[Instances]]=1,1, IF(AND(Rebate_Lookup[[#This Row],[Instances]]=2,Rebate_Lookup[[#This Row],[Order Form Quantity]]<Rebate_Lookup[[#This Row],[MOQ_2]]),1,IF(AND(Rebate_Lookup[[#This Row],[Instances]]=2,Rebate_Lookup[[#This Row],[Order Form Quantity]]>=Rebate_Lookup[[#This Row],[MOQ_2]]),2, IF(AND(Rebate_Lookup[[#This Row],[Instances]]=3,Rebate_Lookup[[#This Row],[Order Form Quantity]]<Rebate_Lookup[[#This Row],[MOQ_2]]),1,IF(AND(Rebate_Lookup[[#This Row],[Instances]]=3,Rebate_Lookup[[#This Row],[MOQ_2]]<=Rebate_Lookup[[#This Row],[Order Form Quantity]],Rebate_Lookup[[#This Row],[Order Form Quantity]]<Rebate_Lookup[[#This Row],[MOQ_3]]),2,IF(AND(Rebate_Lookup[[#This Row],[Instances]]=3,Rebate_Lookup[[#This Row],[Order Form Quantity]]>=Rebate_Lookup[[#This Row],[MOQ_3]]),3)))))) -> 1 | O63: =COUNTIF('2025 LL-CALCULATOR - UNITS'!A:A,Rebate_Lookup[[#This Row],[SKU CODE]]) -> 1 | P63: =Rebate_Lookup[[#This Row],[Order Form Quantity]]>=24 -> FALSE
B64: 11008590 | C64: =INDEX(PRICING[Agency/TT],MATCH(Rebate_Lookup[[#This Row],[SKU CODE]],PRICING[SKU],0)) -> A | D64: =INDEX(PRICING[Product],MATCH(B64,PRICING[SKU],0)) -> Xonerate® 2SC Herbicide | E64: =INDEX(PRICING[Size],MATCH(Rebate_Lookup[[#This Row],[SKU CODE]],PRICING[SKU],0)) -> 12 oz | F64: =COUNTIFS(PRICING[SKU],B64) -> 2 | G64: 1 | H64: 24 | J64: =SUMIFS(PRICING[Rebate $],PRICING[SKU],Rebate_Lookup[[#This Row],[SKU CODE]],PRICING[Set],1) -> 0 | K64: $50.00 | L64: =SUMIFS(PRICING[Rebate $],PRICING[SKU],Rebate_Lookup[[#This Row],[SKU CODE]],PRICING[Set],3) -> 0 | M64: =SUMIF('2025 LL-CALCULATOR - UNITS'!A:A,Rebate_Lookup[[#This Row],[SKU CODE]],'2025 LL-CALCULATOR - UNITS'!J:J) -> 0 | N64: =IF(Rebate_Lookup[[#This Row],[Instances]]=1,1, IF(AND(Rebate_Lookup[[#This Row],[Instances]]=2,Rebate_Lookup[[#This Row],[Order Form Quantity]]<Rebate_Lookup[[#This Row],[MOQ_2]]),1,IF(AND(Rebate_Lookup[[#This Row],[Instances]]=2,Rebate_Lookup[[#This Row],[Order Form Quantity]]>=Rebate_Lookup[[#This Row],[MOQ_2]]),2, IF(AND(Rebate_Lookup[[#This Row],[Instances]]=3,Rebate_Lookup[[#This Row],[Order Form Quantity]]<Rebate_Lookup[[#This Row],[MOQ_2]]),1,IF(AND(Rebate_Lookup[[#This Row],[Instances]]=3,Rebate_Lookup[[#This Row],[MOQ_2]]<=Rebate_Lookup[[#This Row],[Order Form Quantity]],Rebate_Lookup[[#This Row],[Order Form Quantity]]<Rebate_Lookup[[#This Row],[MOQ_3]]),2,IF(AND(Rebate_Lookup[[#This Row],[Instances]]=3,Rebate_Lookup[[#This Row],[Order Form Quantity]]>=Rebate_Lookup[[#This Row],[MOQ_3]]),3)))))) -> 1 | O64: =COUNTIF('2025 LL-CALCULATOR - UNITS'!A:A,Rebate_Lookup[[#This Row],[SKU CODE]]) -> 0 | P64: =Rebate_Lookup[[#This Row],[Order Form Quantity]]>=24 -> FALSE
B65: D00000903 | C65: =INDEX(PRICING[Agency/TT],MATCH(Rebate_Lookup[[#This Row],[SKU CODE]],PRICING[SKU],0)) -> A | D65: =INDEX(PRICING[Product],MATCH(B65,PRICING[SKU],0)) -> Altus® | E65: =INDEX(PRICING[Size],MATCH(Rebate_Lookup[[#This Row],[SKU CODE]],PRICING[SKU],0)) -> 64 oz | F65: =COUNTIFS(PRICING[SKU],B65) -> 3 | G65: 1 | H65: 16 | I65: 32 | J65: =SUMIFS(PRICING[Rebate $],PRICING[SKU],Rebate_Lookup[[#This Row],[SKU CODE]],PRICING[Set],1) -> 0 | K65: =SUMIFS(PRICING[Rebate $],PRICING[SKU],Rebate_Lookup[[#This Row],[SKU CODE]],PRICING[Set],2) -> 0 | L65: =SUMIFS(PRICING[Rebate $],PRICING[SKU],Rebate_Lookup[[#This Row],[SKU CODE]],PRICING[Set],3) -> 0 | M65: =SUMIF('2025 LL-CALCULATOR - UNITS'!A:A,Rebate_Lookup[[#This Row],[SKU CODE]],'2025 LL-CALCULATOR - UNITS'!J:J) -> 0 | N65: =IF(Rebate_Lookup[[#This Row],[Instances]]=1,1, IF(AND(Rebate_Lookup[[#This Row],[Instances]]=2,Rebate_Lookup[[#This Row],[Order Form Quantity]]<Rebate_Lookup[[#This Row],[MOQ_2]]),1,IF(AND(Rebate_Lookup[[#This Row],[Instances]]=2,Rebate_Lookup[[#This Row],[Order Form Quantity]]>=Rebate_Lookup[[#This Row],[MOQ_2]]),2, IF(AND(Rebate_Lookup[[#This Row],[Instances]]=3,Rebate_Lookup[[#This Row],[Order Form Quantity]]<Rebate_Lookup[[#This Row],[MOQ_2]]),1,IF(AND(Rebate_Lookup[[#This Row],[Instances]]=3,Rebate_Lookup[[#This Row],[MOQ_2]]<=Rebate_Lookup[[#This Row],[Order Form Quantity]],Rebate_Lookup[[#This Row],[Order Form Quantity]]<Rebate_Lookup[[#This Row],[MOQ_3]]),2,IF(AND(Rebate_Lookup[[#This Row],[Instances]]=3,Rebate_Lookup[[#This Row],[Order Form Quantity]]>=Rebate_Lookup[[#This Row],[MOQ_3]]),3)))))) -> 1 | O65: =COUNTIF('2025 LL-CALCULATOR - UNITS'!A:A,Rebate_Lookup[[#This Row],[SKU CODE]]) -> 0 | P65: =Rebate_Lookup[[#This Row],[Order Form Quantity]]>=16 -> FALSE
B66: 11008513 | C66: =INDEX(PRICING[Agency/TT],MATCH(Rebate_Lookup[[#This Row],[SKU CODE]],PRICING[SKU],0)) -> TT | D66: =INDEX(PRICING[Product],MATCH(B66,PRICING[SKU],0)) -> Aria® Insecticide | E66: =INDEX(PRICING[Size],MATCH(Rebate_Lookup[[#This Row],[SKU CODE]],PRICING[SKU],0)) -> 160 g | F66: =COUNTIFS(PRICING[SKU],B66) -> 1 | G66: 1 | H66: 8 | K66: $21.00 | L66: =SUMIFS(PRICING[Rebate $],PRICING[SKU],Rebate_Lookup[[#This Row],[SKU CODE]],PRICING[Set],3) -> 0 | M66: =SUMIF('2025 LL-CALCULATOR - UNITS'!A:A,Rebate_Lookup[[#This Row],[SKU CODE]],'2025 LL-CALCULATOR - UNITS'!J:J) -> 0 | N66: =IF(Rebate_Lookup[[#This Row],[Instances]]=1,1, IF(AND(Rebate_Lookup[[#This Row],[Instances]]=2,Rebate_Lookup[[#This Row],[Order Form Quantity]]<Rebate_Lookup[[#This Row],[MOQ_2]]),1,IF(AND(Rebate_Lookup[[#This Row],[Instances]]=2,Rebate_Lookup[[#This Row],[Order Form Quantity]]>=Rebate_Lookup[[#This Row],[MOQ_2]]),2, IF(AND(Rebate_Lookup[[#This Row],[Instances]]=3,Rebate_Lookup[[#This Row],[Order Form Quantity]]<Rebate_Lookup[[#This Row],[MOQ_2]]),1,IF(AND(Rebate_Lookup[[#This Row],[Instances]]=3,Rebate_Lookup[[#This Row],[MOQ_2]]<=Rebate_Lookup[[#This Row],[Order Form Quantity]],Rebate_Lookup[[#This Row],[Order Form Quantity]]<Rebate_Lookup[[#This Row],[MOQ_3]]),2,IF(AND(Rebate_Lookup[[#This Row],[Instances]]=3,Rebate_Lookup[[#This Row],[Order Form Quantity]]>=Rebate_Lookup[[#This Row],[MOQ_3]]),3)))))) -> 1 | O66: =COUNTIF('2025 LL-CALCULATOR - UNITS'!A:A,Rebate_Lookup[[#This Row],[SKU CODE]]) -> 0 | P66: =Rebate_Lookup[[#This Row],[Order Form Quantity]]>=8 -> FALSE
B67: 11015390 | C67: =INDEX(PRICING[Agency/TT],MATCH(Rebate_Lookup[[#This Row],[SKU CODE]],PRICING[SKU],0)) -> A | D67: =INDEX(PRICING[Product],MATCH(B67,PRICING[SKU],0)) -> Durentis™ Insecticide | E67: =INDEX(PRICING[Size],MATCH(Rebate_Lookup[[#This Row],[SKU CODE]],PRICING[SKU],0)) -> 16 oz | F67: =COUNTIFS(PRICING[SKU],B67) -> 4 | G67: 4 | H67: 9 | I67: 16 | J67: $90.00 | K67: $120.00 | L67: $160.00 | M67: =SUMIF('2025 LL-CALCULATOR - UNITS'!A:A,Rebate_Lookup[[#This Row],[SKU CODE]],'2025 LL-CALCULATOR - UNITS'!J:J) -> 0 | N67: =IF(Rebate_Lookup[[#This Row],[Instances]]=1,1, IF(AND(Rebate_Lookup[[#This Row],[Instances]]=2,Rebate_Lookup[[#This Row],[Order Form Quantity]]<Rebate_Lookup[[#This Row],[MOQ_2]]),1,IF(AND(Rebate_Lookup[[#This Row],[Instances]]=2,Rebate_Lookup[[#This Row],[Order Form Quantity]]>=Rebate_Lookup[[#This Row],[MOQ_2]]),2, IF(AND(Rebate_Lookup[[#This Row],[Instances]]=3,Rebate_Lookup[[#This Row],[Order Form Quantity]]<Rebate_Lookup[[#This Row],[MOQ_2]]),1,IF(AND(Rebate_Lookup[[#This Row],[Instances]]=3,Rebate_Lookup[[#This Row],[MOQ_2]]<=Rebate_Lookup[[#This Row],[Order Form Quantity]],Rebate_Lookup[[#This Row],[Order Form Quantity]]<Rebate_Lookup[[#This Row],[MOQ_3]]),2,IF(AND(Rebate_Lookup[[#This Row],[Instances]]=3,Rebate_Lookup[[#This Row],[Order Form Quantity]]>=Rebate_Lookup[[#This Row],[MOQ_3]]),3,0)))))) -> 0 | O67: =COUNTIF('2025 LL-CALCULATOR - UNITS'!A:A,Rebate_Lookup[[#This Row],[SKU CODE]]) -> 0 | P67: =Rebate_Lookup[[#This Row],[Order Form Quantity]]>=4 -> FALSE
B68: 11015391 | C68: =INDEX(PRICING[Agency/TT],MATCH(Rebate_Lookup[[#This Row],[SKU CODE]],PRICING[SKU],0)) -> A | D68: =INDEX(PRICING[Product],MATCH(B68,PRICING[SKU],0)) -> Durentis™ Insecticide | E68: =INDEX(PRICING[Size],MATCH(Rebate_Lookup[[#This Row],[SKU CODE]],PRICING[SKU],0)) -> 64 oz | F68: =COUNTIFS(PRICING[SKU],B68) -> 3 | G68: 1 | H68: 4 | I68: 8 | J68: =SUMIFS(PRICING[Rebate $],PRICING[SKU],Rebate_Lookup[[#This Row],[SKU CODE]],PRICING[Set],1) -> 0 | K68: =SUMIFS(PRICING[Rebate $],PRICING[SKU],Rebate_Lookup[[#This Row],[SKU CODE]],PRICING[Set],2) -> $557.00 | L68: =SUMIFS(PRICING[Rebate $],PRICING[SKU],Rebate_Lookup[[#This Row],[SKU CODE]],PRICING[Set],3) -> $657.00 | M68: =SUMIF('2025 LL-CALCULATOR - UNITS'!A:A,Rebate_Lookup[[#This Row],[SKU CODE]],'2025 LL-CALCULATOR - UNITS'!J:J) -> 0 | N68: =IF(Rebate_Lookup[[#This Row],[Instances]]=1,1, IF(AND(Rebate_Lookup[[#This Row],[Instances]]=2,Rebate_Lookup[[#This Row],[Order Form Quantity]]<Rebate_Lookup[[#This Row],[MOQ_2]]),1,IF(AND(Rebate_Lookup[[#This Row],[Instances]]=2,Rebate_Lookup[[#This Row],[Order Form Quantity]]>=Rebate_Lookup[[#This Row],[MOQ_2]]),2, IF(AND(Rebate_Lookup[[#This Row],[Instances]]=3,Rebate_Lookup[[#This Row],[Order Form Quantity]]<Rebate_Lookup[[#This Row],[MOQ_2]]),1,IF(AND(Rebate_Lookup[[#This Row],[Instances]]=3,Rebate_Lookup[[#This Row],[MOQ_2]]<=Rebate_Lookup[[#This Row],[Order Form Quantity]],Rebate_Lookup[[#This Row],[Order Form Quantity]]<Rebate_Lookup[[#This Row],[MOQ_3]]),2,IF(AND(Rebate_Lookup[[#This Row],[Instances]]=3,Rebate_Lookup[[#This Row],[Order Form Quantity]]>=Rebate_Lookup[[#This Row],[MOQ_3]]),3)))))) -> 1 | O68: =COUNTIF('2025 LL-CALCULATOR - UNITS'!A:A,Rebate_Lookup[[#This Row],[SKU CODE]]) -> 0 | P68: =Rebate_Lookup[[#This Row],[Order Form Quantity]]>=4 -> FALSE
B69: D00001040 | C69: =INDEX(PRICING[Agency/TT],MATCH(Rebate_Lookup[[#This Row],[SKU CODE]],PRICING[SKU],0)) -> TT | D69: =INDEX(PRICING[Product],MATCH(B69,PRICING[SKU],0)) -> Dylox SL420 | E69: =INDEX(PRICING[Size],MATCH(Rebate_Lookup[[#This Row],[SKU CODE]],PRICING[SKU],0)) -> 2.5 gal | F69: =COUNTIFS(PRICING[SKU],B69) -> 1 | G69: 1 | J69: =SUMIFS(PRICING[Rebate $],PRICING[SKU],Rebate_Lookup[[#This Row],[SKU CODE]],PRICING[Set],1) -> 0 | K69: =SUMIFS(PRICING[Rebate $],PRICING[SKU],Rebate_Lookup[[#This Row],[SKU CODE]],PRICING[Set],2) -> 0 | L69: =SUMIFS(PRICING[Rebate $],PRICING[SKU],Rebate_Lookup[[#This Row],[SKU CODE]],PRICING[Set],3) -> 0 | M69: =SUMIF('2025 LL-CALCULATOR - UNITS'!A:A,Rebate_Lookup[[#This Row],[SKU CODE]],'2025 LL-CALCULATOR - UNITS'!J:J) -> 0 | N69: =IF(Rebate_Lookup[[#This Row],[Instances]]=1,1, IF(AND(Rebate_Lookup[[#This Row],[Instances]]=2,Rebate_Lookup[[#This Row],[Order Form Quantity]]<Rebate_Lookup[[#This Row],[MOQ_2]]),1,IF(AND(Rebate_Lookup[[#This Row],[Instances]]=2,Rebate_Lookup[[#This Row],[Order Form Quantity]]>=Rebate_Lookup[[#This Row],[MOQ_2]]),2, IF(AND(Rebate_Lookup[[#This Row],[Instances]]=3,Rebate_Lookup[[#This Row],[Order Form Quantity]]<Rebate_Lookup[[#This Row],[MOQ_2]]),1,IF(AND(Rebate_Lookup[[#This Row],[Instances]]=3,Rebate_Lookup[[#This Row],[MOQ_2]]<=Rebate_Lookup[[#This Row],[Order Form Quantity]],Rebate_Lookup[[#This Row],[Order Form Quantity]]<Rebate_Lookup[[#This Row],[MOQ_3]]),2,IF(AND(Rebate_Lookup[[#This Row],[Instances]]=3,Rebate_Lookup[[#This Row],[Order Form Quantity]]>=Rebate_Lookup[[#This Row],[MOQ_3]]),3)))))) -> 1 | O69: =COUNTIF('2025 LL-CALCULATOR - UNITS'!A:A,Rebate_Lookup[[#This Row],[SKU CODE]]) -> 0 | P69: 0
B70: D00001275 | C70: =INDEX(PRICING[Agency/TT],MATCH(Rebate_Lookup[[#This Row],[SKU CODE]],PRICING[SKU],0)) -> TT | D70: =INDEX(PRICING[Product],MATCH(B70,PRICING[SKU],0)) -> Floramite | E70: =INDEX(PRICING[Size],MATCH(Rebate_Lookup[[#This Row],[SKU CODE]],PRICING[SKU],0)) -> 1 qt | F70: =COUNTIFS(PRICING[SKU],B70) -> 1 | G70: 4 | J70: =SUMIFS(PRICING[Rebate $],PRICING[SKU],Rebate_Lookup[[#This Row],[SKU CODE]],PRICING[Set],1) -> $50.00 | K70: =SUMIFS(PRICING[Rebate $],PRICING[SKU],Rebate_Lookup[[#This Row],[SKU CODE]],PRICING[Set],2) -> 0 | L70: =SUMIFS(PRICING[Rebate $],PRICING[SKU],Rebate_Lookup[[#This Row],[SKU CODE]],PRICING[Set],3) -> 0 | M70: =SUMIF('2025 LL-CALCULATOR - UNITS'!A:A,Rebate_Lookup[[#This Row],[SKU CODE]],'2025 LL-CALCULATOR - UNITS'!J:J) -> 0 | N70: =IF(Rebate_Lookup[[#This Row],[Instances]]=1,1, IF(AND(Rebate_Lookup[[#This Row],[Instances]]=2,Rebate_Lookup[[#This Row],[Order Form Quantity]]<Rebate_Lookup[[#This Row],[MOQ_2]]),1,IF(AND(Rebate_Lookup[[#This Row],[Instances]]=2,Rebate_Lookup[[#This Row],[Order Form Quantity]]>=Rebate_Lookup[[#This Row],[MOQ_2]]),2, IF(AND(Rebate_Lookup[[#This Row],[Instances]]=3,Rebate_Lookup[[#This Row],[Order Form Quantity]]<Rebate_Lookup[[#This Row],[MOQ_2]]),1,IF(AND(Rebate_Lookup[[#This Row],[Instances]]=3,Rebate_Lookup[[#This Row],[MOQ_2]]<=Rebate_Lookup[[#This Row],[Order Form Quantity]],Rebate_Lookup[[#This Row],[Order Form Quantity]]<Rebate_Lookup[[#This Row],[MOQ_3]]),2,IF(AND(Rebate_Lookup[[#This Row],[Instances]]=3,Rebate_Lookup[[#This Row],[Order Form Quantity]]>=Rebate_Lookup[[#This Row],[MOQ_3]]),3)))))) -> 1 | O70: =COUNTIF('2025 LL-CALCULATOR - UNITS'!A:A,Rebate_Lookup[[#This Row],[SKU CODE]]) -> 0 | P70: =Rebate_Lookup[[#This Row],[Order Form Quantity]]>=4 -> FALSE
B71: 3944704 | C71: =INDEX(PRICING[Agency/TT],MATCH(Rebate_Lookup[[#This Row],[SKU CODE]],PRICING[SKU],0)) -> TT | D71: =INDEX(PRICING[Product],MATCH(B71,PRICING[SKU],0)) -> Forbid | E71: =INDEX(PRICING[Size],MATCH(Rebate_Lookup[[#This Row],[SKU CODE]],PRICING[SKU],0)) -> 8 oz | F71: =COUNTIFS(PRICING[SKU],B71) -> 1 | G71: 1 | J71: =SUMIFS(PRICING[Rebate $],PRICING[SKU],Rebate_Lookup[[#This Row],[SKU CODE]],PRICING[Set],1) -> $22.00 | K71: =SUMIFS(PRICING[Rebate $],PRICING[SKU],Rebate_Lookup[[#This Row],[SKU CODE]],PRICING[Set],2) -> 0 | L71: =SUMIFS(PRICING[Rebate $],PRICING[SKU],Rebate_Lookup[[#This Row],[SKU CODE]],PRICING[Set],3) -> 0 | M71: =SUMIF('2025 LL-CALCULATOR - UNITS'!A:A,Rebate_Lookup[[#This Row],[SKU CODE]],'2025 LL-CALCULATOR - UNITS'!J:J) -> 0 | N71: =IF(Rebate_Lookup[[#This Row],[Instances]]=1,1, IF(AND(Rebate_Lookup[[#This Row],[Instances]]=2,Rebate_Lookup[[#This Row],[Order Form Quantity]]<Rebate_Lookup[[#This Row],[MOQ_2]]),1,IF(AND(Rebate_Lookup[[#This Row],[Instances]]=2,Rebate_Lookup[[#This Row],[Order Form Quantity]]>=Rebate_Lookup[[#This Row],[MOQ_2]]),2, IF(AND(Rebate_Lookup[[#This Row],[Instances]]=3,Rebate_Lookup[[#This Row],[Order Form Quantity]]<Rebate_Lookup[[#This Row],[MOQ_2]]),1,IF(AND(Rebate_Lookup[[#This Row],[Instances]]=3,Rebate_Lookup[[#This Row],[MOQ_2]]<=Rebate_Lookup[[#This Row],[Order Form Quantity]],Rebate_Lookup[[#This Row],[Order Form Quantity]]<Rebate_Lookup[[#This Row],[MOQ_3]]),2,IF(AND(Rebate_Lookup[[#This Row],[Instances]]=3,Rebate_Lookup[[#This Row],[Order Form Quantity]]>=Rebate_Lookup[[#This Row],[MOQ_3]]),3)))))) -> 1 | O71: =COUNTIF('2025 LL-CALCULATOR - UNITS'!A:A,Rebate_Lookup[[#This Row],[SKU CODE]]) -> 0 | P71: 0
B72: D00000944 | C72: =INDEX(PRICING[Agency/TT],MATCH(Rebate_Lookup[[#This Row],[SKU CODE]],PRICING[SKU],0)) -> A | D72: =INDEX(PRICING[Product],MATCH(B72,PRICING[SKU],0)) -> Kontos | E72: =INDEX(PRICING[Size],MATCH(Rebate_Lookup[[#This Row],[SKU CODE]],PRICING[SKU],0)) -> 250 ml | F72: =COUNTIFS(PRICING[SKU],B72) -> 1 | G72: 1 | J72: =SUMIFS(PRICING[Rebate $],PRICING[SKU],Rebate_Lookup[[#This Row],[SKU CODE]],PRICING[Set],1) -> 0 | K72: =SUMIFS(PRICING[Rebate $],PRICING[SKU],Rebate_Lookup[[#This Row],[SKU CODE]],PRICING[Set],2) -> 0 | L72: =SUMIFS(PRICING[Rebate $],PRICING[SKU],Rebate_Lookup[[#This Row],[SKU CODE]],PRICING[Set],3) -> 0 | M72: =SUMIF('2025 LL-CALCULATOR - UNITS'!A:A,Rebate_Lookup[[#This Row],[SKU CODE]],'2025 LL-CALCULATOR - UNITS'!J:J) -> 0 | N72: =IF(Rebate_Lookup[[#This Row],[Instances]]=1,1, IF(AND(Rebate_Lookup[[#This Row],[Instances]]=2,Rebate_Lookup[[#This Row],[Order Form Quantity]]<Rebate_Lookup[[#This Row],[MOQ_2]]),1,IF(AND(Rebate_Lookup[[#This Row],[Instances]]=2,Rebate_Lookup[[#This Row],[Order Form Quantity]]>=Rebate_Lookup[[#This Row],[MOQ_2]]),2, IF(AND(Rebate_Lookup[[#This Row],[Instances]]=3,Rebate_Lookup[[#This Row],[Order Form Quantity]]<Rebate_Lookup[[#This Row],[MOQ_2]]),1,IF(AND(Rebate_Lookup[[#This Row],[Instances]]=3,Rebate_Lookup[[#This Row],[MOQ_2]]<=Rebate_Lookup[[#This Row],[Order Form Quantity]],Rebate_Lookup[[#This Row],[Order Form Quantity]]<Rebate_Lookup[[#This Row],[MOQ_3]]),2,IF(AND(Rebate_Lookup[[#This Row],[Instances]]=3,Rebate_Lookup[[#This Row],[Order Form Quantity]]>=Rebate_Lookup[[#This Row],[MOQ_3]]),3)))))) -> 1 | O72: =COUNTIF('2025 LL-CALCULATOR - UNITS'!A:A,Rebate_Lookup[[#This Row],[SKU CODE]]) -> 0 | P72: 0
B73: D00001272 | C73: =INDEX(PRICING[Agency/TT],MATCH(Rebate_Lookup[[#This Row],[SKU CODE]],PRICING[SKU],0)) -> A | D73: =INDEX(PRICING[Product],MATCH(B73,PRICING[SKU],0)) -> Kontos | E73: =INDEX(PRICING[Size],MATCH(Rebate_Lookup[[#This Row],[SKU CODE]],PRICING[SKU],0)) -> 1 qt | F73: =COUNTIFS(PRICING[SKU],B73) -> 3 | G73: 1 | H73: 4 | I73: 16 | J73: =SUMIFS(PRICING[Rebate $],PRICING[SKU],Rebate_Lookup[[#This Row],[SKU CODE]],PRICING[Set],1) -> 0 | K73: =SUMIFS(PRICING[Rebate $],PRICING[SKU],Rebate_Lookup[[#This Row],[SKU CODE]],PRICING[Set],2) -> 0 | L73: =SUMIFS(PRICING[Rebate $],PRICING[SKU],Rebate_Lookup[[#This Row],[SKU CODE]],PRICING[Set],3) -> 0 | M73: =SUMIF('2025 LL-CALCULATOR - UNITS'!A:A,Rebate_Lookup[[#This Row],[SKU CODE]],'2025 LL-CALCULATOR - UNITS'!J:J) -> 0 | N73: =IF(Rebate_Lookup[[#This Row],[Instances]]=1,1, IF(AND(Rebate_Lookup[[#This Row],[Instances]]=2,Rebate_Lookup[[#This Row],[Order Form Quantity]]<Rebate_Lookup[[#This Row],[MOQ_2]]),1,IF(AND(Rebate_Lookup[[#This Row],[Instances]]=2,Rebate_Lookup[[#This Row],[Order Form Quantity]]>=Rebate_Lookup[[#This Row],[MOQ_2]]),2, IF(AND(Rebate_Lookup[[#This Row],[Instances]]=3,Rebate_Lookup[[#This Row],[Order Form Quantity]]<Rebate_Lookup[[#This Row],[MOQ_2]]),1,IF(AND(Rebate_Lookup[[#This Row],[Instances]]=3,Rebate_Lookup[[#This Row],[MOQ_2]]<=Rebate_Lookup[[#This Row],[Order Form Quantity]],Rebate_Lookup[[#This Row],[Order Form Quantity]]<Rebate_Lookup[[#This Row],[MOQ_3]]),2,IF(AND(Rebate_Lookup[[#This Row],[Instances]]=3,Rebate_Lookup[[#This Row],[Order Form Quantity]]>=Rebate_Lookup[[#This Row],[MOQ_3]]),3)))))) -> 1 | O73: =COUNTIF('2025 LL-CALCULATOR - UNITS'!A:A,Rebate_Lookup[[#This Row],[SKU CODE]]) -> 0 | P73: 0
B74: D00000961 | C74: =INDEX(PRICING[Agency/TT],MATCH(Rebate_Lookup[[#This Row],[SKU CODE]],PRICING[SKU],0)) -> TT | D74: =INDEX(PRICING[Product],MATCH(B74,PRICING[SKU],0)) -> Merit 2F | E74: =INDEX(PRICING[Size],MATCH(Rebate_Lookup[[#This Row],[SKU CODE]],PRICING[SKU],0)) -> 1 gal | F74: =COUNTIFS(PRICING[SKU],B74) -> 1 | G74: 1 | J74: =SUMIFS(PRICING[Rebate $],PRICING[SKU],Rebate_Lookup[[#This Row],[SKU CODE]],PRICING[Set],1) -> 0 | K74: =SUMIFS(PRICING[Rebate $],PRICING[SKU],Rebate_Lookup[[#This Row],[SKU CODE]],PRICING[Set],2) -> 0 | L74: =SUMIFS(PRICING[Rebate $],PRICING[SKU],Rebate_Lookup[[#This Row],[SKU CODE]],PRICING[Set],3) -> 0 | M74: =SUMIF('2025 LL-CALCULATOR - UNITS'!A:A,Rebate_Lookup[[#This Row],[SKU CODE]],'2025 LL-CALCULATOR - UNITS'!J:J) -> 0 | N74: =IF(Rebate_Lookup[[#This Row],[Instances]]=1,1, IF(AND(Rebate_Lookup[[#This Row],[Instances]]=2,Rebate_Lookup[[#This Row],[Order Form Quantity]]<Rebate_Lookup[[#This Row],[MOQ_2]]),1,IF(AND(Rebate_Lookup[[#This Row],[Instances]]=2,Rebate_Lookup[[#This Row],[Order Form Quantity]]>=Rebate_Lookup[[#This Row],[MOQ_2]]),2, IF(AND(Rebate_Lookup[[#This Row],[Instances]]=3,Rebate_Lookup[[#This Row],[Order Form Quantity]]<Rebate_Lookup[[#This Row],[MOQ_2]]),1,IF(AND(Rebate_Lookup[[#This Row],[Instances]]=3,Rebate_Lookup[[#This Row],[MOQ_2]]<=Rebate_Lookup[[#This Row],[Order Form Quantity]],Rebate_Lookup[[#This Row],[Order Form Quantity]]<Rebate_Lookup[[#This Row],[MOQ_3]]),2,IF(AND(Rebate_Lookup[[#This Row],[Instances]]=3,Rebate_Lookup[[#This Row],[Order Form Quantity]]>=Rebate_Lookup[[#This Row],[MOQ_3]]),3)))))) -> 1 | O74: =COUNTIF('2025 LL-CALCULATOR - UNITS'!A:A,Rebate_Lookup[[#This Row],[SKU CODE]]) -> 0 | P74: 0
B75: D00000987 | C75: =INDEX(PRICING[Agency/TT],MATCH(Rebate_Lookup[[#This Row],[SKU CODE]],PRICING[SKU],0)) -> A | D75: =INDEX(PRICING[Product],MATCH(B75,PRICING[SKU],0)) -> Savate | E75: =INDEX(PRICING[Size],MATCH(Rebate_Lookup[[#This Row],[SKU CODE]],PRICING[SKU],0)) -> 8 oz | F75: =COUNTIFS(PRICING[SKU],B75) -> 3 | G75: 1 | H75: 12 | I75: 30 | J75: =SUMIFS(PRICING[Rebate $],PRICING[SKU],Rebate_Lookup[[#This Row],[SKU CODE]],PRICING[Set],1) -> 0 | K75: =SUMIFS(PRICING[Rebate $],PRICING[SKU],Rebate_Lookup[[#This Row],[SKU CODE]],PRICING[Set],2) -> 0 | L75: =SUMIFS(PRICING[Rebate $],PRICING[SKU],Rebate_Lookup[[#This Row],[SKU CODE]],PRICING[Set],3) -> 0 | M75: =SUMIF('2025 LL-CALCULATOR - UNITS'!A:A,Rebate_Lookup[[#This Row],[SKU CODE]],'2025 LL-CALCULATOR - UNITS'!J:J) -> 0 | N75: =IF(Rebate_Lookup[[#This Row],[Instances]]=1,1, IF(AND(Rebate_Lookup[[#This Row],[Instances]]=2,Rebate_Lookup[[#This Row],[Order Form Quantity]]<Rebate_Lookup[[#This Row],[MOQ_2]]),1,IF(AND(Rebate_Lookup[[#This Row],[Instances]]=2,Rebate_Lookup[[#This Row],[Order Form Quantity]]>=Rebate_Lookup[[#This Row],[MOQ_2]]),2, IF(AND(Rebate_Lookup[[#This Row],[Instances]]=3,Rebate_Lookup[[#This Row],[Order Form Quantity]]<Rebate_Lookup[[#This Row],[MOQ_2]]),1,IF(AND(Rebate_Lookup[[#This Row],[Instances]]=3,Rebate_Lookup[[#This Row],[MOQ_2]]<=Rebate_Lookup[[#This Row],[Order Form Quantity]],Rebate_Lookup[[#This Row],[Order Form Quantity]]<Rebate_Lookup[[#This Row],[MOQ_3]]),2,IF(AND(Rebate_Lookup[[#This Row],[Instances]]=3,Rebate_Lookup[[#This Row],[Order Form Quantity]]>=Rebate_Lookup[[#This Row],[MOQ_3]]),3)))))) -> 1 | O75: =COUNTIF('2025 LL-CALCULATOR - UNITS'!A:A,Rebate_Lookup[[#This Row],[SKU CODE]]) -> 0 | P75: 0
B76: 11009495 | C76: =INDEX(PRICING[Agency/TT],MATCH(Rebate_Lookup[[#This Row],[SKU CODE]],PRICING[SKU],0)) -> A | D76: =INDEX(PRICING[Product],MATCH(B76,PRICING[SKU],0)) -> Scion | E76: =INDEX(PRICING[Size],MATCH(Rebate_Lookup[[#This Row],[SKU CODE]],PRICING[SKU],0)) -> 32 oz | F76: =COUNTIFS(PRICING[SKU],B76) -> 1 | G76: 1 | J76: =SUMIFS(PRICING[Rebate $],PRICING[SKU],Rebate_Lookup[[#This Row],[SKU CODE]],PRICING[Set],1) -> $38.00 | K76: =SUMIFS(PRICING[Rebate $],PRICING[SKU],Rebate_Lookup[[#This Row],[SKU CODE]],PRICING[Set],2) -> 0 | L76: =SUMIFS(PRICING[Rebate $],PRICING[SKU],Rebate_Lookup[[#This Row],[SKU CODE]],PRICING[Set],3) -> 0 | M76: =SUMIF('2025 LL-CALCULATOR - UNITS'!A:A,Rebate_Lookup[[#This Row],[SKU CODE]],'2025 LL-CALCULATOR - UNITS'!J:J) -> 0 | N76: =IF(Rebate_Lookup[[#This Row],[Instances]]=1,1, IF(AND(Rebate_Lookup[[#This Row],[Instances]]=2,Rebate_Lookup[[#This Row],[Order Form Quantity]]<Rebate_Lookup[[#This Row],[MOQ_2]]),1,IF(AND(Rebate_Lookup[[#This Row],[Instances]]=2,Rebate_Lookup[[#This Row],[Order Form Quantity]]>=Rebate_Lookup[[#This Row],[MOQ_2]]),2, IF(AND(Rebate_Lookup[[#This Row],[Instances]]=3,Rebate_Lookup[[#This Row],[Order Form Quantity]]<Rebate_Lookup[[#This Row],[MOQ_2]]),1,IF(AND(Rebate_Lookup[[#This Row],[Instances]]=3,Rebate_Lookup[[#This Row],[MOQ_2]]<=Rebate_Lookup[[#This Row],[Order Form Quantity]],Rebate_Lookup[[#This Row],[Order Form Quantity]]<Rebate_Lookup[[#This Row],[MOQ_3]]),2,IF(AND(Rebate_Lookup[[#This Row],[Instances]]=3,Rebate_Lookup[[#This Row],[Order Form Quantity]]>=Rebate_Lookup[[#This Row],[MOQ_3]]),3)))))) -> 1 | O76: =COUNTIF('2025 LL-CALCULATOR - UNITS'!A:A,Rebate_Lookup[[#This Row],[SKU CODE]]) -> 0 | P76: 0
B77: D00001276 | C77: =INDEX(PRICING[Agency/TT],MATCH(Rebate_Lookup[[#This Row],[SKU CODE]],PRICING[SKU],0)) -> TT | D77: =INDEX(PRICING[Product],MATCH(B77,PRICING[SKU],0)) -> Shuttle | E77: =INDEX(PRICING[Size],MATCH(Rebate_Lookup[[#This Row],[SKU CODE]],PRICING[SKU],0)) -> 1 qt | F77: =COUNTIFS(PRICING[SKU],B77) -> 1 | G77: 4 | J77: =SUMIFS(PRICING[Rebate $],PRICING[SKU],Rebate_Lookup[[#This Row],[SKU CODE]],PRICING[Set],1) -> $25.00 | K77: =SUMIFS(PRICING[Rebate $],PRICING[SKU],Rebate_Lookup[[#This Row],[SKU CODE]],PRICING[Set],2) -> 0 | L77: =SUMIFS(PRICING[Rebate $],PRICING[SKU],Rebate_Lookup[[#This Row],[SKU CODE]],PRICING[Set],3) -> 0 | M77: =SUMIF('2025 LL-CALCULATOR - UNITS'!A:A,Rebate_Lookup[[#This Row],[SKU CODE]],'2025 LL-CALCULATOR - UNITS'!J:J) -> 0 | N77: =IF(Rebate_Lookup[[#This Row],[Instances]]=1,1, IF(AND(Rebate_Lookup[[#This Row],[Instances]]=2,Rebate_Lookup[[#This Row],[Order Form Quantity]]<Rebate_Lookup[[#This Row],[MOQ_2]]),1,IF(AND(Rebate_Lookup[[#This Row],[Instances]]=2,Rebate_Lookup[[#This Row],[Order Form Quantity]]>=Rebate_Lookup[[#This Row],[MOQ_2]]),2, IF(AND(Rebate_Lookup[[#This Row],[Instances]]=3,Rebate_Lookup[[#This Row],[Order Form Quantity]]<Rebate_Lookup[[#This Row],[MOQ_2]]),1,IF(AND(Rebate_Lookup[[#This Row],[Instances]]=3,Rebate_Lookup[[#This Row],[MOQ_2]]<=Rebate_Lookup[[#This Row],[Order Form Quantity]],Rebate_Lookup[[#This Row],[Order Form Quantity]]<Rebate_Lookup[[#This Row],[MOQ_3]]),2,IF(AND(Rebate_Lookup[[#This Row],[Instances]]=3,Rebate_Lookup[[#This Row],[Order Form Quantity]]>=Rebate_Lookup[[#This Row],[MOQ_3]]),3)))))) -> 1 | O77: =COUNTIF('2025 LL-CALCULATOR - UNITS'!A:A,Rebate_Lookup[[#This Row],[SKU CODE]]) -> 0 | P77: =Rebate_Lookup[[#This Row],[Order Form Quantity]]>=4 -> FALSE
B78: 11008457 | C78: =INDEX(PRICING[Agency/TT],MATCH(Rebate_Lookup[[#This Row],[SKU CODE]],PRICING[SKU],0)) -> TT | D78: =INDEX(PRICING[Product],MATCH(B78,PRICING[SKU],0)) -> Talstar® Select Insecticide (RUP) | E78: =INDEX(PRICING[Size],MATCH(Rebate_Lookup[[#This Row],[SKU CODE]],PRICING[SKU],0)) -> 1 gal | F78: =COUNTIFS(PRICING[SKU],B78) -> 1 | G78: 4 | J78: $6.00 | K78: =SUMIFS(PRICING[Rebate $],PRICING[SKU],Rebate_Lookup[[#This Row],[SKU CODE]],PRICING[Set],2) -> 0 | L78: =SUMIFS(PRICING[Rebate $],PRICING[SKU],Rebate_Lookup[[#This Row],[SKU CODE]],PRICING[Set],3) -> 0 | M78: =SUMIF('2025 LL-CALCULATOR - UNITS'!A:A,Rebate_Lookup[[#This Row],[SKU CODE]],'2025 LL-CALCULATOR - UNITS'!J:J) -> 0 | N78: =IF(Rebate_Lookup[[#This Row],[Instances]]=1,1, IF(AND(Rebate_Lookup[[#This Row],[Instances]]=2,Rebate_Lookup[[#This Row],[Order Form Quantity]]<Rebate_Lookup[[#This Row],[MOQ_2]]),1,IF(AND(Rebate_Lookup[[#This Row],[Instances]]=2,Rebate_Lookup[[#This Row],[Order Form Quantity]]>=Rebate_Lookup[[#This Row],[MOQ_2]]),2, IF(AND(Rebate_Lookup[[#This Row],[Instances]]=3,Rebate_Lookup[[#This Row],[Order Form Quantity]]<Rebate_Lookup[[#This Row],[MOQ_2]]),1,IF(AND(Rebate_Lookup[[#This Row],[Instances]]=3,Rebate_Lookup[[#This Row],[MOQ_2]]<=Rebate_Lookup[[#This Row],[Order Form Quantity]],Rebate_Lookup[[#This Row],[Order Form Quantity]]<Rebate_Lookup[[#This Row],[MOQ_3]]),2,IF(AND(Rebate_Lookup[[#This Row],[Instances]]=3,Rebate_Lookup[[#This Row],[Order Form Quantity]]>=Rebate_Lookup[[#This Row],[MOQ_3]]),3)))))) -> 1 | O78: =COUNTIF('2025 LL-CALCULATOR - UNITS'!A:A,Rebate_Lookup[[#This Row],[SKU CODE]]) -> 0 | P78: =Rebate_Lookup[[#This Row],[Order Form Quantity]]>=4 -> FALSE
B79: 86797658 | C79: =INDEX(PRICING[Agency/TT],MATCH(Rebate_Lookup[[#This Row],[SKU CODE]],PRICING[SKU],0)) -> A | D79: =INDEX(PRICING[Product],MATCH(B79,PRICING[SKU],0)) -> Tetrino® | E79: =INDEX(PRICING[Size],MATCH(Rebate_Lookup[[#This Row],[SKU CODE]],PRICING[SKU],0)) -> 1 gal | F79: =COUNTIFS(PRICING[SKU],B79) -> 2 | G79: 4 | J79: $40.00 | K79: =SUMIFS(PRICING[Rebate $],PRICING[SKU],Rebate_Lookup[[#This Row],[SKU CODE]],PRICING[Set],2) -> 0 | L79: =SUMIFS(PRICING[Rebate $],PRICING[SKU],Rebate_Lookup[[#This Row],[SKU CODE]],PRICING[Set],3) -> 0 | M79: =SUMIF('2025 LL-CALCULATOR - UNITS'!A:A,Rebate_Lookup[[#This Row],[SKU CODE]],'2025 LL-CALCULATOR - UNITS'!J:J) -> 0 | N79: =IF(Rebate_Lookup[[#This Row],[Instances]]=1,1, IF(AND(Rebate_Lookup[[#This Row],[Instances]]=2,Rebate_Lookup[[#This Row],[Order Form Quantity]]<Rebate_Lookup[[#This Row],[MOQ_2]]),1,IF(AND(Rebate_Lookup[[#This Row],[Instances]]=2,Rebate_Lookup[[#This Row],[Order Form Quantity]]>=Rebate_Lookup[[#This Row],[MOQ_2]]),2, IF(AND(Rebate_Lookup[[#This Row],[Instances]]=3,Rebate_Lookup[[#This Row],[Order Form Quantity]]<Rebate_Lookup[[#This Row],[MOQ_2]]),1,IF(AND(Rebate_Lookup[[#This Row],[Instances]]=3,Rebate_Lookup[[#This Row],[MOQ_2]]<=Rebate_Lookup[[#This Row],[Order Form Quantity]],Rebate_Lookup[[#This Row],[Order Form Quantity]]<Rebate_Lookup[[#This Row],[MOQ_3]]),2,IF(AND(Rebate_Lookup[[#This Row],[Instances]]=3,Rebate_Lookup[[#This Row],[Order Form Quantity]]>=Rebate_Lookup[[#This Row],[MOQ_3]]),3)))))) -> 2 | O79: =COUNTIF('2025 LL-CALCULATOR - UNITS'!A:A,Rebate_Lookup[[#This Row],[SKU CODE]]) -> 0 | P79: =Rebate_Lookup[[#This Row],[Order Form Quantity]]>=4 -> FALSE
B80: D00001012 | C80: =INDEX(PRICING[Agency/TT],MATCH(Rebate_Lookup[[#This Row],[SKU CODE]],PRICING[SKU],0)) -> TT | D80: =INDEX(PRICING[Product],MATCH(B80,PRICING[SKU],0)) -> TopChoice | E80: =INDEX(PRICING[Size],MATCH(Rebate_Lookup[[#This Row],[SKU CODE]],PRICING[SKU],0)) -> 50 lb | F80: =COUNTIFS(PRICING[SKU],B80) -> 1 | G80: 1 | J80: $2.00 | K80: =SUMIFS(PRICING[Rebate $],PRICING[SKU],Rebate_Lookup[[#This Row],[SKU CODE]],PRICING[Set],2) -> 0 | L80: =SUMIFS(PRICING[Rebate $],PRICING[SKU],Rebate_Lookup[[#This Row],[SKU CODE]],PRICING[Set],3) -> 0 | M80: =SUMIF('2025 LL-CALCULATOR - UNITS'!A:A,Rebate_Lookup[[#This Row],[SKU CODE]],'2025 LL-CALCULATOR - UNITS'!J:J) -> 0 | N80: =IF(Rebate_Lookup[[#This Row],[Instances]]=1,1, IF(AND(Rebate_Lookup[[#This Row],[Instances]]=2,Rebate_Lookup[[#This Row],[Order Form Quantity]]<Rebate_Lookup[[#This Row],[MOQ_2]]),1,IF(AND(Rebate_Lookup[[#This Row],[Instances]]=2,Rebate_Lookup[[#This Row],[Order Form Quantity]]>=Rebate_Lookup[[#This Row],[MOQ_2]]),2, IF(AND(Rebate_Lookup[[#This Row],[Instances]]=3,Rebate_Lookup[[#This Row],[Order Form Quantity]]<Rebate_Lookup[[#This Row],[MOQ_2]]),1,IF(AND(Rebate_Lookup[[#This Row],[Instances]]=3,Rebate_Lookup[[#This Row],[MOQ_2]]<=Rebate_Lookup[[#This Row],[Order Form Quantity]],Rebate_Lookup[[#This Row],[Order Form Quantity]]<Rebate_Lookup[[#This Row],[MOQ_3]]),2,IF(AND(Rebate_Lookup[[#This Row],[Instances]]=3,Rebate_Lookup[[#This Row],[Order Form Quantity]]>=Rebate_Lookup[[#This Row],[MOQ_3]]),3)))))) -> 1 | O80: =COUNTIF('2025 LL-CALCULATOR - UNITS'!A:A,Rebate_Lookup[[#This Row],[SKU CODE]]) -> 0 | P80: 0
B81: 11008521 | C81: =INDEX(PRICING[Agency/TT],MATCH(Rebate_Lookup[[#This Row],[SKU CODE]],PRICING[SKU],0)) -> A | D81: =INDEX(PRICING[Product],MATCH(B81,PRICING[SKU],0)) -> Triple Crown® Golf Insecticide (RUP) | E81: =INDEX(PRICING[Size],MATCH(Rebate_Lookup[[#This Row],[SKU CODE]],PRICING[SKU],0)) -> 1 gal | F81: =COUNTIFS(PRICING[SKU],B81) -> 3 | G81: 1 | H81: 20 | I81: 40 | J81: 0 | K81: $12.00 | L81: $25.00 | M81: =SUMIF('2025 LL-CALCULATOR - UNITS'!A:A,Rebate_Lookup[[#This Row],[SKU CODE]],'2025 LL-CALCULATOR - UNITS'!J:J) -> 0 | N81: =IF(Rebate_Lookup[[#This Row],[Instances]]=1,1, IF(AND(Rebate_Lookup[[#This Row],[Instances]]=2,Rebate_Lookup[[#This Row],[Order Form Quantity]]<Rebate_Lookup[[#This Row],[MOQ_2]]),1,IF(AND(Rebate_Lookup[[#This Row],[Instances]]=2,Rebate_Lookup[[#This Row],[Order Form Quantity]]>=Rebate_Lookup[[#This Row],[MOQ_2]]),2, IF(AND(Rebate_Lookup[[#This Row],[Instances]]=3,Rebate_Lookup[[#This Row],[Order Form Quantity]]<Rebate_Lookup[[#This Row],[MOQ_2]]),1,IF(AND(Rebate_Lookup[[#This Row],[Instances]]=3,Rebate_Lookup[[#This Row],[MOQ_2]]<=Rebate_Lookup[[#This Row],[Order Form Quantity]],Rebate_Lookup[[#This Row],[Order Form Quantity]]<Rebate_Lookup[[#This Row],[MOQ_3]]),2,IF(AND(Rebate_Lookup[[#This Row],[Instances]]=3,Rebate_Lookup[[#This Row],[Order Form Quantity]]>=Rebate_Lookup[[#This Row],[MOQ_3]]),3)))))) -> 1 | O81: =COUNTIF('2025 LL-CALCULATOR - UNITS'!A:A,Rebate_Lookup[[#This Row],[SKU CODE]]) -> 0 | P81: =Rebate_Lookup[[#This Row],[Order Form Quantity]]>=20 -> FALSE
B82: 11008520 | C82: =INDEX(PRICING[Agency/TT],MATCH(Rebate_Lookup[[#This Row],[SKU CODE]],PRICING[SKU],0)) -> A | D82: =INDEX(PRICING[Product],MATCH(B82,PRICING[SKU],0)) -> Triple Crown® T&O Insecticide | E82: =INDEX(PRICING[Size],MATCH(Rebate_Lookup[[#This Row],[SKU CODE]],PRICING[SKU],0)) -> 1 gal | F82: =COUNTIFS(PRICING[SKU],B82) -> 3 | G82: 1 | H82: 20 | I82: 40 | J82: =SUMIFS(PRICING[Rebate $],PRICING[SKU],Rebate_Lookup[[#This Row],[SKU CODE]],PRICING[Set],1) -> 0 | K82: $12.00 | L82: $25.00 | M82: =SUMIF('2025 LL-CALCULATOR - UNITS'!A:A,Rebate_Lookup[[#This Row],[SKU CODE]],'2025 LL-CALCULATOR - UNITS'!J:J) -> 0 | N82: =IF(Rebate_Lookup[[#This Row],[Instances]]=1,1, IF(AND(Rebate_Lookup[[#This Row],[Instances]]=2,Rebate_Lookup[[#This Row],[Order Form Quantity]]<Rebate_Lookup[[#This Row],[MOQ_2]]),1,IF(AND(Rebate_Lookup[[#This Row],[Instances]]=2,Rebate_Lookup[[#This Row],[Order Form Quantity]]>=Rebate_Lookup[[#This Row],[MOQ_2]]),2, IF(AND(Rebate_Lookup[[#This Row],[Instances]]=3,Rebate_Lookup[[#This Row],[Order Form Quantity]]<Rebate_Lookup[[#This Row],[MOQ_2]]),1,IF(AND(Rebate_Lookup[[#This Row],[Instances]]=3,Rebate_Lookup[[#This Row],[MOQ_2]]<=Rebate_Lookup[[#This Row],[Order Form Quantity]],Rebate_Lookup[[#This Row],[Order Form Quantity]]<Rebate_Lookup[[#This Row],[MOQ_3]]),2,IF(AND(Rebate_Lookup[[#This Row],[Instances]]=3,Rebate_Lookup[[#This Row],[Order Form Quantity]]>=Rebate_Lookup[[#This Row],[MOQ_3]]),3)))))) -> 1 | O82: =COUNTIF('2025 LL-CALCULATOR - UNITS'!A:A,Rebate_Lookup[[#This Row],[SKU CODE]]) -> 0 | P82: =Rebate_Lookup[[#This Row],[Order Form Quantity]]>=20 -> FALSE
B83: D00001274 | C83: =INDEX(PRICING[Agency/TT],MATCH(Rebate_Lookup[[#This Row],[SKU CODE]],PRICING[SKU],0)) -> TT | D83: =INDEX(PRICING[Product],MATCH(B83,PRICING[SKU],0)) -> B-Nine | E83: =INDEX(PRICING[Size],MATCH(Rebate_Lookup[[#This Row],[SKU CODE]],PRICING[SKU],0)) -> 5 lb | F83: =COUNTIFS(PRICING[SKU],B83) -> 1 | G83: 4 | J83: =SUMIFS(PRICING[Rebate $],PRICING[SKU],Rebate_Lookup[[#This Row],[SKU CODE]],PRICING[Set],1) -> $12.00 | K83: =SUMIFS(PRICING[Rebate $],PRICING[SKU],Rebate_Lookup[[#This Row],[SKU CODE]],PRICING[Set],2) -> 0 | L83: =SUMIFS(PRICING[Rebate $],PRICING[SKU],Rebate_Lookup[[#This Row],[SKU CODE]],PRICING[Set],3) -> 0 | M83: =SUMIF('2025 LL-CALCULATOR - UNITS'!A:A,Rebate_Lookup[[#This Row],[SKU CODE]],'2025 LL-CALCULATOR - UNITS'!J:J) -> 0 | N83: =IF(Rebate_Lookup[[#This Row],[Instances]]=1,1, IF(AND(Rebate_Lookup[[#This Row],[Instances]]=2,Rebate_Lookup[[#This Row],[Order Form Quantity]]<Rebate_Lookup[[#This Row],[MOQ_2]]),1,IF(AND(Rebate_Lookup[[#This Row],[Instances]]=2,Rebate_Lookup[[#This Row],[Order Form Quantity]]>=Rebate_Lookup[[#This Row],[MOQ_2]]),2, IF(AND(Rebate_Lookup[[#This Row],[Instances]]=3,Rebate_Lookup[[#This Row],[Order Form Quantity]]<Rebate_Lookup[[#This Row],[MOQ_2]]),1,IF(AND(Rebate_Lookup[[#This Row],[Instances]]=3,Rebate_Lookup[[#This Row],[MOQ_2]]<=Rebate_Lookup[[#This Row],[Order Form Quantity]],Rebate_Lookup[[#This Row],[Order Form Quantity]]<Rebate_Lookup[[#This Row],[MOQ_3]]),2,IF(AND(Rebate_Lookup[[#This Row],[Instances]]=3,Rebate_Lookup[[#This Row],[Order Form Quantity]]>=Rebate_Lookup[[#This Row],[MOQ_3]]),3)))))) -> 1 | O83: =COUNTIF('2025 LL-CALCULATOR - UNITS'!A:A,Rebate_Lookup[[#This Row],[SKU CODE]]) -> 0 | P83: =Rebate_Lookup[[#This Row],[Order Form Quantity]]>=4 -> FALSE
D124: 11015390
D125: 11015391
D126: D00001040
D127: D00001275
D128: 3944704
D129: D00000944
D130: D00001272
D131: D00000961
D132: D00000987
D133: 11009495
D134: D00001276
D135: 11008457
D136: 86797658
D137: D00001012
D138: 11008521
D139: 11008520
D140: D00001274

Sheet 2025 SLP_LL_NOW (hidden)
A1: Manufacturer | B1: Agency/TT | C1: Segment | D1: Region | E1: Indication | F1: Vol Buys | G1: Program | H1: Old Bayer SKU | I1: Old Envu SKU | J1: SKU | K1: Product | L1: Size | M1: 2025 In-Season Price | N1: NOW Price | O1: In SZN-NOW delta | P1: Min Qty | Q1: Rebate $ | R1: Final Price | S1: CA In-season Price | T1: CA NOW Price | U1: CA Final Price | V1: WA In-season Price | W1: WA NOW Price | X1: WA Final Price | Y1: Package Ounces | Z1: Standard Use Rate (oz/M) | AA1: Standard Use Rate (oz/Acre) | AB1: Price/1000 sq ft | AC1: Price/Acre | AD1: Total % | AE1: *cumlative | AF1: Set
A2: Envu | B2: TT | C2: G | D2: NST | E2: F | G2: EOP | J2: 4250930 | K2: 26 GT | L2: 2.5 gal | M2: 610.8 | N2: 610.8 | O2: 0 | R2: 610.8 | Y2: 320 | Z2: 4 | AA2: 174.24 | AB2: 7.635 | AC2: 332.5806 | AD2: 0 | AF2: 1
A3: Envu | B3: TT | C3: L | D3: NST | E3: F | G3: EOP | H3: 80224672 | J3: D00000898 | K3: Armada 50 WDG | L3: 2 lb | M3: 136.8 | N3: 136.8 | O3: 0 | Q3: $10.00 | R3: 126.8 | Y3: 32 | Z3: 1.2 | AA3: 52.272 | AB3: 4.755 | AC3: 207.1278 | AD3: 0.0730994152 | AF3: =IF(PRICING[[#This Row],[SKU]]=J2,AF2+1,1) -> 1
A4: Envu | B4: A | C4: G | D4: NST | E4: F | F4: X | G4: NOW | H4: 79895402 | J4: D00000907 | K4: Banol® | L4: 2.5 gal | M4: $1,267.00 | N4: $1,267.00 | O4: $0.00 | R4: 1267 | S4: 1302.16 | T4: 1302.16 | U4: 1302.16 | V4: 1275.85 | W4: 1275.85 | X4: 1275.85 | Y4: 320 | Z4: 2 | AA4: 87.12 | AB4: 7.91875 | AC4: 344.94075 | AD4: 0 | AF4: =IF(PRICING[[#This Row],[SKU]]=J3,AF3+1,1) -> 1
A5: Envu | B5: A | C5: G | D5: NST | E5: F | F5: X | G5: NOW | H5: 79895402 | J5: D00000907 | K5: Banol® | L5: 2.5 gal | M5: $1,267.00 | N5: $1,267.00 | O5: $0.00 | P5: 2+ | Q5: $90.00 | R5: 1177 | S5: 1302.16 | T5: 1302.16 | U5: 1212.16 | V5: 1275.85 | W5: 1275.85 | X5: 1185.85 | Y5: 320 | Z5: 2 | AA5: 87.12 | AB5: 7.35625 | AC5: 320.43825 | AD5: 0.07103393844 | AF5: =IF(PRICING[[#This Row],[SKU]]=J4,AF4+1,1) -> 2
A6: Envu | B6: A | C6: LO | E6: F | G6: EOP/ORN | H6: 86762153 | J6: D00000908 | K6: Broadform | L6: 12 oz | M6: 250 | O6: 250 | P6: 1-15 | R6: 0 | AD6: 1 | AF6: =IF(PRICING[[#This Row],[SKU]]=J5,AF5+1,1) -> 1
A7: Envu | B7: A | C7: LO | E7: F | G7: EOP/ORN | H7: 86762153 | J7: D00000908 | K7: Broadform | L7: 12 oz | M7: 250 | N7: 237.5 | O7: 12.5 | P7: 16-31 | R7: 237.5 | AF7: =IF(PRICING[[#This Row],[SKU]]=J6,AF6+1,1) -> 2
A8: Envu | B8: A | C8: LO | E8: F | G8: EOP/ORN | H8: 86762153 | J8: D00000908 | K8: Broadform | L8: 12 oz | M8: 250 | N8: 225 | O8: 25 | P8: 32+ | R8: 225 | AF8: =IF(PRICING[[#This Row],[SKU]]=J7,AF7+1,1) -> 3
A9: Envu | B9: A | C9: G | D9: NST | E9: F | F9: X | G9: NOW | J9: D00000623 | K9: Castlon™ | L9: 1 gal | M9: 2748.2 | N9: 2610.79 | O9: 137.41 | R9: 2610.79 | S9: 2824.46 | T9: 2683.24 | U9: 2683.24 | V9: 2767.44 | W9: 2629.07 | X9: 2629.07 | Y9: 128 | Z9: 0.36 | AA9: 15.6816 | AB9: 7.342846875 | AC9: 319.8544099 | AD9: 0.05 | AF9: =IF(PRICING[[#This Row],[SKU]]=J8,AF8+1,1) -> 1
A10: Envu | B10: A | C10: G | D10: NST | E10: F | F10: X | G10: NOW | J10: D00000623 | K10: Castlon™ | L10: 1 gal | M10: 2748.2 | N10: 2610.79 | O10: 137.41 | P10: 5-9 | Q10: $525.00 | R10: 2085.79 | S10: 2824.46 | T10: 2683.24 | U10: 2158.24 | V10: 2767.44 | W10: 2629.07 | X10: 2104.07 | Y10: 128 | Z10: 0.36 | AA10: 15.6816 | AB10: 5.866284375 | AC10: 255.5353474 | AD10: 0.2410341314 | AF10: =IF(PRICING[[#This Row],[SKU]]=J9,AF9+1,1) -> 2
A11: Envu | B11: A | C11: G | D11: NST | E11: F | F11: X | G11: NOW | J11: D00000623 | K11: Castlon™ | L11: 1 gal | M11: 2748.2 | N11: $2,610.79 | O11: $137.41 | P11: 10+ | Q11: $585.00 | R11: 2025.79 | S11: 2824.46 | T11: 2683.24 | U11: 2098.24 | V11: 2767.44 | W11: 2629.07 | X11: 2044.07 | Y11: 128 | Z11: 0.36 | AA11: 15.6816 | AB11: 5.697534375 | AC11: 248.1845974 | AD11: 0.2628666036 | AF11: =IF(PRICING[[#This Row],[SKU]]=J10,AF10+1,1) -> 3
A12: Envu | B12: A | C12: G | D12: NST | E12: F | F12: X | G12: EOP | J12: D00000624 | K12: Castlon™ | L12: 16 oz | M12: 428 | N12: $406.60 | O12: $21.40 | R12: 406.6 | Y12: 16 | Z12: 0.36 | AA12: 15.6816 | AB12: 9.1485 | AC12: 398.50866 | AD12: 0.05 | AF12: =IF(PRICING[[#This Row],[SKU]]=J11,AF11+1,1) -> 1
A13: Envu | B13: A | C13: G | D13: NST | E13: F | F13: X | G13: EOP | J13: D00000624 | K13: Castlon™ | L13: 16 oz | M13: 428 | N13: $406.60 | O13: $21.40 | P13: 4+ | Q13: $50.00 | R13: 356.6 | Y13: 16 | Z13: 0.36 | AA13: 15.6816 | AB13: 8.0235 | AC13: 349.50366 | AD13: 0.1668224299 | AF13: =IF(PRICING[[#This Row],[SKU]]=J12,AF12+1,1) -> 2
A14: Envu | B14: A | C14: GL | D14: NST | E14: F | F14: X | G14: EOP | J14: D00000624 | K14: Castlon™ | L14: 16 oz | M14: 428 | N14: $406.60 | O14: $21.40 | P14: 8+ | Q14: $105.00 | R14: 301.6 | Y14: 16 | Z14: 0.36 | AA14: 15.6816 | AB14: 6.786 | AC14: 295.59816 | AD14: 0.2953271028 | AF14: =IF(PRICING[[#This Row],[SKU]]=J13,AF13+1,1) -> 3
A15: Envu | B15: A | C15: G | D15: NST | E15: F | F15: X | G15: NOW | H15: 87276341 | J15: D00000914 | K15: Chipco® Signature™ | L15: 11 lb | M15: 404.8 | N15: 384.56 | O15: 20.24 | Q15: 0 | R15: 384.56 | S15: 416.03 | T15: 395.23 | U15: 395.23 | V15: 407.64 | W15: 387.25 | X15: 387.25 | Y15: 10 | Z15: 4 | AA15: 174.24 | AB15: 153.824 | AC15: 6700.57344 | AD15: 0.05 | AF15: =IF(PRICING[[#This Row],[SKU]]=J14,AF14+1,1) -> 1
A16: Envu | B16: A | C16: G | D16: NST | E16: F | F16: X | G16: NOW | H16: 87276341 | J16: D00000914 | K16: Chipco® Signature™ | L16: 11 lb | M16: 404.8 | N16: 384.56 | O16: 20.24 | P16: 9+ | Q16: $5.00 | R16: 379.56 | S16: 416.03 | T16: 395.23 | U16: 390.23 | V16: 407.64 | W16: 387.25 | X16: 382.25 | Y16: 10 | Z16: 4 | AA16: 174.24 | AB16: 151.824 | AC16: 6613.45344 | AD16: 0.06235177866 | AF16: =IF(PRICING[[#This Row],[SKU]]=J15,AF15+1,1) -> 2
A17: Envu | B17: A | C17: G | D17: NST | E17: F | F17: X | G17: NOW | H17: 87348709 | I17: D00000926 | J17: D00001373 | K17: Densicor® | L17: 51 oz | M17: 702.8 | N17: 667.66 | O17: 35.14 | R17: 667.66 | S17: NA | T17: NA | U17: NA | V17: 707.72 | W17: 672.33 | X17: 672.33 | Y17: 51 | Z17: 0.196 | AA17: 8.53776 | AB17: 2.56590902 | AC17: 111.7709969 | AD17: 0.05 | AF17: =IF(PRICING[[#This Row],[SKU]]=J16,AF16+1,1) -> 1
A18: Envu | B18: A | C18: G | D18: NST | E18: F | F18: X | G18: NOW | H18: 87348709 | I18: D00000926 | J18: D00001373 | K18: Densicor® | L18: 51 oz | M18: 702.8 | N18: 667.66 | O18: 35.14 | P18: 3+ | Q18: $100.00 | R18: 567.66 | S18: NA | T18: NA | U18: NA | V18: 707.72 | W18: 672.33 | X18: 572.33 | Y18: 51 | Z18: 0.196 | AA18: 8.53776 | AB18: 2.181595294 | AC18: 95.03029101 | AD18: 0.1922879909 | AF18: =IF(PRICING[[#This Row],[SKU]]=J17,AF17+1,1) -> 2
A19: Envu | B19: A | C19: G | D19: NST | E19: F | F19: X | G19: EOP | H19: 85771248 | I19: D00000934 | J19: D00000934 | K19: Exteris® Stressgard® | L19: 2.5 gal | M19: 370 | N19: $370.00 | O19: 0 | R19: 370 | Y19: 320 | Z19: 4 | AA19: 174.24 | AB19: 4.625 | AC19: 201.465 | AD19: 0 | AF19: =IF(PRICING[[#This Row],[SKU]]=J18,AF18+1,1) -> 1
A20: Envu | B20: A | C20: G | D20: NST | E20: F | F20: X | G20: EOP | H20: 85771248 | I20: D00000934 | J20: D00000934 | K20: Exteris® Stressgard® | L20: 2.5 gal | M20: 370 | N20: $370.00 | O20: 0 | P20: 6+ | Q20: $45.00 | R20: 325 | Y20: 320 | Z20: 4 | AA20: 174.24 | AB20: 4.0625 | AC20: 176.9625 | AD20: 0.1216216216 | AF20: =IF(PRICING[[#This Row],[SKU]]=J19,AF19+1,1) -> 2
A21: FMC | B21: A | C21: G | D21: NST | E21: F | G21: EOP | J21: 11008377 | K21: Fame® +C Fungicide | L21: 2.5 gal | M21: 575.4 | N21: 575.4 | O21: 0 | R21: 575.4 | Y21: 320 | Z21: 4 | AA21: 174.24 | AB21: 7.1925 | AC21: 313.3053 | AD21: 0 | AF21: =IF(PRICING[[#This Row],[SKU]]=J20,AF20+1,1) -> 1
A22: FMC | B22: A | C22: GL | D22: NST | E22: F | F22: X | G22: NOW | J22: 11008557 | K22: Fame® SC Fungicide | L22: 64 oz | M22: 1549.45 | N22: 1471.98 | O22: 77.47 | R22: 1471.98 | S22: 1592.45 | T22: 1512.83 | U22: 1512.83 | V22: 1560.3 | W22: 1482.28 | X22: 1482.28 | Y22: 64 | Z22: 0.36 | AA22: 15.6816 | AB22: 8.2798875 | AC22: 360.6718995 | AD22: 0.04999838652 | AF22: =IF(PRICING[[#This Row],[SKU]]=J21,AF21+1,1) -> 1
A23: FMC | B23: A | C23: GL | D23: NST | E23: F | F23: X | G23: NOW | J23: 11008557 | K23: Fame® SC Fungicide | L23: 64 oz | M23: 1549.45 | N23: 1471.98 | O23: 77.47 | P23: 4+ | Q23: $410.00 | R23: 1061.98 | S23: 1592.45 | T23: 1512.83 | U23: 1102.83 | V23: 1560.3 | W23: 1482.28 | X23: 1072.28 | Y23: 64 | Z23: 0.36 | AA23: 15.6816 | AB23: 5.9736375 | AC23: 260.2116495 | AD23: 0.3146084094 | AF23: =IF(PRICING[[#This Row],[SKU]]=J22,AF22+1,1) -> 2
A24: FMC | B24: A | C24: GL | D24: NST | E24: F | F24: X | G24: NOW | J24: 11009500 | K24: Fame® SC Fungicide | L24: 2.5 gal | M24: 6863.6 | N24: 6520.42 | O24: 343.18 | R24: 6520.42 | S24: 7054.06 | T24: 6701.36 | U24: 6701.36 | V24: 6911.64 | W24: 6566.06 | X24: 6566.06 | Y24: 320 | Z24: 0.36 | AA24: 15.6816 | AB24: 7.3354725 | AC24: 319.5331821 | AD24: 0.05 | AF24: =IF(PRICING[[#This Row],[SKU]]=J23,AF23+1,1) -> 1
A25: FMC | B25: A | C25: GL | D25: NST | E25: F | F25: X | G25: NOW | J25: 11009500 | K25: Fame® SC Fungicide | L25: 2.5 gal | M25: $6,863.60 | N25: $6,520.42 | O25: $343.18 | P25: 2-3 | Q25: $1,450.00 | R25: 5070.42 | S25: 7054.06 | T25: 6701.36 | U25: 5251.36 | V25: 6911.64 | W25: 6566.06 | X25: 5116.06 | Y25: 320 | Z25: 0.36 | AA25: 15.6816 | AB25: 5.7042225 | AC25: 248.4759321 | AD25: 0.2612593974 | AF25: =IF(PRICING[[#This Row],[SKU]]=J24,AF24+1,1) -> 2
A26: FMC | B26: A | C26: GL | D26: NST | E26: F | F26: X | G26: NOW | J26: 11009500 | K26: Fame® SC Fungicide | L26: 2.5 gal | M26: $6,863.60 | N26: $6,520.42 | O26: $343.18 | P26: 4+ | Q26: $1,600.00 | R26: 4920.42 | S26: 7054.06 | T26: 6701.36 | U26: 5101.36 | V26: 6911.64 | W26: 6566.06 | X26: 4966.06 | Y26: 320 | Z26: 0.36 | AA26: 15.6816 | AB26: 5.5354725 | AC26: 241.1251821 | AD26: 0.2831138178 | AF26: =IF(PRICING[[#This Row],[SKU]]=J25,AF25+1,1) -> 3
A27: FMC | B27: A | C27: G | D27: NST | E27: F | F27: X | G27: EOP | J27: 11008393 | K27: Fame® SC Fungicide | L27: 16 oz | M27: $428.00 | N27: $406.60 | O27: $21.40 | R27: 406.6 | Y27: 16 | Z27: 0.36 | AA27: 15.6816 | AB27: 9.1485 | AC27: 398.50866 | AD27: 0.05 | AF27: =IF(PRICING[[#This Row],[SKU]]=J26,AF26+1,1) -> 1
A28: FMC | B28: TT | C28: G | D28: NST | E28: F | F28: X | G28: EOP | J28: 11008393 | K28: Fame® SC Fungicide | L28: 16 oz | M28: $428.00 | N28: $406.60 | O28: $21.40 | P28: 4+ | Q28: $50.00 | R28: 356.6 | Y28: 16 | Z28: 0.36 | AA28: 15.6816 | AB28: 8.0235 | AC28: 349.50366 | AD28: 0.1668224299 | AF28: =IF(PRICING[[#This Row],[SKU]]=J27,AF27+1,1) -> 2
A29: FMC | B29: TT | C29: G | D29: NST | E29: F | F29: X | G29: EOP | J29: 11008393 | K29: Fame® SC Fungicide | L29: 16 oz | M29: 428 | N29: 406.6 | O29: 21.4 | P29: 8+ | Q29: $105.00 | R29: 301.6 | Y29: 16 | Z29: 0.36 | AA29: 15.6816 | AB29: 6.786 | AC29: 295.59816 | AD29: 0.2953271028 | AF29: =IF(PRICING[[#This Row],[SKU]]=J28,AF28+1,1) -> 3
A30: Envu | B30: A | C30: G | D30: NST | E30: F | F30: X | G30: EOP | H30: 80910932 | J30: D00000935 | K30: Fiata® Stressgard® | L30: 2.5 gal | M30: $192.00 | N30: $192.00 | O30: $0.00 | R30: 192 | Y30: 320 | Z30: 3 | AA30: 130.68 | AB30: 1.8 | AC30: 78.408 | AD30: 0 | AF30: =IF(PRICING[[#This Row],[SKU]]=J29,AF29+1,1) -> 1
A31: Envu | B31: A | C31: G | D31: NST | E31: F | F31: X | G31: EOP | H31: 80910932 | J31: D00000935 | K31: Fiata® Stressgard® | L31: 2.5 gal | M31: $192.00 | N31: $192.00 | O31: $0.00 | P31: 16+ | Q31: $10.00 | R31: 182 | Y31: 320 | Z31: 3 | AA31: 130.68 | AB31: 1.70625 | AC31: 74.32425 | AD31: 0.05208333333 | AF31: =IF(PRICING[[#This Row],[SKU]]=J30,AF30+1,1) -> 2
A32: Envu | B32: A | C32: G | D32: NST | E32: F | F32: X | G32: NOW | H32: 84411426 | I32: D00000940 | J32: D00001379 | K32: Indemnify® | L32: 17.1 fl oz | M32: 1963.6 | N32: 1865.42 | O32: 98.18 | R32: 1865.42 | S32: 2018.09 | T32: 1917.19 | U32: 1917.19 | V32: 1977.34 | W32: 1878.48 | X32: 1878.48 | Y32: 17.1 | Z32: 0.39 | AA32: 16.9884 | AB32: 42.54466667 | AC32: 1853.24568 | AD32: 0.05 | AF32: =IF(PRICING[[#This Row],[SKU]]=J31,AF31+1,1) -> 1
A33: Envu | B33: A | C33: G | D33: NST | E33: F | F33: X | G33: NOW | H33: 84411426 | I33: D00000940 | J33: D00001379 | K33: Indemnify® | L33: 17.1 fl oz | M33: $1,963.60 | N33: $1,865.42 | O33: $98.18 | P33: 3-5 | Q33: $185.00 | R33: 1680.42 | S33: 2018.09 | T33: 1917.19 | U33: 1732.19 | V33: 1977.34 | W33: 1878.48 | X33: 1693.48 | Y33: 17.1 | Z33: 0.39 | AA33: 16.9884 | AB33: 38.32536842 | AC33: 1669.453048 | AD33: 0.1442147077 | AF33: =IF(PRICING[[#This Row],[SKU]]=J32,AF32+1,1) -> 2
A34: Envu | B34: A | C34: G | D34: NST | E34: F | F34: X | G34: NOW | H34: 84411426 | I34: D00000940 | J34: D00001379 | K34: Indemnify® | L34: 17.1 fl oz | M34: $1,963.60 | N34: $1,865.42 | O34: $98.18 | P34: 6+ | Q34: $410.00 | R34: 1455.42 | S34: 2018.09 | T34: 1917.19 | U34: 1507.19 | V34: 1977.34 | W34: 1878.48 | X34: 1468.48 | Y34: 17.1 | Z34: 0.39 | AA34: 16.9884 | AB34: 33.19378947 | AC34: 1445.921469 | AD34: 0.258800163 | AF34: =IF(PRICING[[#This Row],[SKU]]=J33,AF33+1,1) -> 3
A35: Envu | B35: A | C35: G | D35: NST | E35: F | F35: X | G35: NOW | J35: 81701245 | K35: Interface® Stressgard® | L35: 2.5 gal | M35: $573.00 | N35: $544.35 | O35: $28.65 | R35: 544.35 | S35: 588.9 | T35: 559.46 | U35: 559.46 | V35: 577 | W35: 548.16 | X35: 548.16 | Y35: 320 | Z35: 4 | AA35: 174.24 | AB35: 6.804375 | AC35: 296.398575 | AD35: 0.05 | AF35: =IF(PRICING[[#This Row],[SKU]]=J34,AF34+1,1) -> 1
A36: Envu | B36: A | C36: G | D36: NST | E36: F | F36: X | G36: NOW | J36: 81701245 | K36: Interface® Stressgard® | L36: 2.5 gal | M36: $573.00 | N36: $544.35 | O36: $28.65 | P36: 6+ | Q36: $90.00 | R36: 454.35 | S36: 588.9 | T36: 559.46 | U36: 469.46 | V36: 577 | W36: 548.16 | X36: 458.16 | Y36: 320 | Z36: 4 | AA36: 174.24 | AB36: 5.679375 | AC36: 247.393575 | AD36: 0.2070680628 | AF36: =IF(PRICING[[#This Row],[SKU]]=J35,AF35+1,1) -> 2
A37: FMC | B37: A | C37: G | D37: NST | E37: F | F37: X | G37: EOP | J37: 11013671 | K37: Kalida® Fungicide | L37: 64 oz | M37: $866.40 | N37: $866.40 | O37: $0.00 | R37: 866.4 | Y37: 64 | Z37: 0.4 | AA37: 17.424 | AB37: 5.415 | AC37: 235.8774 | AD37: 0 | AF37: =IF(PRICING[[#This Row],[SKU]]=J36,AF36+1,1) -> 1
A38: FMC | B38: A | C38: G | D38: NST | E38: F | F38: X | G38: EOP | J38: 11013671 | K38: Kalida® Fungicide | L38: 64 oz | M38: $866.40 | N38: $866.40 | O38: 0 | P38: 4+ | Q38: $295.00 | R38: 571.4 | Y38: 64 | Z38: 0.4 | AA38: 17.424 | AB38: 3.57125 | AC38: 155.56365 | AD38: 0.3404893813 | AF38: =IF(PRICING[[#This Row],[SKU]]=J37,AF37+1,1) -> 2
A39: Envu | B39: A | C39: G | D39: NST | E39: F | F39: X | G39: NOW | H39: 80973942 | J39: D00000965 | K39: Mirage® Stressgard® | L39: 2.5 gal | M39: 493 | N39: $493.00 | O39: 0 | R39: 493 | S39: 506.68 | T39: 506.68 | U39: 506.68 | V39: 496.45 | W39: 496.45 | X39: 496.45 | Y39: 320 | Z39: 1 | AA39: 43.56 | AB39: 1.540625 | AC39: 67.109625 | AD39: 0 | AF39: =IF(PRICING[[#This Row],[SKU]]=J38,AF38+1,1) -> 1
A40: Envu | B40: A | C40: G | D40: NST | E40: F | F40: X | G40: NOW | H40: 80973942 | J40: D00000965 | K40: Mirage® Stressgard® | L40: 2.5 gal | M40: 493 | N40: $493.00 | O40: 0 | P40: 4+ | Q40: $90.00 | R40: 403 | S40: 506.68 | T40: 506.68 | U40: 416.68 | V40: 496.45 | W40: 496.45 | X40: 406.45 | Y40: 320 | Z40: 1 | AA40: 43.56 | AB40: 1.259375 | AC40: 54.858375 | AD40: 0.1825557809 | AF40: =IF(PRICING[[#This Row],[SKU]]=J39,AF39+1,1) -> 2
A41: FMC | B41: A | C41: G | D41: NST | E41: F | F41: X | G41: NOW | J41: 11003880 | K41: Rayora® Fungicide | L41: 2.5 gal | M41: 631.4 | N41: 631.4 | O41: 0 | R41: 631.4 | S41: 648.92 | T41: 648.92 | U41: 648.92 | V41: 635.82 | W41: 635.82 | X41: 635.82 | Y41: 320 | Z41: 1.22 | AA41: 53.1432 | AB41: 2.4072125 | AC41: 104.8581765 | AD41: 0 | AF41: =IF(PRICING[[#This Row],[SKU]]=J40,AF40+1,1) -> 1
A42: FMC | B42: A | C42: G | D42: NST | E42: F | F42: X | G42: NOW | J42: 11003880 | K42: Rayora® Fungicide | L42: 2.5 gal | M42: 631.4 | N42: $631.40 | O42: 0 | P42: 6+ | Q42: $160.00 | R42: 471.4 | S42: 648.92 | T42: 648.92 | U42: 488.92 | V42: 635.82 | W42: 635.82 | X42: 475.82 | Y42: 320 | Z42: 1.22 | AA42: 53.1432 | AB42: 1.7972125 | AC42: 78.2865765 | AD42: 0.2534051315 | AF42: =IF(PRICING[[#This Row],[SKU]]=J41,AF41+1,1) -> 2
A43: Envu | B43: A | C43: G | D43: NST | E43: F | F43: X | G43: NOW | J43: D00000125 | K43: Resilia™ | L43: 2.72 gal | M43: 946.56 | N43: $946.56 | O43: 0 | R43: 946.56 | S43: NA | T43: NA | U43: NA | V43: 953.2 | W43: 953.2 | X43: 953.2 | Y43: 348.16 | Z43: 4 | AA43: 174.24 | AB43: 10.875 | AC43: 473.715 | AD43: 0 | AF43: =IF(PRICING[[#This Row],[SKU]]=J42,AF42+1,1) -> 1
A44: Envu | B44: A | C44: G | D44: NST | E44: F | F44: X | G44: NOW | J44: D00000125 | K44: Resilia™ | L44: 2.72 gal | M44: 946.56 | N44: $946.56 | O44: 0 | P44: 4-14 | Q44: $65.00 | R44: 881.56 | S44: NA | T44: NA | U44: NA | V44: 953.2 | W44: 953.2 | X44: 888.2 | Y44: 348.16 | Z44: 4 | AA44: 174.24 | AB44: 10.12821691 | AC44: 441.1851287 | AD44: 0.06866970926 | AF44: =IF(PRICING[[#This Row],[SKU]]=J43,AF43+1,1) -> 2
A45: Envu | B45: A | C45: G | D45: NST | E45: F | F45: X | G45: NOW | J45: D00000125 | K45: Resilia™ | L45: 2.72 gal | M45: 946.56 | N45: $946.56 | O45: 0 | P45: 15+ | Q45: $180.00 | R45: 766.56 | S45: NA | T45: NA | U45: NA | V45: 953.2 | W45: 953.2 | X45: 773.2 | Y45: 348.16 | Z45: 4 | AA45: 174.24 | AB45: 8.806985294 | AC45: 383.6322794 | AD45: 0.1901622718 | AF45: =IF(PRICING[[#This Row],[SKU]]=J44,AF44+1,1) -> 3
A46: FMC | B46: A | C46: G | D46: NST | E46: F | F46: X | G46: NOW | J46: 11014245 | K46: Serata® Fungicide | L46: 35 oz | M46: 499.8 | N46: 474.81 | O46: 24.99 | R46: 474.81 | S46: 513.67 | T46: 487.99 | U46: 487.99 | V46: 503.3 | W46: 478.13 | X46: 478.13 | Y46: 35 | Z46: 0.6 | AA46: 26.136 | AB46: 8.1396 | AC46: 354.560976 | AD46: 0.05 | AF46: =IF(PRICING[[#This Row],[SKU]]=J45,AF45+1,1) -> 1
A47: FMC | B47: A | C47: G | D47: NST | E47: F | F47: X | G47: NOW | J47: 11014245 | K47: Serata® Fungicide | L47: 35 oz | M47: 499.8 | N47: 474.81 | O47: 24.99 | P47: 8+ | Q47: $15.00 | R47: 459.81 | S47: 513.67 | T47: 487.99 | U47: 472.99 | V47: 503.3 | W47: 478.13 | X47: 463.13 | Y47: 35 | Z47: 0.6 | AA47: 26.136 | AB47: 7.882457143 | AC47: 343.3598331 | AD47: 0.0800120048 | AF47: =IF(PRICING[[#This Row],[SKU]]=J46,AF46+1,1) -> 2
A48: Envu | B48: A | C48: G | D48: NST | E48: F | F48: X | G48: NOW | H48: 85355422 | J48: D00000989 | K48: Signature™ XTRA Stressgard® | L48: 5.5 lb | M48: 210.4 | N48: 199.88 | O48: 10.52 | R48: 199.88 | S48: 216.24 | T48: 205.43 | U48: 205.43 | V48: 211.88 | W48: 201.28 | X48: 201.28 | Y48: 88 | Z48: 4 | AA48: 174.24 | AB48: 9.085454545 | AC48: 395.7624 | AD48: 0.05 | AF48: =IF(PRICING[[#This Row],[SKU]]=J47,AF47+1,1) -> 1
A49: Envu | B49: A | C49: G | D49: NST | E49: F | F49: X | G49: NOW | H49: 85355422 | J49: D00000989 | K49: Signature™ XTRA Stressgard® | L49: 5.5 lb | M49: 210.4 | N49: 199.88 | O49: 10.52 | P49: 24+ | Q49: $15.00 | R49: 184.88 | S49: 216.24 | T49: 205.43 | U49: 190.43 | V49: 211.88 | W49: 201.28 | X49: 186.28 | Y49: 88 | Z49: 4 | AA49: 174.24 | AB49: 8.403636364 | AC49: 366.0624 | AD49: 0.1212927757 | AF49: =IF(PRICING[[#This Row],[SKU]]=J48,AF48+1,1) -> 2
A50: Envu | B50: A | C50: G | D50: NST | E50: F | F50: X | G50: EOP | H50: 81760942 | J50: D00000998 | K50: Tartan® Stressgard® | L50: 2.5 gal | M50: 1033 | N50: $981.35 | O50: $51.65 | Q50: 0 | R50: 981.35 | Y50: 320 | Z50: 1.5 | AA50: 65.34 | AB50: 4.600078125 | AC50: 200.3794031 | AD50: 0.05
A51: Envu | B51: A | C51: G | D51: NST | E51: F | F51: X | G51: EOP | H51: 81760942 | J51: D00000998 | K51: Tartan® Stressgard® | L51: 2.5 gal | M51: 940 | N51: $893.00 | O51: $47.00 | P51: 6+ | Q51: $5.00 | R51: 888 | Y51: 320 | Z51: 1.5 | AA51: 65.34 | AB51: 4.1625 | AC51: 181.3185 | AD51: 0.05531914894
A52: FMC | B52: A | C52: G | D52: NST | E52: F | F52: X | G52: EOP | J52: 11015981 | K52: Tarvecta | L52: 2.5 gal | M52: 3360 | N52: $3,360.00 | O52: 0 | R52: 3360 | Y52: 320 | Z52: 0.7 | AA52: 30.492 | AB52: 7.35 | AC52: 320.166 | AD52: 0
A53: FMC | B53: A | C53: G | D53: NST | E53: F | F53: X | G53: EOP | J53: 11015981 | K53: Tarvecta | L53: 2.5 gal | M53: 3360 | N53: $3,360.00 | O53: 0 | P53: 3+ | Q53: $400.00 | R53: 2960 | Y53: 320 | Z53: 0.7 | AA53: 30.492 | AB53: 6.475 | AC53: 282.051 | AD53: 0.119047619
A54: FMC | B54: A | C54: G | D54: NST | E54: F | F54: X | G54: EOP | J54: 11015990 | K54: Tarvecta | L54: 64 oz | M54: 772.8 | N54: $772.80 | O54: 0 | R54: 772.8 | Y54: 64 | Z54: 0.7 | AA54: 30.492 | AB54: 8.4525 | AC54: 368.1909 | AD54: 0
A55: FMC | B55: A | C55: G | D55: NST | E55: F | F55: X | G55: EOP | J55: 11015990 | K55: Tarvecta | L55: 64 oz | M55: 772.8 | N55: $772.80 | O55: 0 | P55: 4+ | Q55: $145.00 | R55: 627.8 | Y55: 64 | Z55: 0.7 | AA55: 30.492 | AB55: 6.8665625 | AC55: 299.1074625 | AD55: 0.1876293996
A56: Envu | B56: TT | C56: GL | D56: NST | E56: H | G56: EOP | J56: D00000665 | K56: Acclaim Accelerate | L56: 0.5 gal | M56: 55.55 | N56: 55.55 | O56: 0 | P56: 150 gal* | Q56: $7.50 | R56: 48.05 | Y56: 64 | Z56: 1.469237833 | AA56: 64 | AB56: 1.103076217 | AC56: 48.05 | AD56: 0.1350135014 | AF56: =IF(PRICING[[#This Row],[SKU]]=J55,AF55+1,1) -> 1
A57: Envu | B57: TT | C57: GL | D57: NST | E57: H | G57: EOP | J57: D00000666 | K57: Acclaim Accelerate | L57: 2.5 gal | M57: 267.65 | N57: 267.65 | O57: 0 | P57: 150 gal* | Q57: $37.50 | R57: 230.15 | Y57: 320 | Z57: 1.469237833 | AA57: 64 | AB57: 1.056703398 | AC57: 46.03 | AD57: 0.1401083505 | AF57: =IF(PRICING[[#This Row],[SKU]]=J56,AF56+1,1) -> 1
A58: Envu | B58: TT | C58: GL | D58: N | E58: H | G58: EOP | J58: 87300722 | K58: Acclaim Extra | L58: 1 gal | M58: 798.24 | N58: 798.24 | O58: 0 | Q58: $90.00 | R58: 708.24 | Y58: 128 | Z58: 0.4591368228 | AA58: 20 | AB58: 2.540461433 | AC58: 110.6625 | AD58: 0.1127480457 | AF58: =IF(PRICING[[#This Row],[SKU]]=J57,AF57+1,1) -> 1
A59: Envu | B59: TT | C59: GL | D59: ST | E59: H | G59: EOP | J59: 11008351 | K59: Blindside® Herbicide | L59: 0.5 lb | M59: 166.86 | N59: 166.86 | O59: 0 | Q59: $22.00 | R59: 144.86 | Y59: 8 | Z59: 0.1492194674 | AA59: 6.5 | AB59: 2.701991506 | AC59: 117.69875 | AD59: 0.1318470574 | AF59: =IF(PRICING[[#This Row],[SKU]]=J58,AF58+1,1) -> 1
A60: Envu | B60: A | C60: GL | D60: ST | E60: H | F60: X | G60: NOW | J60: 79714858 | K60: Celsius® WG | L60: 10 oz | M60: 131.2 | N60: $124.64 | O60: $6.56 | R60: 124.64 | S60: 134.84 | T60: 128.1 | U60: 128.1 | V60: 132.12 | W60: 125.51 | X60: 125.51 | Y60: 10 | Z60: 0.08494031221 | AA60: 3.7 | AB60: 1.058696051 | AC60: 46.1168 | AD60: 0.05 | AF60: =IF(PRICING[[#This Row],[SKU]]=J59,AF59+1,1) -> 1
A61: Envu | B61: A | C61: GL | D61: ST | E61: H | F61: X | G61: NOW | J61: 79714858 | K61: Celsius® WG | L61: 10 oz | M61: 131.2 | N61: $124.64 | O61: $6.56 | P61: 48+ | Q61: $12.00 | R61: 112.64 | S61: 134.84 | T61: 128.1 | U61: 116.1 | V61: 132.12 | W61: 125.51 | X61: 113.51 | Y61: 10 | Z61: 0.08494031221 | AA61: 3.7 | AB61: 0.9567676768 | AC61: 41.6768 | AD61: 0.1414634146 | AF61: =IF(PRICING[[#This Row],[SKU]]=J60,AF60+1,1) -> 2
A62: Envu | B62: A | C62: L | E62: H | G62: LL/SLP/NOW | J62: 79714858 | K62: Celsius® WG | L62: 10 oz | M62: 131.2 | N62: $124.64 | O62: $6.56 | P62: 96+ | Q62: $24.00 | R62: 100.64 | S62: 134.84 | T62: 128.1 | U62: 104.1 | V62: 132.12 | W62: 125.51 | X62: 101.51 | Y62: 10 | Z62: 0.08494031221 | AA62: 3.7 | AB62: 0.8548393021 | AC62: 37.2368 | AD62: 0.2329268293 | AF62: =IF(PRICING[[#This Row],[SKU]]=J61,AF61+1,1) -> 3
A63: Envu | B63: A | C63: GL | D63: ST | E63: H | F63: X | G63: NOW | H63: 86773201 | J63: D00000911 | K63: Celsius® XTRA | L63: 10 oz | M63: 166.4 | N63: $158.08 | O63: $8.32 | R63: 158.08 | S63: NA | T63: NA | U63: NA | V63: 167.56 | W63: 159.19 | X63: 159.19 | Y63: 10 | Z63: 0.1721763085 | AA63: 7.5 | AB63: 2.721763085 | AC63: 118.56 | AD63: 0.05 | AF63: =IF(PRICING[[#This Row],[SKU]]=J62,AF62+1,1) -> 1
A64: Envu | B64: A | C64: GL | D64: ST | E64: H | F64: X | G64: NOW | H64: 86773201 | J64: D00000911 | K64: Celsius® XTRA | L64: 10 oz | M64: 166.4 | N64: 158.08 | O64: 8.32 | P64: 16+ | Q64: $12.00 | R64: 146.08 | S64: NA | T64: NA | U64: NA | V64: 167.56 | W64: 159.19 | X64: 147.19 | Y64: 10 | Z64: 0.1721763085 | AA64: 7.5 | AB64: 2.515151515 | AC64: 109.56 | AD64: 0.1221153846 | AF64: =IF(PRICING[[#This Row],[SKU]]=J63,AF63+1,1) -> 2
A65: Envu | B65: A | C65: L | E65: H | G65: LL/SLP/NOW | H65: 86773201 | J65: D00000911 | K65: Celsius® XTRA | L65: 10 oz | M65: 166.4 | N65: $158.08 | O65: $8.32 | P65: 32+ | Q65: $24.00 | R65: 134.08 | S65: NA | T65: NA | U65: NA | V65: 167.56 | W65: 159.19 | X65: 135.19 | Y65: 10 | Z65: 0.1721763085 | AA65: 7.5 | AB65: 2.308539945 | AC65: 100.56 | AD65: 0.1942307692 | AF65: =IF(PRICING[[#This Row],[SKU]]=J64,AF64+1,1) -> 3
A66: FMC | B66: TT | C66: GL | D66: ST | E66: H | G66: EOP | J66: 11008357 | K66: Dismiss® CA Herbicide | L66: 6 oz | M66: 81.78 | N66: $81.78 | O66: 0 | Q66: $14.00 | R66: 67.78 | Y66: 6 | Z66: 0 | AA66: 0 | AB66: 0 | AC66: 0 | AD66: 0.1711910002 | AF66: =IF(PRICING[[#This Row],[SKU]]=J65,AF65+1,1) -> 1
A67: FMC | B67: A | C67: GLO | D67: NST | E67: H | G67: EOP | J67: 11008409 | K67: Dismiss® NXT Herbicide | L67: 10 oz | M67: 94.8 | N67: $94.80 | O67: 0 | Q67: $11.00 | R67: 83.8 | Y67: 10 | Z67: 0.2341597796 | AA67: 10.2 | AB67: 1.962258953 | AC67: 85.476 | AD67: 0.1160337553 | AF67: =IF(PRICING[[#This Row],[SKU]]=J66,AF66+1,1) -> 1
A68: FMC | B68: A | C68: GLO | D68: NST | E68: H | F68: X | G68: EOP | J68: 11008589 | K68: Dismiss® NXT Herbicide | L68: 60 oz | M68: 504.8 | N68: $479.56 | O68: $25.24 | R68: 479.56 | Y68: 60 | Z68: 0.2341597796 | AA68: 10.2 | AB68: 1.871561065 | AC68: 81.5252 | AD68: 0.05 | AF68: =IF(PRICING[[#This Row],[SKU]]=J67,AF67+1,1) -> 1
A69: FMC | B69: A | C69: GLO | D69: NST | E69: H | F69: X | G69: EOP | J69: 11008589 | K69: Dismiss® NXT Herbicide | L69: 60 oz | M69: 504.8 | N69: $479.56 | O69: $25.24 | P69: 16+ | Q69: $60.00 | R69: 419.56 | Y69: 60 | Z69: 0.2341597796 | AA69: 10.2 | AB69: 1.637401286 | AC69: 71.3252 | AD69: 0.168858954 | AF69: =IF(PRICING[[#This Row],[SKU]]=J68,AF68+1,1) -> 2
A70: FMC | B70: A | C70: L | E70: H | G70: LL/SLP/EOP | J70: 11008589 | K70: Dismiss® NXT Herbicide | L70: 60 oz | M70: 504.8 | N70: $479.56 | O70: $25.24 | P70: 32+ | Q70: $150.00 | R70: 329.56 | Y70: 60 | Z70: 0.2341597796 | AA70: 10.2 | AB70: 1.286161616 | AC70: 56.0252 | AD70: 0.3471473851 | AF70: =IF(PRICING[[#This Row],[SKU]]=J69,AF69+1,1) -> 3
A71: FMC | B71: TT | C71: GL | D71: ST | E71: H | G71: EOP | J71: 11008474 | K71: Dismiss® South Herbicide | L71: 1 pint | M71: 186.66 | N71: $186.66 | O71: 0 | Q71: $24.00 | R71: 162.66 | Y71: 16 | Z71: 0.2180899908 | AA71: 9.5 | AB71: 2.217157369 | AC71: 96.579375 | AD71: 0.1285760206 | AF71: =IF(PRICING[[#This Row],[SKU]]=J70,AF70+1,1) -> 1
A72: FMC | B72: TT | C72: GL | D72: NST | E72: H | G72: EOP/ORN | J72: 11008475 | K72: Dismiss® Turf Herbicide | L72: 6 oz | M72: 81.78 | N72: 81.78 | O72: 0 | Q72: $14.00 | R72: 67.78 | Y72: 6 | Z72: 0.1836547291 | AA72: 8 | AB72: 2.074686257 | AC72: 90.37333333 | AD72: 0.1711910002 | AF72: =IF(PRICING[[#This Row],[SKU]]=J71,AF71+1,1) -> 1
A73: FMC | B73: TT | C73: GL | D73: NST | E73: H | G73: EOP/ORN | J73: 11008336 | K73: Dismiss® Turf Herbicide | L73: 64 oz | M73: 363.6 | N73: $363.60 | O73: 0 | Q73: $40.00 | R73: 323.6 | Y73: 64 | Z73: 0.1836547291 | AA73: 8 | AB73: 0.9286042241 | AC73: 40.45 | AD73: 0.1100110011 | AF73: =IF(PRICING[[#This Row],[SKU]]=J72,AF72+1,1) -> 1
A74: FMC | B74: A | C74: GL | D74: NST | E74: H | F74: X | G74: EOP | J74: 11008464 | K74: Echelon® 4SC Herbicide | L74: 1 gal | M74: 454 | N74: $431.30 | O74: $22.70 | R74: 431.3 | Y74: 128 | Z74: 0.5509641873 | AA74: 24 | AB74: 1.856491047 | AC74: 80.86875 | AD74: 0.05 | AF74: =IF(PRICING[[#This Row],[SKU]]=J73,AF73+1,1) -> 1
A75: FMC | B75: A | C75: GL | D75: NST | E75: H | F75: X | G75: EOP | J75: 11008464 | K75: Echelon® 4SC Herbicide | L75: 1 gal | M75: $454.00 | N75: $431.30 | O75: $22.70 | P75: 16+ | Q75: $145.00 | R75: 286.3 | Y75: 128 | Z75: 0.5509641873 | AA75: 24 | AB75: 1.232351928 | AC75: 53.68125 | AD75: 0.3693832599 | AF75: =IF(PRICING[[#This Row],[SKU]]=J74,AF74+1,1) -> 2
A76: Envu | B76: A | C76: O | E76: H | G76: ORN | H76: 86729148 | J76: D00000946 | K76: Marengo FLO | L76: 64 oz | M76: $1,156.80 | N76: $1,156.80 | O76: $0.00 | P76: 1-3 | R76: 1156.8 | AD76: 0 | AF76: =IF(PRICING[[#This Row],[SKU]]=J75,AF75+1,1) -> 1
A77: Envu | B77: A | C77: O | E77: H | G77: ORN | H77: 86729148 | J77: D00000946 | K77: Marengo FLO | L77: 64 oz | M77: $1,156.80 | N77: $1,098.96 | O77: $57.84 | P77: 4-15 | R77: 1098.96 | AF77: =IF(PRICING[[#This Row],[SKU]]=J76,AF76+1,1) -> 2
A78: Envu | B78: A | C78: O | E78: H | G78: ORN | H78: 86729148 | J78: D00000946 | K78: Marengo FLO | L78: 64 oz | M78: 1156.8 | N78: 1041.12 | O78: 115.68 | P78: 16+ | R78: 1041.12 | AF78: =IF(PRICING[[#This Row],[SKU]]=J77,AF77+1,1) -> 3
A79: Envu | B79: A | C79: O | E79: H | G79: ORN | H79: 84922757 | J79: D00000945 | K79: Marengo G | L79: 50 lb | M79: $126.50 | N79: $126.50 | O79: $0.00 | P79: 1-39 | R79: 126.5 | AD79: 0 | AF79: =IF(PRICING[[#This Row],[SKU]]=J78,AF78+1,1) -> 1
A80: Envu | B80: A | C80: O | E80: H | G80: ORN | H80: 84922757 | J80: D00000945 | K80: Marengo G | L80: 50 lb | M80: $126.50 | N80: $120.18 | O80: $6.32 | P80: 40-119 | R80: 120.18 | AF80: =IF(PRICING[[#This Row],[SKU]]=J79,AF79+1,1) -> 2
A81: Envu | B81: A | C81: O | E81: H | G81: ORN | H81: 84922757 | J81: D00000945 | K81: Marengo G | L81: 50 lb | M81: $126.50 | N81: $113.85 | O81: $12.65 | P81: 120+ | R81: 113.85 | AF81: =IF(PRICING[[#This Row],[SKU]]=J80,AF80+1,1) -> 3
A82: Envu | B82: TT | C82: G | D82: NST | E82: H | G82: EOP | J82: 86215578 | K82: Prograss EC | L82: 2.5 gal | M82: 441.9 | N82: $441.90 | O82: 0 | Q82: $22.00 | R82: 419.9 | Y82: 320 | Z82: 1.951331497 | AA82: 85 | AB82: 2.560512798 | AC82: 111.5359375 | AD82: 0.04978501924 | AF82: =IF(PRICING[[#This Row],[SKU]]=J81,AF81+1,1) -> 1
A83: Envu | B83: TT | C83: G | D83: NST | E83: H | G83: EOP | H83: 04249932 | J83: D00000913 | K83: Proxy | L83: 2.5 gal | M83: 122.7 | N83: $122.70 | O83: 0 | R83: 122.7 | Y83: 320 | Z83: 5 | AA83: 217.8 | AB83: 1.9171875 | AC83: 83.5126875 | AD83: 0 | AF83: =IF(PRICING[[#This Row],[SKU]]=J82,AF82+1,1) -> 1
A84: FMC | B84: TT | C84: GL | D84: NST | E84: H | G84: EOP | J84: 11008447 | K84: QuickSilver® Herbicide | L84: 8 oz | M84: 199.92 | N84: 199.92 | O84: 0 | Q84: $20.00 | R84: 179.92 | Y84: 8 | Z84: 0.02754820937 | AA84: 1.2 | AB84: 0.6195592287 | AC84: 26.988 | AD84: 0.100040016 | AF84: =IF(PRICING[[#This Row],[SKU]]=J83,AF83+1,1) -> 1
A85: Envu | B85: A | C85: GL | D85: ST | E85: H | F85: X | G85: NOW | J85: 79545312 | K85: Revolver® | L85: 87 fl oz | M85: 765.6 | N85: $727.32 | O85: $38.28 | R85: 727.32 | S85: 786.85 | T85: 747.5 | U85: 747.5 | V85: 770.96 | W85: 732.41 | X85: 732.41 | Y85: 87 | Z85: 0.3994490358 | AA85: 17.4 | AB85: 3.339393939 | AC85: 145.464 | AD85: 0.05 | AF85: =IF(PRICING[[#This Row],[SKU]]=J84,AF84+1,1) -> 1
A86: Envu | B86: A | C86: GL | D86: ST | E86: H | F86: X | G86: NOW | J86: 79545312 | K86: Revolver® | L86: 87 fl oz | M86: 765.6 | N86: 727.32 | O86: 38.28 | P86: 16+ | Q86: $50.00 | R86: 677.32 | S86: 786.85 | T86: 747.5 | U86: 697.5 | V86: 770.96 | W86: 732.41 | X86: 682.41 | Y86: 87 | Z86: 0.3994490358 | AA86: 17.4 | AB86: 3.109825528 | AC86: 135.464 | AD86: 0.115308255 | AF86: =IF(PRICING[[#This Row],[SKU]]=J85,AF85+1,1) -> 2
A87: Envu | B87: A | C87: L | E87: H | G87: LL/SLP/NOW | J87: 79545312 | K87: Revolver® | L87: 87 fl oz | M87: 765.6 | N87: $727.32 | O87: $38.28 | P87: 32+ | Q87: $100.00 | R87: 627.32 | S87: 786.85 | T87: 747.5 | U87: 647.5 | V87: 770.96 | W87: 732.41 | X87: 632.41 | Y87: 87 | Z87: 0.3994490358 | AA87: 17.4 | AB87: 2.880257117 | AC87: 125.464 | AD87: 0.1806165099 | AF87: =IF(PRICING[[#This Row],[SKU]]=J86,AF86+1,1) -> 3
A88: Envu | B88: TT | C88: GL | D88: ST | E88: H | G88: EOP | J88: 79850980 | K88: Revolver® | L88: 32 fl oz | M88: 349.74 | N88: $349.74 | O88: 0 | Q88: $21.00 | R88: 328.74 | Y88: 32 | Z88: 0.3994490358 | AA88: 17.4 | AB88: 4.103589876 | AC88: 178.752375 | AD88: 0.06004460456 | AF88: =IF(PRICING[[#This Row],[SKU]]=J87,AF87+1,1) -> 1
A89: Envu | B89: A | C89: G | D89: ST | E89: H | G89: EOP | H89: 80847505 | J89: D00000986 | K89: Ronstar® FLO | L89: 2.5 gal | M89: 552 | N89: 552 | O89: 0 | P89: 1-11 | R89: 552 | Y89: 320 | Z89: 1.997245179 | AA89: 87 | AB89: 3.445247934 | AC89: 150.075 | AD89: 0 | AF89: =IF(PRICING[[#This Row],[SKU]]=J88,AF88+1,1) -> 1
A90: Envu | B90: A | C90: G | D90: ST | E90: H | G90: EOP | H90: 80847505 | J90: D00000986 | K90: Ronstar® FLO | L90: 2.5 gal | M90: 453 | N90: 393 | O90: 60 | P90: 12+ | R90: 393 | Y90: 320 | Z90: 1.997245179 | AA90: 87 | AB90: 2.452866736 | AC90: 106.846875 | AD90: 0.1324503311 | AF90: =IF(PRICING[[#This Row],[SKU]]=J89,AF89+1,1) -> 2
A91: Envu | B91: A | C91: G | D91: ST | E91: H | G91: EOP | H91: 80847505 | J91: D00000986 | K91: Ronstar® FLO | L91: 2.5 gal | M91: 393 | N91: 393 | O91: 0 | P91: 40+ | R91: 393 | Y91: 320 | Z91: 1.997245179 | AA91: 87 | AB91: 2.452866736 | AC91: 106.846875 | AD91: 0 | AF91: =IF(PRICING[[#This Row],[SKU]]=J90,AF90+1,1) -> 3
A92: Envu | B92: TT | C92: G | D92: ST | E92: H | G92: EOP | J92: 427709 | K92: Sencor 75 | L92: 5 lb | M92: 710.1 | N92: 710.1 | O92: 0 | R92: 710.1 | Y92: 10.6 | Z92: 0.2433425161 | AA92: 10.6 | AB92: 16.30165289 | AC92: 710.1 | AD92: 0 | AF92: =IF(PRICING[[#This Row],[SKU]]=J91,AF91+1,1) -> 1
A93: FMC | B93: A | C93: GL | D93: NST | E93: H | F93: X | G93: EOP | J93: 11008522 | K93: Solitare® Herbicide | L93: 4 lb | M93: 596.4 | N93: 566.58 | O93: 29.82 | R93: 566.58 | Y93: 64 | Z93: 0.3673094582 | AA93: 16 | AB93: 3.251721763 | AC93: 141.645 | AD93: 0.05 | AF93: =IF(PRICING[[#This Row],[SKU]]=J92,AF92+1,1) -> 1
A94: FMC | B94: A | C94: GL | D94: NST | E94: H | F94: X | G94: EOP | J94: 11008522 | K94: Solitare® Herbicide | L94: 4 lb | M94: 596.4 | N94: $566.58 | O94: $29.82 | P94: 16+ | Q94: $40.00 | R94: 526.58 | Y94: 64 | Z94: 0.3673094582 | AA94: 16 | AB94: 3.022153352 | AC94: 131.645 | AD94: 0.1170690812 | AF94: =IF(PRICING[[#This Row],[SKU]]=J93,AF93+1,1) -> 2
A95: FMC | B95: A | C95: L | E95: H | G95: LL/SLP/EOP | J95: 11008522 | K95: Solitare® Herbicide | L95: 4 lb | M95: 596.4 | N95: $566.58 | O95: $29.82 | P95: 32+ | Q95: $85.00 | R95: 481.58 | Y95: 64 | Z95: 0.3673094582 | AA95: 16 | AB95: 2.763888889 | AC95: 120.395 | AD95: 0.1925217975 | AF95: =IF(PRICING[[#This Row],[SKU]]=J94,AF94+1,1) -> 3
A96: FMC | B96: TT | C96: GL | D96: NST | E96: H | G96: EOP | J96: 11008482 | K96: Solitare® Herbicide | L96: 1 lb | M96: 197.76 | N96: $197.76 | O96: 0 | Q96: $15.00 | R96: 182.76 | Y96: 16 | Z96: 0.3673094582 | AA96: 16 | AB96: 4.195592287 | AC96: 182.76 | AD96: 0.07584951456 | AF96: =IF(PRICING[[#This Row],[SKU]]=J95,AF95+1,1) -> 1
A97: FMC | B97: A | C97: GL | D97: NST | E97: H | F97: X | G97: NOW | J97: 11013862 | K97: Solitare® WSL Herbicide | L97: 2.5 gal | M97: 262.4 | N97: $249.28 | O97: $13.12 | R97: 249.28 | S97: 269.68 | T97: 256.2 | U97: 256.2 | V97: 264.24 | W97: 251.02 | X97: 251.02 | Y97: 320 | Z97: 3.9 | AA97: 169.884 | AB97: 3.0381 | AC97: 132.339636 | AD97: 0.05 | AF97: =IF(PRICING[[#This Row],[SKU]]=J96,AF96+1,1) -> 1
A98: FMC | B98: A | C98: GL | D98: NST | E98: H | F98: X | G98: NOW | J98: 11013862 | K98: Solitare® WSL Herbicide | L98: 2.5 gal | M98: 262.4 | N98: $249.28 | O98: $13.12 | P98: 24+ | Q98: $40.00 | R98: 209.28 | S98: 269.68 | T98: 256.2 | U98: 216.2 | V98: 264.24 | W98: 251.02 | X98: 211.02 | Y98: 320 | Z98: 3.9 | AA98: 169.884 | AB98: 2.5506 | AC98: 111.104136 | AD98: 0.2024390244 | AF98: =IF(PRICING[[#This Row],[SKU]]=J97,AF97+1,1) -> 2
A99: FMC | B99: A | C99: L | E99: H | G99: LL/SLP/NOW | J99: 11013862 | K99: Solitare® WSL Herbicide | L99: 2.5 gal | M99: 262.4 | N99: $249.28 | O99: $13.12 | P99: 48+ | Q99: $85.00 | R99: 164.28 | S99: 269.68 | T99: 256.2 | U99: 171.2 | V99: 264.24 | W99: 251.02 | X99: 166.02 | Y99: 320 | Z99: 3.9 | AA99: 169.884 | AB99: 2.0021625 | AC99: 87.2141985 | AD99: 0.3739329268 | AF99: =IF(PRICING[[#This Row],[SKU]]=J98,AF98+1,1) -> 3
A100: FMC | B100: TT | C100: GL | D100: NST | E100: H | G100: EOP | J100: 11008369 | K100: Solitare® WSL Herbicide | L100: 0.75 gal | M100: 117.6 | N100: $117.60 | O100: 0 | Q100: $12.00 | R100: 105.6 | Y100: 96 | Z100: 3.9 | AA100: 169.884 | AB100: 4.29 | AC100: 186.8724 | AD100: 0.1020408163 | AF100: =IF(PRICING[[#This Row],[SKU]]=J99,AF99+1,1) -> 1
A101: Envu | B101: A | C101: GL | D101: ST | E101: H | F101: X | G101: NOW | H101: 86775387 | J101: D00000990 | K101: Specticle® FLO | L101: 1 gal | M101: 2092.8 | N101: $1,946.30 | O101: $146.50 | P101: 1-6 | R101: 1946.3 | S101: 2150.88 | T101: 2000.31 | U101: 2000.31 | V101: 2107.44 | W101: 1959.92 | X101: 1959.92 | Y101: 128 | Z101: 0.1377410468 | AA101: 6 | AB101: 2.094417183 | AC101: 91.2328125 | AD101: 0.07000191131 | AF101: =IF(PRICING[[#This Row],[SKU]]=J100,AF100+1,1) -> 1
A102: Envu | B102: A | C102: GL | D102: ST | E102: H | F102: X | G102: NOW | H102: 86775387 | J102: D00000990 | K102: Specticle® FLO | L102: 1 gal | M102: 2092.8 | N102: 1862.59 | O102: 230.21 | P102: 7-13 | Q102: $38.00 | R102: 1824.59 | S102: 2150.88 | T102: 1914.28 | U102: 1876.28 | V102: 2107.44 | W102: 1875.63 | X102: 1837.63 | Y102: 128 | Z102: 0.1377410468 | AA102: 6 | AB102: 1.963444817 | AC102: 85.52765625 | AD102: 0.128158448 | AF102: =IF(PRICING[[#This Row],[SKU]]=J101,AF101+1,1) -> 2
A103: Envu | B103: A | C103: GL | D103: ST | E103: H | F103: X | G103: NOW | H103: 86775387 | J103: D00000990 | K103: Specticle® FLO | L103: 1 gal | M103: 1796.4 | N103: 1625.74 | O103: 170.66 | P103: 14-25 | Q103: $32.00 | R103: 1593.74 | S103: 1846.25 | T103: 1670.85 | U103: 1638.85 | V103: 1808.98 | W103: 1637.12 | X103: 1605.12 | Y103: 128 | Z103: 0.1377410468 | AA103: 6 | AB103: 1.715026687 | AC103: 74.7065625 | AD103: 0.1128145179 | AF103: =IF(PRICING[[#This Row],[SKU]]=J102,AF102+1,1) -> 3
A104: Envu | B104: A | C104: L | D104: ST | E104: H | F104: X | G104: LL/SLP/NOW | H104: 86775387 | J104: D00000990 | K104: Specticle® FLO | L104: 1 gal | M104: 1796.4 | N104: $1,455.08 | O104: $341.32 | P104: 26+ | Q104: $131.00 | R104: 1324.08 | S104: 1846.25 | T104: 1495.46 | U104: 1364.46 | V104: 1808.98 | W104: 1465.27 | X104: 1334.27 | Y104: 128 | Z104: 0.1377410468 | AA104: 6 | AB104: 1.424845041 | AC104: 62.06625 | AD104: 0.2629258517
A105: Envu | B105: A | C105: L | E105: H | G105: LL/SLP/NOW | H105: 86775387 | J105: D00000990 | K105: Specticle® FLO | L105: 1 gal | M105: 1796.4 | N105: $1,455.08 | O105: $341.32 | P105: 52-99 | Q105: $218.00 | R105: 1237.08 | S105: 1846.25 | T105: 1495.46 | U105: 1277.46 | V105: 1808.98 | W105: 1465.27 | X105: 1247.27 | Y105: 128 | Z105: 0.1377410468 | AA105: 6 | AB105: 1.331224174 | AC105: 57.988125 | AD105: 0.3113560454
A106: Envu | B106: A | C106: L | E106: H | G106: LL/SLP/NOW | H106: 86775387 | J106: D00000990 | K106: Specticle® FLO | L106: 1 gal | M106: 1796.4 | N106: $1,455.08 | O106: $341.32 | P106: 100+ | Q106: $320.00 | R106: 1135.08 | S106: 1846.25 | T106: 1495.46 | U106: 1175.46 | V106: 1808.98 | W106: 1465.27 | X106: 1145.27 | Y106: 128 | Z106: 0.1377410468 | AA106: 6 | AB106: 1.221461777 | AC106: 53.206875 | AD106: 0.3681362725
A107: Envu | B107: A | C107: GL | D107: ST | E107: H | F107: X | G107: NOW | H107: 84056146 | J107: D00000992 | K107: Specticle® G | L107: 50 lb | M107: 130.5 | N107: $123.98 | O107: $6.52 | R107: 123.98 | S107: 134.12 | T107: 127.42 | U107: 127.42 | V107: 131.5 | W107: 124.85 | X107: 124.85 | Y107: 800 | Z107: 3.443526171 | AA107: 150 | AB107: 0.5336604683 | AC107: 23.24625 | AD107: 0.04996168582
A108: Envu | B108: A | C108: GL | D108: ST | E108: H | F108: X | G108: NOW | H108: 84056146 | J108: D00000992 | K108: Specticle® G | L108: 50 lb | M108: 130.5 | N108: $123.98 | O108: $6.52 | P108: 20+ | Q108: $8.00 | R108: 115.98 | S108: 134.12 | T108: 127.42 | U108: 119.42 | V108: 131.5 | W108: 124.85 | X108: 116.85 | Y108: 800 | Z108: 3.443526171 | AA108: 150 | AB108: 0.4992252066 | AC108: 21.74625 | AD108: 0.1112643678
A109: Envu | B109: A | C109: L | E109: H | G109: LL/SLP/NOW | H109: 84056146 | J109: D00000992 | K109: Specticle® G | L109: 50 lb | M109: 130.5 | N109: $123.98 | O109: $6.52 | P109: 200+ | Q109: $18.00 | R109: 105.98 | S109: 134.12 | T109: 127.42 | U109: 109.42 | V109: 131.5 | W109: 124.85 | X109: 106.85 | Y109: 800 | Z109: 3.443526171 | AA109: 150 | AB109: 0.4561811295 | AC109: 19.87125 | AD109: 0.1878927203
A110: Envu | B110: TT | C110: GL | D110: NT | E110: H | G110: EOP | J110: D00000675 | K110: Terradex C&B | L110: 1 gal | M110: 115.1 | N110: $115.10 | O110: 0 | P110: 150 gal* | Q110: $15.00 | R110: 100.1 | Y110: 128 | Z110: 2.571166208 | AA110: 112 | AB110: 2.010732323 | AC110: 87.5875 | AD110: 0.1303214596
A111: Envu | B111: TT | C111: GL | D111: NT | E111: H | G111: EOP | J111: D00000674 | K111: Terradex C&B | L111: 2.5 gal | M111: 275.25 | N111: $275.25 | O111: 0 | P111: 150 gal* | Q111: $37.50 | R111: 237.75 | Y111: 320 | Z111: 2.571166208 | AA111: 112 | AB111: 1.910296143 | AC111: 83.2125 | AD111: 0.136239782
A112: Envu | B112: TT | C112: GL | D112: NT | E112: H | G112: EOP | J112: D00000669 | K112: Terradex Power Premix | L112: 2.5 gal | M112: 227.25 | N112: $227.25 | O112: 0 | P112: 150 gal* | Q112: $37.50 | R112: 189.75 | Y112: 320 | Z112: 1.101928375 | AA112: 48 | AB112: 0.6534090909 | AC112: 28.4625 | AD112: 0.1650165017
A113: Envu | B113: TT | C113: GL | D113: NT | E113: H | G113: EOP | J113: D00000670 | K113: Terradex Power Premix | L113: 30 gal | M113: 2484.6 | N113: $2,484.60 | O113: 0 | P113: 150 gal* | Q113: $450.00 | R113: 2034.6 | Y113: 3840 | Z113: 1.101928375 | AA113: 48 | AB113: 0.5838498623 | AC113: 25.4325 | AD113: 0.1811156725
A114: Envu | B114: TT | C114: GL | D114: NST | E114: H | G114: EOP | J114: D00000673 | K114: Terradex Quick Strike | L114: 1 gal | M114: 80.8 | N114: $80.80 | O114: 0 | P114: 150 gal* | Q114: $15.00 | R114: 65.8 | Y114: 128 | Z114: 1.101928375 | AA114: 48 | AB114: 0.5664600551 | AC114: 24.675 | AD114: 0.1856435644
A115: Envu | B115: TT | C115: GL | D115: NST | E115: H | G115: EOP | J115: D00000672 | K115: Terradex Quick Strike | L115: 2.5 gal | M115: 191.95 | N115: $191.95 | O115: 0 | P115: 150 gal* | Q115: $37.50 | R115: 154.45 | Y115: 320 | Z115: 1.101928375 | AA115: 48 | AB115: 0.5318526171 | AC115: 23.1675 | AD115: 0.1953633759
A116: Envu | B116: TT | C116: GL | D116: NST | E116: H | G116: EOP | J116: D00000671 | K116: Terradex Quick Strike | L116: 30 gal | M116: 2181.65 | N116: $2,181.65 | O116: 0 | P116: 150 gal* | Q116: $450.00 | R116: 1731.65 | Y116: 3840 | Z116: 1.101928375 | AA116: 48 | AB116: 0.4969151745 | AC116: 21.645625 | AD116: 0.2062658997
A117: Envu | B117: A | C117: GL | D117: ST | E117: H | F117: X | G117: NOW | J117: 81746257 | K117: Tribute® Total | L117: 6 oz | M117: 426.4 | N117: $405.08 | O117: $21.32 | R117: 405.08 | S117: 438.23 | T117: 416.32 | U117: 416.32 | V117: 429.38 | W117: 407.92 | X117: 407.92 | Y117: 6 | Z117: 0.02295684114 | AA117: 1 | AB117: 1.549892868 | AC117: 67.51333333 | AD117: 0.05
A118: Envu | B118: A | C118: GL | D118: ST | E118: H | F118: X | G118: NOW | J118: 81746257 | K118: Tribute® Total | L118: 6 oz | M118: 426.4 | N118: $405.08 | O118: $21.32 | P118: 24+ | Q118: $30.00 | R118: 375.08 | S118: 438.23 | T118: 416.32 | U118: 386.32 | V118: 429.38 | W118: 407.92 | X118: 377.92 | Y118: 6 | Z118: 0.02295684114 | AA118: 1 | AB118: 1.435108662 | AC118: 62.51333333 | AD118: 0.1203564728
A119: Envu | B119: A | C119: L | E119: H | G119: LL/SLP/NOW | J119: 81746257 | K119: Tribute® Total | L119: 6 oz | M119: 426.4 | N119: $405.08 | O119: $21.32 | P119: 48+ | Q119: $50.00 | R119: 355.08 | S119: 438.23 | T119: 416.32 | U119: 366.32 | V119: 429.38 | W119: 407.92 | X119: 357.92 | Y119: 6 | Z119: 0.02295684114 | AA119: 1 | AB119: 1.358585859 | AC119: 59.18 | AD119: 0.167260788
A120: FMC | B120: A | C120: GL | D120: NST | E120: H | F120: X | G120: EOP | J120: 11008590 | K120: Xonerate® 2SC Herbicide | L120: 12 oz | M120: 489.4 | N120: $464.93 | O120: $24.47 | R120: 464.93 | Y120: 12 | Z120: 0.3213957759 | AA120: 14 | AB120: 12.45221151 | AC120: 542.4183333 | AD120: 0.05
A121: FMC | B121: A | C121: GL | D121: NST | E121: H | F121: X | G121: EOP | J121: 11008590 | K121: Xonerate® 2SC Herbicide | L121: 12 oz | M121: 489.4 | N121: $464.93 | O121: $24.47 | P121: 24+ | Q121: $50.00 | R121: 414.93 | Y121: 12 | Z121: 0.3213957759 | AA121: 14 | AB121: 11.11306244 | AC121: 484.085 | AD121: 0.1521659174
A122: Envu | B122: A | C122: GLO | D122: NST | E122: I | G122: EOP/ORN | H122: 84989509 | J122: D00000903 | K122: Altus® | L122: 64 oz | M122: 437.2 | N122: 437.2 | O122: 0 | P122: 1-15 | R122: 437.2 | Y122: 64 | Z122: 0.32 | AA122: 13.9392 | AB122: 2.186 | AC122: 95.22216 | AD122: 0 | AF122: =IF(PRICING[[#This Row],[SKU]]=J121,AF121+1,1) -> 1
A123: Envu | B123: A | C123: GLO | D123: NST | E123: I | G123: EOP/ORN | H123: 84989509 | J123: D00000903 | K123: Altus® | L123: 64 oz | M123: 437.2 | N123: 415.34 | O123: 21.86 | P123: 16-31 | R123: 415.34 | Y123: 64 | Z123: 0.32 | AA123: 13.9392 | AB123: 2.0767 | AC123: 90.461052 | AD123: 0.05 | AF123: =IF(PRICING[[#This Row],[SKU]]=J122,AF122+1,1) -> 2
A124: Envu | B124: A | C124: GLO | D124: NST | E124: I | G124: EOP/ORN | H124: 84989509 | J124: D00000903 | K124: Altus® | L124: 64 oz | M124: 437.2 | N124: 393.48 | O124: 43.72 | P124: 32+ | R124: 393.48 | Y124: 64 | Z124: 0.32 | AA124: 13.9392 | AB124: 1.9674 | AC124: 85.699944 | AD124: 0.1 | AF124: =IF(PRICING[[#This Row],[SKU]]=J123,AF123+1,1) -> 3
A125: FMC | B125: TT | C125: O | E125: I | G125: ORN | J125: 11008513 | K125: Aria® Insecticide | L125: 160 g | M125: 193.38 | N125: 193.38 | O125: 0 | P125: 8+ | Q125: $21.00 | R125: 172.38 | Y125: 5.64383 | AB125: 0 | AC125: 0 | AD125: 0.1085944772 | AF125: =IF(PRICING[[#This Row],[SKU]]=J124,AF124+1,1) -> 1
A126: Envu | B126: TT | C126: G | D126: NST | E126: I | G126: EOP | K126: Chipco Choice | L126: 50 lb | O126: 0 | Y126: 800 | AB126: 0 | AC126: 0 | AF126: =IF(PRICING[[#This Row],[SKU]]=J125,AF125+1,1) -> 1
A127: FMC | B127: TT | C127: GL | D127: NST | E127: I | G127: EOP | J127: NA | K127: Durentis 0.058% On-Fertilizer | L127: 50 lb | M127: 20 | N127: $20.00 | Q127: $2.00 | AF127: =IF(PRICING[[#This Row],[SKU]]=J126,AF126+1,1) -> 1
A128: FMC | B128: TT | C128: GL | D128: NST | E128: I | G128: EOP | J128: NA | K128: Durentis 0.067% On-Fertilizer | L128: 50 lb | M128: 25 | N128: $25.00 | Q128: $5.00 | AF128: =IF(PRICING[[#This Row],[SKU]]=J127,AF127+1,1) -> 2
A129: FMC | B129: A | C129: GL | D129: NST | E129: I | F129: X | G129: EOP | J129: 11015390 | K129: Durentis™ Insecticide | L129: 16 oz | M129: 630 | N129: $567.00 | O129: $63.00 | P129: 1-3 | R129: 567 | Y129: 16 | Z129: 0.06198347107 | AA129: 2.7 | AB129: 2.196539256 | AC129: 95.68125 | AD129: 0.1 | AF129: =IF(PRICING[[#This Row],[SKU]]=J128,AF128+1,1) -> 1
A130: FMC | B130: A | C130: GL | D130: NST | E130: I | F130: X | G130: EOP | J130: 11015390 | K130: Durentis™ Insecticide | L130: 16 oz | M130: 630 | N130: $567.00 | O130: $63.00 | P130: 4-8 | Q130: $90.00 | R130: 477 | Y130: 16 | Z130: 0.06 | AA130: 2.7 | AB130: 1.78875 | AC130: 80.49375 | AD130: 0.2428571429 | AF130: =IF(PRICING[[#This Row],[SKU]]=J129,AF129+1,1) -> 2
A131: FMC | B131: A | C131: GL | D131: NST | E131: I | F131: X | G131: EOP | J131: 11015390 | K131: Durentis™ Insecticide | L131: 16 oz | M131: 630 | N131: $567.00 | O131: $63.00 | P131: 9-15 | Q131: $120.00 | R131: 447 | Y131: 16 | Z131: 0.06 | AA131: 2.7 | AB131: 1.67625 | AC131: 75.43125 | AD131: 0.2904761905 | AF131: =IF(PRICING[[#This Row],[SKU]]=J130,AF130+1,1) -> 3
A132: FMC | B132: A | C132: GL | D132: NST | E132: I | F132: X | G132: EOP | J132: 11015390 | K132: Durentis™ Insecticide | L132: 16 oz | M132: 630 | N132: $567.00 | O132: $63.00 | P132: 16+ | Q132: $160.00 | R132: 407 | Y132: 16 | Z132: 0.06 | AA132: 2.7 | AB132: 1.52625 | AC132: 68.68125 | AD132: 0.353968254 | AF132: =IF(PRICING[[#This Row],[SKU]]=J131,AF131+1,1) -> 4
A133: FMC | B133: A | C133: GL | D133: NST | E133: I | F133: X | G133: EOP | J133: 11015391 | K133: Durentis™ Insecticide | L133: 64 oz | M133: 2362.6 | N133: $2,126.34 | O133: $236.26 | R133: 2126.34 | Y133: 64 | Z133: 0.06 | AA133: 2.7 | AB133: 1.99344375 | AC133: 89.70496875 | AD133: 0.1 | AF133: =IF(PRICING[[#This Row],[SKU]]=J132,AF132+1,1) -> 1
A134: FMC | B134: A | C134: GL | D134: NST | E134: I | F134: X | G134: EOP | J134: 11015391 | K134: Durentis™ Insecticide | L134: 64 oz | M134: 2362.6 | N134: $2,126.34 | O134: $236.26 | P134: 4+ | Q134: $557.00 | R134: 1569.34 | Y134: 64 | Z134: 0.06 | AA134: 2.7 | AB134: 1.47125625 | AC134: 66.20653125 | AD134: 0.3357572166 | AF134: =IF(PRICING[[#This Row],[SKU]]=J133,AF133+1,1) -> 2
A135: FMC | B135: A | C135: L | E135: I | G135: LL/SLP/EOP | J135: 11015391 | K135: Durentis™ Insecticide | L135: 64 oz | M135: 2362.6 | N135: $2,126.34 | O135: $236.26 | P135: 8+ | Q135: $657.00 | R135: 1469.34 | Y135: 64 | Z135: 0.06 | AA135: 2.7 | AB135: 1.37750625 | AC135: 61.98778125 | AD135: 0.3780834674 | AF135: =IF(PRICING[[#This Row],[SKU]]=J134,AF134+1,1) -> 3
A136: Envu | B136: TT | C136: GL | D136: NST | E136: I | G136: EOP | H136: 86248913 | J136: D00001040 | K136: Dylox SL420 | L136: 2.5 gal | M136: 270.456 | N136: $270.46 | O136: 0 | R136: 270.456 | Y136: 320 | Z136: 6.9 | AA136: 300.564 | AB136: 5.8317075 | AC136: 254.0291787 | AD136: 0 | AF136: =IF(PRICING[[#This Row],[SKU]]=J135,AF135+1,1) -> 1
A137: Envu | B137: TT | C137: O | E137: I | G137: ORN | J137: D00001275 | K137: Floramite | L137: 1 qt | M137: 329.75 | N137: 329.75 | O137: 0 | P137: 4+ | Q137: $50.00 | AD137: 1 | AF137: =IF(PRICING[[#This Row],[SKU]]=J136,AF136+1,1) -> 1
A138: Envu | B138: TT | C138: GL | D138: NST | E138: I | G138: EOP | J138: 3944704 | K138: Forbid | L138: 8 oz | M138: 304.74 | N138: 304.74 | O138: 0 | Q138: $22.00 | R138: 282.74 | Y138: 8 | Z138: 0 | AA138: 0 | AB138: 0 | AC138: 0 | AD138: 0.07219268885 | AF138: =IF(PRICING[[#This Row],[SKU]]=J137,AF137+1,1) -> 1
A139: Envu | B139: A | C139: O | D139: ST | E139: I | G139: ORN | H139: 84915440 | J139: D00000944 | K139: Kontos | L139: 250 ml | O139: 0 | R139: 0 | AF139: =IF(PRICING[[#This Row],[SKU]]=J138,AF138+1,1) -> 1
A140: Envu | B140: A | C140: O | E140: I | G140: ORN | J140: D00001272 | K140: Kontos | L140: 1 qt | M140: $744.00 | N140: $744.00 | O140: $0.00 | P140: 1-3 | R140: 744 | AD140: 0 | AF140: =IF(PRICING[[#This Row],[SKU]]=J139,AF139+1,1) -> 1
A141: Envu | B141: A | C141: O | E141: I | G141: ORN | J141: D00001272 | K141: Kontos | L141: 1 qt | M141: $744.00 | N141: $706.80 | O141: $37.20 | P141: 4-15 | R141: 706.8 | AD141: 0.05 | AF141: =IF(PRICING[[#This Row],[SKU]]=J140,AF140+1,1) -> 2
A142: Envu | B142: A | C142: O | E142: I | G142: ORN | J142: D00001272 | K142: Kontos | L142: 1 qt | M142: $744.00 | N142: $669.60 | O142: $74.40 | P142: 16+ | R142: 669.6 | AD142: 0.1 | AF142: =IF(PRICING[[#This Row],[SKU]]=J141,AF141+1,1) -> 3
A143: Envu | B143: TT | C143: GL | D143: NST | E143: I | G143: EOP | H143: 02406377 | J143: D00000961 | K143: Merit 2F | L143: 1 gal | M143: $63.00 | N143: $63.00 | O143: $0.00 | R143: 63 | Y143: 128 | Z143: 0.6 | AA143: 26.136 | AB143: 0.2953125 | AC143: 12.8638125 | AD143: 0 | AF143: =IF(PRICING[[#This Row],[SKU]]=J142,AF142+1,1) -> 1
A144: Envu | B144: A | C144: O | E144: I | G144: ORN | H144: 84907898 | J144: D00000987 | K144: Savate | L144: 8 oz | M144: 384.8 | N144: 384.8 | O144: 0 | P144: 1-11 | R144: 384.8 | AD144: 0 | AF144: =IF(PRICING[[#This Row],[SKU]]=J143,AF143+1,1) -> 1
A145: Envu | B145: A | C145: O | E145: I | G145: ORN | H145: 84907898 | J145: D00000987 | K145: Savate | L145: 8 oz | M145: 384.8 | N145: 365.56 | O145: 19.24 | P145: 12-29 | R145: 365.56 | AD145: 0.05 | AF145: =IF(PRICING[[#This Row],[SKU]]=J144,AF144+1,1) -> 2
A146: Envu | B146: A | C146: O | E146: I | G146: ORN | H146: 84907898 | J146: D00000987 | K146: Savate | L146: 8 oz | M146: 384.8 | N146: 346.32 | O146: 38.48 | P146: 30+ | R146: 346.32 | AD146: 0.1 | AF146: =IF(PRICING[[#This Row],[SKU]]=J145,AF145+1,1) -> 3
A147: Envu | B147: A | C147: L | D147: NST | E147: I | G147: EOP | J147: 11009495 | K147: Scion | L147: 32 oz | M147: 156.6 | N147: 156.6 | O147: 0 | Q147: $38.00 | R147: 118.6 | Y147: 32 | AD147: 0.2426564496 | AF147: =IF(PRICING[[#This Row],[SKU]]=J146,AF146+1,1) -> 1
A148: Envu | B148: TT | C148: O | E148: I | G148: ORN | J148: D00001276 | K148: Shuttle | L148: 1 qt | M148: 417.6 | N148: 417.6 | O148: 0 | P148: 4+ | Q148: $25.00 | AD148: 1 | AF148: =IF(PRICING[[#This Row],[SKU]]=J147,AF147+1,1) -> 1
A149: FMC | B149: TT | C149: G | D149: NST | E149: I | G149: EOP/ORN | J149: 11008457 | K149: Talstar® Select Insecticide (RUP) | L149: 1 gal | M149: 60.72 | N149: $60.72 | O149: 0 | P149: 4+ | Q149: $6.00 | R149: 54.72 | Y149: 128 | Z149: 0 | AA149: 0 | AB149: 0 | AC149: 0 | AD149: 0.09881422925
A150: Envu | B150: A | C150: GL | D150: NST | E150: I | G150: EOP | J150: 86797658 | K150: Tetrino® | L150: 1 gal | M150: 528 | N150: $528.00 | O150: 0 | R150: 528 | Y150: 128 | Z150: 0.73 | AA150: 31.7988 | AB150: 3.01125 | AC150: 131.17005 | AD150: 0
A151: Envu | B151: A | C151: GL | D151: NST | E151: I | G151: EOP | J151: 86797658 | K151: Tetrino® | L151: 1 gal | M151: 528 | N151: $528.00 | O151: 0 | P151: 4+ | Q151: $40.00 | R151: 488 | Y151: 128 | Z151: 0.73 | AA151: 31.7988 | AB151: 2.783125 | AC151: 121.232925 | AD151: 0.07575757576
A152: Envu | B152: TT | C152: GL | D152: ST | E152: I | G152: EOP | H152: 79982844 | J152: D00001012 | K152: TopChoice | L152: 50 lb | M152: 76.2 | N152: $76.20 | O152: 0 | Q152: $2.00 | R152: 74.2 | Y152: 800 | Z152: 31.96 | AA152: 1392.1776 | AB152: 2.96429 | AC152: 129.1244724 | AD152: 0.02624671916
A153: FMC | B153: A | C153: G | D153: NST | E153: I | F153: X | G153: EOP | J153: 11008521 | K153: Triple Crown® Golf Insecticide (RUP) | L153: 1 gal | M153: 348.2 | N153: $330.79 | O153: $17.41 | R153: 330.79 | Y153: 128 | Z153: 0.46 | AA153: 20.0376 | AB153: 1.188776563 | AC153: 51.78310706 | AD153: 0.05
A154: FMC | B154: A | C154: G | D154: NST | E154: I | F154: X | G154: EOP | J154: 11008521 | K154: Triple Crown® Golf Insecticide (RUP) | L154: 1 gal | M154: 348.2 | N154: $330.79 | O154: $17.41 | P154: 20+ | Q154: $12.00 | R154: 318.79 | Y154: 128 | Z154: 0.46 | AA154: 20.0376 | AB154: 1.145651563 | AC154: 49.90458206 | AD154: 0.08446295233
A155: FMC | B155: A | C155: G | D155: NST | E155: I | F155: X | G155: EOP | J155: 11008521 | K155: Triple Crown® Golf Insecticide (RUP) | L155: 1 gal | M155: 348.2 | N155: $330.79 | O155: $17.41 | P155: 40+ | Q155: $25.00 | R155: 305.79 | Y155: 128 | Z155: 0.46 | AA155: 20.0376 | AB155: 1.098932813 | AC155: 47.86951331 | AD155: 0.1217978173
A156: FMC | B156: A | C156: L | D156: NST | E156: I | F156: X | G156: EOP | J156: 11008520 | K156: Triple Crown® T&O Insecticide | L156: 1 gal | M156: 348.2 | N156: $330.79 | O156: $17.41 | R156: 330.79 | Y156: 128 | Z156: 0.46 | AA156: 20.0376 | AB156: 1.188776563 | AC156: 51.78310706 | AD156: 0.05
A157: FMC | B157: A | C157: L | D157: NST | E157: I | F157: X | G157: EOP | J157: 11008520 | K157: Triple Crown® T&O Insecticide | L157: 1 gal | M157: 348.2 | N157: $330.79 | O157: $17.41 | P157: 20+ | Q157: $12.00 | R157: 318.79 | Y157: 128 | Z157: 0.46 | AA157: 20.0376 | AB157: 1.145651563 | AC157: 49.90458206 | AD157: 0.08446295233
A158: FMC | B158: A | C158: L | D158: NST | E158: I | F158: X | G158: EOP | J158: 11008520 | K158: Triple Crown® T&O Insecticide | L158: 1 gal | M158: 348.2 | N158: $330.79 | O158: $17.41 | P158: 40+ | Q158: $25.00 | R158: 305.79 | Y158: 128 | Z158: 0.46 | AA158: 20.0376 | AB158: 1.098932813 | AC158: 47.86951331 | AD158: 0.1217978173
A159: Envu | B159: TT | C159: O | E159: PGR | G159: ORN | J159: D00001274 | K159: B-Nine | L159: 5 lb | M159: 260.1 | N159: 260.1 | O159: 0 | P159: 4+ | Q159: $12.00 | R159: $248.10 | AD159: 0.0461361015 | AF159: =IF(PRICING[[#This Row],[SKU]]=J158,AF158+1,1) -> 1
